Workbook

Sheet DATA
A1: Name | B1: Team | C1: Church | D1: Year | E1: Meet | F1: QuizType | G1: Room | H1: Quiz# | I1: QM | J1: Correct | K1: Error | L1: Foul | M1: BonusCorrect | N1: BonusError | O1: 3rd | P1: 4th | Q1: 5th | R1: QuizOut | S1: ErrOut | T1: Score | U1: TOTAL_QUIZ | AE1: NAME | AF1: COUNT | AG1: Correct | AH1: Corr/Q | AI1: Error | AJ1: Error/Q | AK1: Foul | AL1: BonusCorrect | AM1: BonusError | AN1: 3rd | AO1: 4th | AP1: 5th | AQ1: QuizOut | AR1: ErrOut | AS1: Score | AT1: TOTAL_QUIZ | AU1: per quiz
A2: Aaron Maier | B2: LH4 | C2: Lighthouse | D2: 2014-2015 | E2: 1 | F2: Pre | G2: 4 | H2: 16 | I2: Cutty Welt | J2: 0 | K2: 3 | R2: =IF(J2=4,1,0) -> 0 | S2: =IF(K2=3,1,0) -> 1 | T2: =quizscore(J2,K2) -> -20 | U2: =T2+M2*(20) + (SUM(O2:Q2)*(10)) - L2*(5) - N2*(5) -> -20 | V2: =AVERAGEIFS(U:U,A:A,A2,F:F,"Pre") -> 15.66666667 | Z2: Meet | AA2: Corr | AB2: Err | AC2: Accuracy | AE2: David Steinke | AF2: =COUNTIFS(A:A,AE2,H:H,"j") -> 6 | AG2: =SUMIFS(J:J,A:A,AE2,H:H,"j") -> 19 | AH2: =AG2/AF2 -> 3.166666667 | AI2: =SUMIFS(K:K,A:A,AE2,H:H,"j") -> 10 | AJ2: =AI2/AF2 -> 1.666666667 | AK2: =SUMIFS(L:L,A:A,AE2,H:H,"J") -> 0 | AL2: =SUMIFS(M:M,A:A,AE2,H:H,"J") -> 1 | AM2: =SUMIFS(N:N,A:A,AE2,H:H,"J") -> 0 | AN2: =SUMIFS(O:O,A:A,AE2,H:H,"J") -> 0 | AO2: =SUMIFS(P:P,A:A,AE2,H:H,"J") -> 0 | AP2: =SUMIFS(Q:Q,A:A,AE2,H:H,"J") -> 0 | AQ2: =SUMIFS(R:R,A:A,AE2,H:H,"J") -> 3 | AR2: =SUMIFS(S:S,A:A,AE2,H:H,"J") -> 1 | AS2: =SUMIFS(T:T,A:A,AE2,H:H,"J") -> 280 | AT2: =SUMIFS(U:U,A:A,AE2,H:H,"J") -> 300 | AU2: =AT2/AF2 -> 50
A3: Aaron Maier | B3: LH4 | C3: Lighthouse | D3: 2014-2015 | E3: 2 | F3: ConB | G3: 4 | H3: B-5 | I3: Cutty Welt | J3: 0 | K3: 2 | R3: 0 | S3: 0 | T3: -10 | U3: -10 | V3: 15.66666667 | Z3: 1 | AA3: =SUMIF(E:E,Z3,J:J) -> 1164 | AB3: =SUMIF(E:E,Z3,K:K) -> 479 | AC3: =AA3/(AA3+AB3) -> 0.7084601339 | AE3: Abi Carlson | AF3: 4 | AG3: 12 | AH3: 3 | AI3: 8 | AJ3: 2 | AK3: 0 | AL3: 1 | AM3: 0 | AN3: 0 | AO3: 0 | AP3: 0 | AQ3: 2 | AR3: 2 | AS3: 200 | AT3: 220 | AU3: 55
A4: Aaron Maier | B4: LH4 | C4: Lighthouse | D4: 2014-2015 | E4: 2 | F4: Pre | G4: 2 | H4: 6 | I4: Jeremy Swingle | J4: 0 | K4: 1 | R4: 0 | S4: 0 | T4: 0 | U4: 0 | V4: 15.66666667 | Z4: 2 | AA4: =SUMIF(E:E,Z4,J:J) -> 1047 | AB4: =SUMIF(E:E,Z4,K:K) -> 520 | AC4: =AA4/(AA4+AB4) -> 0.6681557116 | AE4: Anna Kong | AF4: 9 | AG4: 27 | AH4: 3 | AI4: 14 | AJ4: 1.555555556 | AK4: 0 | AL4: 5 | AM4: 0 | AN4: 0 | AO4: 0 | AP4: 0 | AQ4: 6 | AR4: 3 | AS4: 420 | AT4: 520 | AU4: 57.77777778
A5: Aaron Maier | B5: LH4 | C5: Lighthouse | D5: 2014-2015 | E5: 4 | F5: Pre | G5: 3 | H5: 7 | I5: Tony Kong | J5: 0 | K5: 0 | N5: 1 | R5: 0 | S5: 0 | T5: 0 | U5: -5 | V5: 15.66666667 | Z5: 3 | AA5: =SUMIF(E:E,Z5,J:J) -> 986 | AB5: =SUMIF(E:E,Z5,K:K) -> 498 | AC5: 0.6644204852 | AE5: Lydia Taw | AF5: 13 | AG5: 37 | AH5: 2.846153846 | AI5: 9 | AJ5: 0.6923076923 | AK5: 6 | AL5: 5 | AM5: 0 | AN5: 0 | AO5: 0 | AP5: 0 | AQ5: 6 | AR5: 1 | AS5: 710 | AT5: 780 | AU5: 60
A6: Aaron Maier | B6: LH4 | C6: Lighthouse | D6: 2014-2015 | E6: 2 | F6: Pre | G6: 1 | H6: 21 | I6: Scott Peterson | J6: 0 | K6: 1 | R6: 0 | S6: 0 | T6: 0 | U6: 0 | V6: 15.66666667 | Z6: 4 | AA6: =SUMIF(E:E,Z6,J:J) -> 933 | AB6: =SUMIF(E:E,Z6,K:K) -> 531 | AC6: 0.637295082 | AE6: Emilee Pope | AF6: 4 | AG6: 6 | AH6: 1.5 | AI6: 4 | AJ6: 1 | AK6: 0 | AL6: 0 | AM6: 0 | AN6: 1 | AO6: 0 | AP6: 0 | AQ6: 0 | AR6: 0 | AS6: 110 | AT6: 120 | AU6: 30
A7: Aaron Maier | B7: LH4 | C7: Lighthouse | D7: 2014-2015 | E7: 3 | F7: Pre | G7: 4 | H7: 28 | I7: Cutty Welt | J7: 0 | K7: 0 | N7: 1 | R7: 0 | S7: 0 | T7: 0 | U7: -5 | V7: 15.66666667 | Z7: 5 | AA7: =SUMIF(E:E,Z7,J:J) -> 983 | AB7: =SUMIF(E:E,Z7,K:K) -> 456 | AC7: 0.6831132731 | AE7: Melinda Borden | AF7: 2 | AG7: 3 | AH7: 1.5 | AI7: 1 | AJ7: 0.5 | AK7: 0 | AL7: 0 | AM7: 0 | AN7: 0 | AO7: 0 | AP7: 0 | AQ7: 0 | AR7: 0 | AS7: 60 | AT7: 60 | AU7: 30
A8: Aaron Maier | B8: LH4 | C8: Lighthouse | D8: 2014-2015 | E8: 1 | F8: Pre | G8: 2 | H8: 30 | I8: Jeremy Swingle | J8: 0 | K8: 0 | R8: 0 | S8: 0 | T8: 0 | U8: 0 | V8: 15.66666667 | AE8: James Taw | AF8: 2 | AG8: 3 | AH8: 1.5 | AI8: 1 | AJ8: 0.5 | AK8: 2 | AL8: 0 | AM8: 0 | AN8: 0 | AO8: 0 | AP8: 0 | AQ8: 0 | AR8: 0 | AS8: 60 | AT8: 50 | AU8: 25
A9: Aaron Maier | B9: LH4 | C9: Lighthouse | D9: 2014-2015 | E9: 2 | F9: Pre | G9: 1 | H9: 33 | I9: Scott Peterson | J9: 0 | K9: 0 | R9: 0 | S9: 0 | T9: 0 | U9: 0 | V9: 15.66666667 | X9: Name | Y9: Bracket | Z9: Room | AA9: Corr | AB9: Incorr | AC9: Accuracy | AE9: Daniel Do | AF9: 13 | AG9: 19 | AH9: 1.461538462 | AI9: 9 | AJ9: 0.6923076923 | AK9: 0 | AL9: 1 | AM9: 1 | AN9: 2 | AO9: 0 | AP9: 0 | AQ9: 0 | AR9: 1 | AS9: 270 | AT9: 305 | AU9: 23.46153846
A10: Aaron Maier | B10: LH4 | C10: Lighthouse | D10: 2014-2015 | E10: 1 | F10: Pre | G10: 1 | H10: 41 | I10: Scott Peterson | J10: 0 | K10: 1 | R10: 0 | S10: 0 | T10: 0 | U10: 0 | V10: 15.66666667 | X10: Abigail Taw | Y10: Pre | Z10: 1 | AA10: =SUMIFS(J:J,A:A,X10,F:F,Y10,G:G,Z10) -> 27 | AB10: =SUMIFS(K:K,A:A,X10,F:F,Y10,G:G,Z10) -> 5 | AC10: 0.84375 | AE10: Isabel Bammer | AF10: 13 | AG10: 15 | AH10: 1.153846154 | AI10: 20 | AJ10: 1.538461538 | AK10: 0 | AL10: 0 | AM10: 1 | AN10: 5 | AO10: 0 | AP10: 0 | AQ10: 0 | AR10: 1 | AS10: 200 | AT10: 245 | AU10: 18.84615385
A11: Aaron Maier | B11: LH4 | C11: Lighthouse | D11: 2014-2015 | E11: 2 | F11: Pre | G11: 4 | H11: 44 | I11: Cutty Welt | J11: 0 | K11: 0 | R11: 0 | S11: 0 | T11: 0 | U11: 0 | V11: 15.66666667 | X11: Abigail Taw | Y11: Pre | Z11: 2 | AA11: 17 | AB11: 8 | AC11: 0.68 | AE11: Emma Carlson | AF11: 6 | AG11: 10 | AH11: 1.666666667 | AI11: 2 | AJ11: 0.3333333333 | AK11: 0 | AL11: 3 | AM11: 0 | AN11: 0 | AO11: 0 | AP11: 0 | AQ11: 0 | AR11: 0 | AS11: 70 | AT11: 130 | AU11: 21.66666667
A12: Aaron Maier | B12: LH4 | C12: Lighthouse | D12: 2014-2015 | E12: 3 | F12: Pre | G12: 4 | H12: 44 | I12: Cutty Welt | J12: 0 | K12: 0 | R12: 0 | S12: 0 | T12: 0 | U12: 0 | V12: 15.66666667 | X12: Abigail Taw | Y12: Pre | Z12: 3 | AA12: 28 | AB12: 8 | AC12: 0.7777777778 | AE12: Kendra Gross | AF12: 5 | AG12: 11 | AH12: 2.2 | AI12: 5 | AJ12: 1 | AK12: 0 | AL12: 1 | AM12: 0 | AN12: 0 | AO12: 0 | AP12: 0 | AQ12: 0 | AR12: 0 | AS12: 210 | AT12: 230 | AU12: 46
A13: Aaron Maier | B13: LH4 | C13: Lighthouse | D13: 2014-2015 | E13: 3 | F13: Pre | G13: 2 | H13: 50 | I13: Jeremy Swingle | J13: 0 | K13: 0 | N13: 1 | R13: 0 | S13: 0 | T13: 0 | U13: -5 | V13: 15.66666667 | X13: Abigail Taw | Y13: Pre | Z13: 4 | AA13: 26 | AB13: 6 | AC13: 0.8125 | AE13: Micah Hollen | AF13: 5 | AG13: 8 | AH13: 1.6 | AI13: 9 | AJ13: 1.8 | AK13: 0 | AL13: 1 | AM13: 0 | AN13: 0 | AO13: 0 | AP13: 0 | AQ13: 0 | AR13: 0 | AS13: 120 | AT13: 140 | AU13: 28
A14: Aaron Maier | B14: LH4 | C14: Lighthouse | D14: 2014-2015 | E14: 4 | F14: Pre | G14: 2 | H14: 50 | I14: Jeremy Swingle | J14: 0 | K14: 0 | N14: 2 | R14: 0 | S14: 0 | T14: 0 | U14: -10 | V14: 15.66666667 | X14: Abigail Taw | Y14: Semi | Z14: 1 | AA14: 27 | AB14: 14 | AC14: 0.6585365854 | AE14: Abigail Taw | AF14: 2 | AG14: 1 | AH14: 0.5 | AI14: 3 | AJ14: 1.5 | AK14: 0 | AL14: 1 | AM14: 0 | AN14: 0 | AO14: 0 | AP14: 0 | AQ14: 0 | AR14: 0 | AS14: 10 | AT14: 30 | AU14: 15
A15: Aaron Maier | B15: LH4 | C15: Lighthouse | D15: 2014-2015 | E15: 3 | F15: ConA | G15: 3 | H15: A-E | I15: Tiffany Bye | J15: 0 | K15: 0 | R15: 0 | S15: 0 | T15: 0 | U15: 0 | V15: 15.66666667 | X15: Abigail Taw | Y15: Semi | Z15: 2 | AA15: 14 | AB15: 7 | AC15: 0.6666666667 | AE15: Jonathan Steinke | AF15: 4 | AG15: 1 | AH15: 0.25 | AI15: 1 | AJ15: 0.25 | AK15: 0 | AL15: 1 | AM15: 0 | AN15: 0 | AO15: 0 | AP15: 0 | AQ15: 0 | AR15: 0 | AS15: 20 | AT15: 40 | AU15: 10
A16: Aaron Maier | B16: LH4 | C16: Lighthouse | D16: 2014-2015 | E16: 1 | F16: ConB | G16: 4 | H16: B-3 | I16: Cutty Welt | J16: 1 | K16: 3 | R16: 0 | S16: 1 | T16: 0 | U16: 0 | V16: 15.66666667 | AE16: Claire Kong | AF16: 9 | AG16: 6 | AH16: 0.6666666667 | AI16: 6 | AJ16: 0.6666666667 | AK16: 0 | AL16: 0 | AM16: 0 | AN16: 0 | AO16: 0 | AP16: 0 | AQ16: 0 | AR16: 0 | AS16: 100 | AT16: 100 | AU16: 11.11111111
A17: Aaron Maier | B17: LH4 | C17: Lighthouse | D17: 2014-2015 | E17: 2 | F17: ConB | G17: 4 | H17: B-4 | I17: Cutty Welt | J17: 0 | K17: 1 | R17: 0 | S17: 0 | T17: 0 | U17: 0 | V17: 15.66666667 | Y17: Bracket | Z17: Room | AA17: Corr | AB17: Incorr | AC17: Accuracy | AE17: Austin Watkins | AF17: 2 | AG17: 0 | AH17: 0 | AI17: 0 | AJ17: 0 | AK17: 0 | AL17: 0 | AM17: 0 | AN17: 0 | AO17: 0 | AP17: 0 | AQ17: 0 | AR17: 0 | AS17: 0 | AT17: 0 | AU17: 0
A18: Aaron Maier | B18: LH4 | C18: Lighthouse | D18: 2014-2015 | E18: 2 | F18: ConB | G18: 4 | H18: B-6 | I18: Cutty Welt | J18: 0 | K18: 0 | R18: 0 | S18: 0 | T18: 0 | U18: 0 | V18: 15.66666667 | Y18: Pre | Z18: 1 | AA18: =SUMIFS(J:J,F:F,Y18,G:G,Z18) -> 857 | AB18: =SUMIFS(K:K,F:F,Y18,G:G,Z18) -> 391 | AC18: =AA18/(AA18+AB18) -> 0.6866987179 | AE18: Danny Herzog | AF18: 9 | AG18: 0 | AH18: 0 | AI18: 0 | AJ18: 0 | AK18: 0 | AL18: 0 | AM18: 0 | AN18: 0 | AO18: 0 | AP18: 0 | AQ18: 0 | AR18: 0 | AS18: 0 | AT18: 0 | AU18: 0
A19: Aaron Maier | B19: LH4 | C19: Lighthouse | D19: 2014-2015 | E19: 4 | F19: ConA | G19: 2 | H19: A-C | I19: Jeremy Swingle | J19: 1 | K19: 2 | R19: 0 | S19: 0 | T19: 10 | U19: 10 | V19: 15.66666667 | Y19: Pre | Z19: 2 | AA19: =SUMIFS(J:J,F:F,Y19,G:G,Z19) -> 791 | AB19: =SUMIFS(K:K,F:F,Y19,G:G,Z19) -> 422 | AC19: 0.6521022259 | AE19: Ethan Shipps | AF19: 6 | AG19: 0 | AH19: 0 | AI19: 0 | AJ19: 0 | AK19: 0 | AL19: 0 | AM19: 0 | AN19: 0 | AO19: 0 | AP19: 0 | AQ19: 0 | AR19: 0 | AS19: 0 | AT19: 0 | AU19: 0
A20: Aaron Maier | B20: LH4 | C20: Lighthouse | D20: 2014-2015 | E20: 3 | F20: Pre | G20: 1 | H20: 13 | I20: Scott Peterson | J20: 1 | K20: 0 | R20: 0 | S20: 0 | T20: 20 | U20: 20 | V20: 15.66666667 | Y20: Pre | Z20: 3 | AA20: =SUMIFS(J:J,F:F,Y20,G:G,Z20) -> 790 | AB20: =SUMIFS(K:K,F:F,Y20,G:G,Z20) -> 355 | AC20: 0.6899563319 | AE20: Joseph Winters | AF20: 2 | AG20: 0 | AH20: 0 | AI20: 0 | AJ20: 0 | AK20: 0 | AL20: 0 | AM20: 0 | AN20: 0 | AO20: 0 | AP20: 0 | AQ20: 0 | AR20: 0 | AS20: 0 | AT20: 0 | AU20: 0
A21: Aaron Maier | B21: LH4 | C21: Lighthouse | D21: 2014-2015 | E21: 2 | F21: Pre | G21: 3 | H21: 19 | I21: Tiffany Bye | J21: 1 | K21: 1 | R21: 0 | S21: 0 | T21: 20 | U21: 20 | V21: 15.66666667 | Y21: Pre | Z21: 4 | AA21: =SUMIFS(J:J,F:F,Y21,G:G,Z21) -> 814 | AB21: =SUMIFS(K:K,F:F,Y21,G:G,Z21) -> 327 | AC21: 0.7134092901
A22: Aaron Maier | B22: LH4 | C22: Lighthouse | D22: 2014-2015 | E22: 3 | F22: Pre | G22: 4 | H22: 20 | I22: Cutty Welt | J22: 1 | K22: 0 | R22: 0 | S22: 0 | T22: 20 | U22: 20 | V22: 15.66666667
A23: Aaron Maier | B23: LH4 | C23: Lighthouse | D23: 2014-2015 | E23: 4 | F23: Pre | G23: 1 | H23: 21 | I23: Scott Peterson | J23: 1 | K23: 0 | R23: 0 | S23: 0 | T23: 20 | U23: 20 | V23: 15.66666667
A24: Aaron Maier | B24: LH4 | C24: Lighthouse | D24: 2014-2015 | E24: 1 | F24: Pre | G24: 3 | H24: 23 | I24: Tiffany Bye | J24: 1 | K24: 0 | M24: 2 | N24: 1 | R24: 0 | S24: 0 | T24: 20 | U24: 55 | V24: 15.66666667
A25: Aaron Maier | B25: LH4 | C25: Lighthouse | D25: 2014-2015 | E25: 3 | F25: Pre | G25: 3 | H25: 31 | I25: Tiffany Bye | J25: 1 | K25: 0 | R25: 0 | S25: 0 | T25: 20 | U25: 20 | V25: 15.66666667
A26: Aaron Maier | B26: LH4 | C26: Lighthouse | D26: 2014-2015 | E26: 4 | F26: Pre | G26: 4 | H26: 36 | I26: Cutty Welt | J26: 1 | K26: 1 | R26: 0 | S26: 0 | T26: 20 | U26: 20 | V26: 15.66666667 | Z26: Micah Hollen | AA26: =SUMIFS(T:T,A:A,Z26,E:E,5) -> 680
A27: Aaron Maier | B27: LH4 | C27: Lighthouse | D27: 2014-2015 | E27: 3 | F27: ConA | G27: 3 | H27: A-B | I27: Tiffany Bye | J27: 1 | K27: 1 | R27: 0 | S27: 0 | T27: 20 | U27: 20 | V27: 15.66666667 | Z27: Abigail Taw | AA27: =SUMIFS(T:T,A:A,Z27,E:E,5) -> 770
A28: Aaron Maier | B28: LH4 | C28: Lighthouse | D28: 2014-2015 | E28: 4 | F28: Pre | G28: 2 | H28: 14 | I28: Jeremy Swingle | J28: 2 | K28: 1 | R28: 0 | S28: 0 | T28: 40 | U28: 40 | V28: 15.66666667 | Z28: Anna Kong | AA28: 580
A29: Aaron Maier | B29: LH4 | C29: Lighthouse | D29: 2014-2015 | E29: 3 | F29: ConA | G29: 3 | H29: A-H | I29: Tiffany Bye | J29: 2 | K29: 1 | R29: 0 | S29: 0 | T29: 40 | U29: 40 | V29: 15.66666667 | Z29: Bryce Asberg | AA29: 730
A30: Aaron Maier | B30: LH4 | C30: Lighthouse | D30: 2014-2015 | E30: 1 | F30: ConB | G30: 4 | H30: B-1 | I30: Cutty Welt | J30: 2 | K30: 1 | R30: 0 | S30: 0 | T30: 40 | U30: 40 | V30: 15.66666667 | Z30: Lydia Taw | AA30: 630
A31: Aaron Maier | B31: LH4 | C31: Lighthouse | D31: 2014-2015 | E31: 1 | F31: Pre | G31: 2 | H31: 6 | I31: Jeremy Swingle | J31: 3 | K31: 1 | N31: 1 | R31: 0 | S31: 0 | T31: 60 | U31: 55 | V31: 15.66666667 | Z31: Emma Carlson | AA31: 680
A32: Aaron Maier | B32: LH4 | C32: Lighthouse | D32: 2014-2015 | E32: 2 | F32: Pre | G32: 3 | H32: 15 | I32: Tiffany Bye | J32: 3 | K32: 0 | R32: 0 | S32: 0 | T32: 60 | U32: 60 | V32: 15.66666667 | Z32: David Steinke | AA32: 590
A33: Aaron Maier | B33: LH4 | C33: Lighthouse | D33: 2014-2015 | E33: 4 | F33: Pre | G33: 3 | H33: 27 | I33: Tony Kong | J33: 3 | K33: 0 | R33: 0 | S33: 0 | T33: 60 | U33: 60 | V33: 15.66666667 | Z33: Maddie Ashcraft | AA33: 580
A34: Aaron Maier | B34: LH4 | C34: Lighthouse | D34: 2014-2015 | E34: 1 | F34: Pre | G34: 1 | H34: 49 | I34: Scott Peterson | J34: 3 | K34: 1 | R34: 0 | S34: 0 | T34: 60 | U34: 60 | V34: 15.66666667 | Z34: Joshua Hole | AA34: 530
A35: Aaron Maier | B35: LH4 | C35: Lighthouse | D35: 2014-2015 | E35: 4 | F35: ConA | G35: 3 | H35: A-F | I35: Abby Ashcraft | J35: 3 | K35: 1 | N35: 1 | R35: 0 | S35: 0 | T35: 60 | U35: 55 | V35: 15.66666667 | Z35: Benjamin Malchert | AA35: 480
A36: Aaron Maier | B36: LH4 | C36: Lighthouse | D36: 2014-2015 | E36: 1 | F36: ConB | G36: 4 | H36: B-6 | I36: Cutty Welt | J36: 4 | K36: 2 | M36: 1 | R36: 1 | S36: 0 | T36: 70 | U36: 90 | V36: 15.66666667 | Z36: Daniel Do | AA36: 470
A37: Aaron Maier | B37: LH4 | C37: Lighthouse | D37: 2014-2015 | E37: 5 | F37: Pre | G37: 2 | H37: 2 | I37: Jeremy Swingle | J37: 2 | K37: 1 | N37: 1 | R37: 0 | S37: 0 | T37: 40 | U37: 35 | V37: 15.66666667 | Z37: Abi Carlson | AA37: 390
A38: Aaron Maier | B38: LH4 | C38: Lighthouse | D38: 2014-2015 | E38: 5 | F38: Pre | G38: 1 | H38: 9 | I38: Scott Peterson | J38: 1 | K38: 0 | O38: 1 | R38: 0 | S38: 0 | T38: 20 | U38: 30 | V38: 15.66666667 | Z38: Stephen Miller | AA38: 400
A39: Aaron Maier | B39: LH4 | C39: Lighthouse | D39: 2014-2015 | E39: 5 | F39: Pre | G39: 4 | H39: 16 | I39: Cutty Welt | J39: 0 | K39: 0 | R39: 0 | S39: 0 | T39: 0 | U39: 0 | V39: 15.66666667 | Z39: Teresa Derr | AA39: 550
A40: Aaron Maier | B40: LH4 | C40: Lighthouse | D40: 2014-2015 | E40: 5 | F40: Pre | G40: 1 | H40: 21 | I40: Scott Peterson | J40: 0 | K40: 0 | R40: 0 | S40: 0 | T40: 0 | U40: 0 | V40: 15.66666667 | Z40: James Taw | AA40: 460
A41: Aaron Maier | B41: LH4 | C41: Lighthouse | D41: 2014-2015 | E41: 5 | F41: Pre | G41: 3 | H41: 35 | I41: Tony Kong | J41: 0 | K41: 0 | R41: 0 | S41: 0 | T41: 0 | U41: 0 | V41: 15.66666667 | Z41: Stephen Nguyen | AA41: 450
A42: Aaron Maier | B42: LH4 | C42: Lighthouse | D42: 2014-2015 | E42: 5 | F42: Pre | G42: 4 | H42: 44 | I42: Cutty Welt | J42: 0 | K42: 0 | R42: 0 | S42: 0 | T42: 0 | U42: 0 | V42: 15.66666667 | Z42: Kimberly Bonar | AA42: 510
A43: Aaron Maier | B43: LH4 | C43: Lighthouse | D43: 2014-2015 | E43: 5 | F43: ConA | G43: 2 | H43: A-C | I43: Jeremy Swingle | J43: 0 | K43: 1 | R43: 0 | S43: 0 | T43: 0 | U43: 0 | V43: 15.66666667 | Z43: Samuel Do | AA43: 420
A44: Aaron Maier | B44: LH4 | C44: Lighthouse | D44: 2014-2015 | E44: 5 | F44: ConA | G44: 2 | H44: A-D | I44: Jeremy Swingle | J44: 0 | K44: 1 | R44: 0 | S44: 0 | T44: 0 | U44: 0 | V44: 15.66666667 | Z44: Jamie Rand | AA44: 380
A45: Aaron Maier | B45: LH4 | C45: Lighthouse | D45: 2014-2015 | E45: 5 | F45: ConA | G45: 2 | H45: A-G | I45: Jeremy Swingle | J45: 1 | K45: 1 | O45: 1 | R45: 0 | S45: 0 | T45: 20 | U45: 30 | V45: 15.66666667 | Z45: Justin Widmer | AA45: 480
A46: Aaron Maier | B46: LH4 | C46: =VLOOKUP(B46,$B$2:$C$3219,2,FALSE) -> Lighthouse | D46: 2014-2015 | E46: 5 | F46: ConA | G46: 3 | H46: A-I | I46: Abby Ashcraft | J46: 2 | K46: 0 | R46: 0 | S46: 0 | T46: 40 | U46: 40 | V46: 15.66666667 | Z46: Nathan Bonar | AA46: 360
A47: Aaron Maier | B47: LH4 | C47: =VLOOKUP(B47,$B$2:$C$3219,2,FALSE) -> Lighthouse | D47: 2014-2015 | E47: 5 | F47: ConA | G47: 3 | H47: A-J | I47: Abby Ashcraft | J47: 1 | K47: 1 | R47: 0 | S47: 0 | U47: 0 | V47: 15.66666667 | Z47: Ryan Small | AA47: 380
A48: Abi Carlson | B48: DAC1 | C48: Dallas | D48: 2014-2015 | E48: 4 | F48: Semi | G48: 1 | H48: A | I48: Scott Peterson | J48: 0 | K48: 3 | R48: 0 | S48: 1 | T48: =quizscore(J48,K48) -> -20 | U48: -20 | V48: 71.5 | Z48: Andrew Borden | AA48: 400
A49: Abi Carlson | B49: DAC1 | C49: Dallas | D49: 2014-2015 | E49: 2 | F49: Pre | G49: 4 | H49: 8 | I49: Cutty Welt | J49: 1 | K49: 3 | R49: 0 | S49: 1 | T49: 0 | U49: 0 | V49: 71.5 | Z49: Ashly Barrios | AA49: 340
A50: Abi Carlson | B50: DAC1 | C50: Dallas | D50: 2014-2015 | E50: 2 | F50: Semi | G50: 2 | H50: H | I50: Jeremy Swingle | J50: 1 | K50: 3 | R50: 0 | S50: 1 | T50: 0 | U50: 0 | V50: 71.5 | Z50: Claire Kong | AA50: 300
A51: Abi Carlson | B51: DAC1 | C51: Dallas | D51: 2014-2015 | E51: 1 | F51: Semi | G51: 1 | H51: J | I51: Scott Peterson | J51: 1 | K51: 3 | R51: 0 | S51: 1 | T51: 0 | U51: 0 | V51: 71.5 | Z51: Sam Ashcraft | AA51: 300
A52: Abi Carlson | B52: DAC1 | C52: Dallas | D52: 2014-2015 | E52: 2 | F52: Pre | G52: 2 | H52: 38 | I52: Jeremy Swingle | J52: 2 | K52: 3 | R52: 0 | S52: 1 | T52: 20 | U52: 20 | V52: 71.5 | Z52: Peter Stuart | AA52: 390
A53: Abi Carlson | B53: DAC1 | C53: Dallas | D53: 2014-2015 | E53: 3 | F53: Pre | G53: 3 | H53: 39 | I53: Tiffany Bye | J53: 2 | K53: 3 | R53: 0 | S53: 1 | T53: 20 | U53: 20 | V53: 71.5 | Z53: Inez Yoon | AA53: 400
A54: Abi Carlson | B54: DAC1 | C54: Dallas | D54: 2014-2015 | E54: 3 | F54: Semi | G54: 1 | H54: A | I54: Scott Peterson | J54: 2 | K54: 3 | N54: 1 | R54: 0 | S54: 1 | T54: 20 | U54: 15 | V54: 71.5 | Z54: Emilee Pope | AA54: 270
A55: Abi Carlson | B55: DAC1 | C55: Dallas | D55: 2014-2015 | E55: 3 | F55: Semi | G55: 2 | H55: H | I55: Jeremy Swingle | J55: 2 | K55: 3 | R55: 0 | S55: 1 | T55: 20 | U55: 20 | V55: 71.5 | Z55: Aidan McKee | AA55: 250
A56: Abi Carlson | B56: DAC1 | C56: Dallas | D56: 2014-2015 | E56: 2 | F56: Semi | G56: 2 | H56: F | I56: Jeremy Swingle | J56: 2 | K56: 2 | R56: 0 | S56: 0 | T56: 30 | U56: 30 | V56: 71.5 | Z56: Kendra Gross | AA56: 240
A57: Abi Carlson | B57: DAC1 | C57: Dallas | D57: 2014-2015 | E57: 4 | F57: Pre | G57: 2 | H57: 34 | I57: Jeremy Swingle | J57: 3 | K57: 3 | R57: 0 | S57: 1 | T57: 40 | U57: 40 | V57: 71.5 | Z57: Ruth Stuart | AA57: 250
A58: Abi Carlson | B58: DAC1 | C58: Dallas | D58: 2014-2015 | E58: 4 | F58: Semi | G58: 1 | H58: I | I58: Scott Peterson | J58: 3 | K58: 3 | R58: 0 | S58: 1 | T58: 40 | U58: 40 | V58: 71.5 | Z58: Isabel Bammer | AA58: 240
A59: Abi Carlson | B59: DAC1 | C59: Dallas | D59: 2014-2015 | E59: 1 | F59: Semi | G59: 1 | H59: J | I59: Scott Peterson | J59: 3 | K59: 3 | M59: 1 | R59: 0 | S59: 1 | T59: 40 | U59: 60 | V59: 71.5 | Z59: Esther Derr | AA59: 350
A60: Abi Carlson | B60: DAC1 | C60: Dallas | D60: 2014-2015 | E60: 4 | F60: Pre | G60: 2 | H60: 42 | I60: Jeremy Swingle | J60: 3 | K60: 2 | R60: 0 | S60: 0 | T60: 50 | U60: 50 | V60: 71.5 | Z60: Zoe Walters | AA60: 280
A61: Abi Carlson | B61: DAC1 | C61: Dallas | D61: 2014-2015 | E61: 2 | F61: Semi | G61: 1 | H61: B | I61: Scott Peterson | J61: 3 | K61: 2 | R61: 0 | S61: 0 | T61: 50 | U61: 50 | V61: 71.5 | Z61: Daniel Newman | AA61: 270
A62: Abi Carlson | B62: DAC1 | C62: Dallas | D62: 2014-2015 | E62: 4 | F62: Semi | G62: 2 | H62: F | I62: Jeremy Swingle | J62: 3 | K62: 2 | M62: 1 | R62: 0 | S62: 0 | T62: 50 | U62: 70 | V62: 71.5 | Z62: Daniel Emme | AA62: 200
A63: Abi Carlson | B63: DAC1 | C63: Dallas | D63: 2014-2015 | E63: 3 | F63: Pre | G63: 1 | H63: 5 | I63: Scott Peterson | J63: 4 | K63: 2 | R63: 1 | S63: 0 | T63: 70 | U63: 70 | V63: 71.5 | Z63: Jason Small | AA63: 180
A64: Abi Carlson | B64: DAC1 | C64: Dallas | D64: 2014-2015 | E64: 2 | F64: Pre | G64: 1 | H64: 21 | I64: Scott Peterson | J64: 4 | K64: 2 | M64: 1 | R64: 1 | S64: 0 | T64: 70 | U64: 90 | V64: 71.5 | Z64: Camden Kositzky | AA64: 160
A65: Abi Carlson | B65: DAC1 | C65: Dallas | D65: 2014-2015 | E65: 3 | F65: Pre | G65: 2 | H65: 22 | I65: Jeremy Swingle | J65: 4 | K65: 2 | M65: 1 | R65: 1 | S65: 0 | T65: 70 | U65: 90 | V65: 71.5 | Z65: Makya Warren | AA65: 160
A66: Abi Carlson | B66: DAC1 | C66: Dallas | D66: 2014-2015 | E66: 1 | F66: Pre | G66: 2 | H66: 26 | I66: Jeremy Swingle | J66: 4 | K66: 2 | R66: =IF(J66=4,1,0) -> 1 | S66: =IF(K66=3,1,0) -> 0 | T66: 70 | U66: =T66+M66*(20) + (SUM(O66:Q66)*(10)) - L66*(5) - N66*(5) -> 70 | V66: =AVERAGEIFS(U:U,A:A,A66,F:F,"Pre") -> 71.5 | Z66: Miriam Van Bergeyk | AA66: 120
A67: Abi Carlson | B67: DAC1 | C67: Dallas | D67: 2014-2015 | E67: 2 | F67: Pre | G67: 3 | H67: 31 | I67: Tiffany Bye | J67: 4 | K67: 2 | R67: 1 | S67: 0 | T67: 70 | U67: 70 | V67: 71.5 | Z67: Becca Derr | AA67: 200
A68: Abi Carlson | B68: DAC1 | C68: Dallas | D68: 2014-2015 | E68: 1 | F68: Pre | G68: 3 | H68: 43 | I68: Tiffany Bye | J68: 4 | K68: 2 | O68: 1 | R68: 1 | S68: 0 | T68: 70 | U68: 80 | V68: 71.5 | Z68: Rachel Wallace | AA68: 120
A69: Abi Carlson | B69: DAC1 | C69: Dallas | D69: 2014-2015 | E69: 1 | F69: Semi | G69: 1 | H69: D | I69: Scott Peterson | J69: 4 | K69: 2 | R69: 1 | S69: 0 | T69: 70 | U69: 70 | V69: 71.5 | Z69: Aaron Maier | AA69: 120
A70: Abi Carlson | B70: DAC1 | C70: Dallas | D70: 2014-2015 | E70: 4 | F70: Pre | G70: 3 | H70: 7 | I70: Tony Kong | J70: 4 | K70: 1 | R70: 1 | S70: 0 | T70: 80 | U70: 80 | V70: 71.5 | Z70: Lexi Swanson | AA70: 100
A71: Abi Carlson | B71: DAC1 | C71: Dallas | D71: 2014-2015 | E71: 1 | F71: Pre | G71: 2 | H71: 10 | I71: Jeremy Swingle | J71: 4 | K71: 1 | R71: 1 | S71: 0 | T71: 80 | U71: 80 | V71: 71.5 | Z71: Annie McKee | AA71: 80
A72: Abi Carlson | B72: DAC1 | C72: Dallas | D72: 2014-2015 | E72: 2 | F72: Pre | G72: 2 | H72: 14 | I72: Jeremy Swingle | J72: 4 | K72: 1 | R72: 1 | S72: 0 | T72: 80 | U72: 80 | V72: 71.5 | Z72: Maddy Cliffe | AA72: 60
A73: Abi Carlson | B73: DAC1 | C73: Dallas | D73: 2014-2015 | E73: 4 | F73: Pre | G73: 4 | H73: 16 | I73: Cutty Welt | J73: 4 | K73: 1 | R73: 1 | S73: 0 | T73: 80 | U73: 80 | V73: 71.5 | Z73: Skotland Hammerstrom | AA73: 70
A74: Abi Carlson | B74: DAC1 | C74: Dallas | D74: 2014-2015 | E74: 4 | F74: Pre | G74: 4 | H74: 24 | I74: Cutty Welt | J74: 4 | K74: 1 | R74: 1 | S74: 0 | T74: 80 | U74: 80 | V74: 71.5 | Z74: Melinda Borden | AA74: 60
A75: Abi Carlson | B75: DAC1 | C75: Dallas | D75: 2014-2015 | E75: 3 | F75: Pre | G75: 1 | H75: 29 | I75: Scott Peterson | J75: 4 | K75: 1 | R75: 1 | S75: 0 | T75: 80 | U75: 80 | V75: 71.5 | Z75: Emily Van Bergeyk | AA75: 60
A76: Abi Carlson | B76: DAC1 | C76: Dallas | D76: 2014-2015 | E76: 4 | F76: Pre | G76: 1 | H76: 49 | I76: Scott Peterson | J76: 4 | K76: 1 | R76: 1 | S76: 0 | T76: 80 | U76: 80 | V76: 71.5 | Z76: Ruby Borden | AA76: 80
A77: Abi Carlson | B77: DAC1 | C77: Dallas | D77: 2014-2015 | E77: 1 | F77: Semi | G77: 1 | H77: B | I77: Scott Peterson | J77: 4 | K77: 1 | R77: 1 | S77: 0 | T77: 80 | U77: 80 | V77: 71.5 | Z77: Isaiah Magnuson | AA77: 40
A78: Abi Carlson | B78: DAC1 | C78: Dallas | D78: 2014-2015 | E78: 4 | F78: Semi | G78: 2 | H78: H | I78: Jeremy Swingle | J78: 4 | K78: 1 | R78: 1 | S78: 0 | T78: 80 | U78: 80 | V78: 71.5 | Z78: David Swindler | AA78: 70
A79: Abi Carlson | B79: DAC1 | C79: Dallas | D79: 2014-2015 | E79: 1 | F79: Semi | G79: 1 | H79: J | I79: Scott Peterson | J79: 4 | K79: 1 | R79: 1 | S79: 0 | T79: 80 | U79: 80 | V79: 71.5 | Z79: Lam Dang | AA79: 40
A80: Abi Carlson | B80: DAC1 | C80: Dallas | D80: 2014-2015 | E80: 1 | F80: Semi | G80: 1 | H80: J | I80: Scott Peterson | J80: 4 | K80: 1 | R80: 1 | S80: 0 | T80: 80 | U80: 80 | V80: 71.5 | Z80: Abigail Van Doorne | AA80: 60
A81: Abi Carlson | B81: DAC1 | C81: Dallas | D81: 2014-2015 | E81: 1 | F81: Pre | G81: 4 | H81: 4 | I81: Cutty Welt | J81: 4 | K81: 0 | R81: 1 | S81: 0 | T81: 90 | U81: 90 | V81: 71.5 | Z81: Eliana Swindler | AA81: 40
A82: Abi Carlson | B82: DAC1 | C82: Dallas | D82: 2014-2015 | E82: 1 | F82: Pre | G82: 3 | H82: 15 | I82: Tiffany Bye | J82: 4 | K82: 0 | R82: 1 | S82: 0 | T82: 90 | U82: 90 | V82: 71.5 | Z82: Joshua Miller | AA82: 40
A83: Abi Carlson | B83: DAC1 | C83: Dallas | D83: 2014-2015 | E83: 3 | F83: Pre | G83: 3 | H83: 15 | I83: Tiffany Bye | J83: 4 | K83: 0 | M83: 1 | R83: 1 | S83: 0 | T83: 90 | U83: 110 | V83: 71.5 | Z83: Emma Madsen | AA83: 30
A84: Abi Carlson | B84: DAC1 | C84: Dallas | D84: 2014-2015 | E84: 1 | F84: Pre | G84: 1 | H84: 33 | I84: Scott Peterson | J84: 4 | K84: 0 | R84: 1 | S84: 0 | T84: 90 | U84: 90 | V84: 71.5 | Z84: Jonathon Derr | AA84: 30
A85: Abi Carlson | B85: DAC1 | C85: Dallas | D85: 2014-2015 | E85: 2 | F85: Pre | G85: 1 | H85: 45 | I85: Scott Peterson | J85: 4 | K85: 0 | R85: 1 | S85: 0 | T85: 90 | U85: 90 | V85: 71.5 | Z85: Jonathan Steinke | AA85: 20
A86: Abi Carlson | B86: DAC1 | C86: Dallas | D86: 2014-2015 | E86: 3 | F86: Pre | G86: 2 | H86: 46 | I86: Jeremy Swingle | J86: 4 | K86: 0 | R86: 1 | S86: 0 | T86: 90 | U86: 90 | V86: 71.5 | Z86: Calvin Baker | AA86: 20
A87: Abi Carlson | B87: DAC1 | C87: Dallas | D87: 2014-2015 | E87: 3 | F87: Semi | G87: 2 | H87: F | I87: Jeremy Swingle | J87: 4 | K87: 0 | M87: 1 | R87: 1 | S87: 0 | T87: 90 | U87: 110 | V87: 71.5 | Z87: Emily Ashcraft | AA87: 20
A88: Abi Carlson | B88: DAC1 | C88: Dallas | D88: 2014-2015 | E88: 5 | F88: Pre | G88: 3 | H88: 11 | I88: Tony Kong | J88: 4 | K88: 1 | M88: 1 | R88: 1 | S88: 0 | T88: 80 | U88: 100 | V88: 71.5 | Z88: Jacob Pope | AA88: 20
A89: Abi Carlson | B89: DAC1 | C89: Dallas | D89: 2014-2015 | E89: 5 | F89: Pre | G89: 3 | H89: 23 | I89: Tony Kong | J89: 4 | K89: 2 | N89: 1 | R89: 1 | S89: 0 | T89: 70 | U89: 65 | V89: 71.5 | Z89: Tyler Marchese | AA89: 20
A90: Abi Carlson | B90: DAC1 | C90: Dallas | D90: 2014-2015 | E90: 5 | F90: Pre | G90: 4 | H90: 28 | I90: Cutty Welt | J90: 4 | K90: 0 | R90: 1 | S90: 0 | T90: 90 | U90: 90 | V90: 71.5 | Z90: Johnathan Lehrkind | AA90: 20
A91: Abi Carlson | B91: DAC1 | C91: Dallas | D91: 2014-2015 | E91: 5 | F91: Pre | G91: 1 | H91: 33 | I91: Scott Peterson | J91: 4 | K91: 0 | R91: 1 | S91: 0 | T91: 90 | U91: 90 | V91: 71.5 | Z91: Anna Magnuson | AA91: =SUMIFS(T:T,A:A,Z91,E:E,5) -> 40
A92: Abi Carlson | B92: DAC1 | C92: Dallas | D92: 2014-2015 | E92: 5 | F92: Pre | G92: 2 | H92: 42 | I92: Jeremy Swingle | J92: 3 | K92: 3 | R92: 0 | S92: 1 | T92: 40 | U92: 40 | V92: 71.5 | Z92: JoePaul Appockal | AA92: 20
A93: Abi Carlson | B93: DAC1 | C93: Dallas | D93: 2014-2015 | E93: 5 | F93: Pre | G93: 1 | H93: 49 | I93: Scott Peterson | J93: 3 | K93: 3 | R93: 0 | S93: 1 | T93: 40 | U93: 40 | V93: 71.5 | Z93: Natalie Crabtree | AA93: 20
A94: Abi Carlson | B94: DAC1 | C94: Dallas | D94: 2014-2015 | E94: 5 | F94: Semi | G94: 1 | H94: B | I94: Scott Peterson | J94: 0 | K94: 3 | R94: 0 | S94: 1 | T94: -20 | U94: -20 | V94: 71.5 | Z94: Micah Magnuson | AA94: 20
A95: Abi Carlson | B95: DAC1 | C95: Dallas | D95: 2014-2015 | E95: 5 | F95: Semi | G95: 2 | H95: F | I95: Jeremy Swingle | J95: 1 | K95: 3 | R95: 0 | S95: 1 | T95: 0 | U95: 0 | V95: 71.5 | Z95: Tyler Slothower | AA95: 10
A96: Abigail Taw | B96: ABC2 | C96: ABC | D96: 2014-2015 | E96: 4 | F96: Pre | G96: 2 | H96: 26 | I96: Jeremy Swingle | J96: 0 | K96: 3 | R96: 0 | S96: 1 | T96: -20 | U96: -20 | V96: 69.83333333 | Z96: Sabrina Kelsey | AA96: 20
A97: Abigail Taw | B97: ABC2 | C97: ABC | D97: 2014-2015 | E97: 1 | F97: Semi | G97: 1 | H97: I | I97: Scott Peterson | J97: 0 | K97: 3 | R97: 0 | S97: 1 | T97: -20 | U97: -20 | V97: 69.83333333 | Z97: Roshan Truax | AA97: 20
A98: Abigail Taw | B98: ABC2 | C98: ABC | D98: 2014-2015 | E98: 1 | F98: Pre | G98: 2 | H98: 10 | I98: Jeremy Swingle | J98: 0 | K98: 1 | R98: 0 | S98: 0 | T98: 0 | U98: 0 | V98: 69.83333333 | Z98: Bryanna Hurd | AA98: 0
A99: Abigail Taw | B99: ABC2 | C99: ABC | D99: 2014-2015 | E99: 3 | F99: Semi | G99: 1 | H99: B | I99: Scott Peterson | J99: 1 | K99: 3 | R99: 0 | S99: 1 | T99: 0 | U99: 0 | V99: 69.83333333 | Z99: Iliana Hammerstrom | AA99: 0
A100: Abigail Taw | B100: ABC2 | C100: ABC | D100: 2014-2015 | E100: 1 | F100: Semi | G100: 1 | H100: D | I100: Scott Peterson | J100: 0 | K100: 0 | N100: 1 | R100: 0 | S100: 0 | T100: 0 | U100: -5 | V100: 69.83333333 | Z100: Deborah Dvorak | AA100: 0
A101: Abigail Taw | B101: ABC2 | C101: ABC | D101: 2014-2015 | E101: 2 | F101: Semi | G101: 1 | H101: J | I101: Scott Peterson | J101: 0 | K101: 1 | M101: 1 | R101: 0 | S101: 0 | T101: 0 | U101: 20 | V101: 69.83333333 | Z101: Joseph Winters | AA101: 0
A102: Abigail Taw | B102: ABC2 | C102: ABC | D102: 2014-2015 | E102: 1 | F102: Pre | G102: 1 | H102: 1 | I102: Scott Peterson | J102: 1 | K102: 2 | R102: 0 | S102: 0 | T102: 10 | U102: 10 | V102: 69.83333333 | Z102: Kate Sweborg | AA102: 0
A103: Abigail Taw | B103: ABC2 | C103: ABC | D103: 2014-2015 | E103: 4 | F103: Pre | G103: 3 | H103: 43 | I103: Tony Kong | J103: 1 | K103: 2 | M103: 1 | R103: 0 | S103: 0 | T103: 10 | U103: 30 | V103: 69.83333333 | Z103: Blake Camacho | AA103: 0
A104: Abigail Taw | B104: ABC2 | C104: ABC | D104: 2014-2015 | E104: 2 | F104: Semi | G104: 1 | H104: J | I104: Scott Peterson | J104: 1 | K104: 2 | R104: 0 | S104: 0 | T104: 10 | U104: 10 | V104: 69.83333333 | Z104: Kaden Meredith | AA104: 0
A105: Abigail Taw | B105: ABC2 | C105: ABC | D105: 2014-2015 | E105: 2 | F105: Pre | G105: 2 | H105: 38 | I105: Jeremy Swingle | J105: 1 | K105: 1 | N105: 1 | R105: 0 | S105: 0 | T105: 20 | U105: 15 | V105: 69.83333333 | Z105: Colton Berge | AA105: 0
A106: Abigail Taw | B106: ABC2 | C106: ABC | D106: 2014-2015 | E106: 4 | F106: Pre | G106: 3 | H106: 11 | I106: Tony Kong | J106: 3 | K106: 3 | R106: 0 | S106: 1 | T106: 40 | U106: 40 | V106: 69.83333333 | Z106: Ruby McClung | AA106: 0
A107: Abigail Taw | B107: ABC2 | C107: ABC | D107: 2014-2015 | E107: 1 | F107: Pre | G107: 4 | H107: 36 | I107: Cutty Welt | J107: 3 | K107: 3 | R107: 0 | S107: 1 | T107: 40 | U107: 40 | V107: 69.83333333 | Z107: Danny Herzog | AA107: 0
A108: Abigail Taw | B108: ABC2 | C108: ABC | D108: 2014-2015 | E108: 3 | F108: Semi | G108: 2 | H108: F | I108: Jeremy Swingle | J108: 3 | K108: 3 | R108: 0 | S108: 1 | T108: 40 | U108: 40 | V108: 69.83333333 | Z108: Ethan Shipps | AA108: 0
A109: Abigail Taw | B109: ABC2 | C109: ABC | D109: 2014-2015 | E109: 1 | F109: Semi | G109: 1 | H109: G | I109: Scott Peterson | J109: 2 | K109: 0 | M109: 1 | R109: 0 | S109: 0 | T109: 40 | U109: 60 | V109: 69.83333333 | Z109: Ha Tien Nguyen | AA109: -10
A110: Abigail Taw | B110: ABC2 | C110: ABC | D110: 2014-2015 | E110: 4 | F110: Semi | G110: 2 | H110: F | I110: Jeremy Swingle | J110: 3 | K110: 2 | N110: 1 | R110: 0 | S110: 0 | T110: 50 | U110: 45 | V110: 69.83333333
A111: Abigail Taw | B111: ABC2 | C111: ABC | D111: 2014-2015 | E111: 2 | F111: Pre | G111: 4 | H111: 48 | I111: Cutty Welt | J111: 3 | K111: 0 | R111: 0 | S111: 0 | T111: 60 | U111: 60 | V111: 69.83333333
A112: Abigail Taw | B112: ABC2 | C112: ABC | D112: 2014-2015 | E112: 2 | F112: Pre | G112: 1 | H112: 5 | I112: Scott Peterson | J112: 4 | K112: 2 | R112: 1 | S112: 0 | T112: =quizscore(J112,K112) -> 70 | U112: 70 | V112: 69.83333333
A113: Abigail Taw | B113: ABC2 | C113: ABC | D113: 2014-2015 | E113: 4 | F113: Pre | G113: 4 | H113: 16 | I113: Cutty Welt | J113: 4 | K113: 2 | R113: 1 | S113: 0 | T113: 70 | U113: 70 | V113: 69.83333333
A114: Abigail Taw | B114: ABC2 | C114: ABC | D114: 2014-2015 | E114: 2 | F114: Pre | G114: 2 | H114: 22 | I114: Jeremy Swingle | J114: 4 | K114: 2 | M114: 1 | R114: 1 | S114: 0 | T114: 70 | U114: 90 | V114: 69.83333333
A115: Abigail Taw | B115: ABC2 | C115: ABC | D115: 2014-2015 | E115: 3 | F115: Pre | G115: 3 | H115: 35 | I115: Tiffany Bye | J115: 4 | K115: 2 | R115: 1 | S115: 0 | T115: 70 | U115: 70 | V115: 69.83333333
A116: Abigail Taw | B116: ABC2 | C116: ABC | D116: 2014-2015 | E116: 4 | F116: Pre | G116: 4 | H116: 4 | I116: Cutty Welt | J116: 4 | K116: 1 | R116: 1 | S116: 0 | T116: 80 | U116: 80 | V116: 69.83333333
A117: Abigail Taw | B117: ABC2 | C117: ABC | D117: 2014-2015 | E117: 3 | F117: Pre | G117: 3 | H117: 7 | I117: Tiffany Bye | J117: 4 | K117: 1 | O117: 1 | R117: 1 | S117: 0 | T117: 80 | U117: 90 | V117: 69.83333333
A118: Abigail Taw | B118: ABC2 | C118: ABC | D118: 2014-2015 | E118: 2 | F118: Semi | G118: 1 | H118: A | I118: Scott Peterson | J118: 4 | K118: 1 | N118: 1 | R118: 1 | S118: 0 | T118: 80 | U118: 75 | V118: 69.83333333
A119: Abigail Taw | B119: ABC2 | C119: ABC | D119: 2014-2015 | E119: 2 | F119: Semi | G119: 1 | H119: D | I119: Scott Peterson | J119: 4 | K119: 1 | L119: 1 | R119: 1 | S119: 0 | T119: 80 | U119: 75 | V119: 69.83333333
A120: Abigail Taw | B120: ABC2 | C120: ABC | D120: 2014-2015 | E120: 3 | F120: Pre | G120: 2 | H120: 14 | I120: Jeremy Swingle | J120: 4 | K120: 0 | R120: 1 | S120: 0 | T120: 90 | U120: 90 | V120: 69.83333333
A121: Abigail Taw | B121: ABC2 | C121: ABC | D121: 2014-2015 | E121: 2 | F121: Pre | G121: 3 | H121: 15 | I121: Tiffany Bye | J121: 4 | K121: 0 | R121: 1 | S121: 0 | T121: 90 | U121: 90 | V121: 69.83333333
A122: Abigail Taw | B122: ABC2 | C122: ABC | D122: 2014-2015 | E122: 1 | F122: Pre | G122: 3 | H122: 19 | I122: Tiffany Bye | J122: 4 | K122: 0 | R122: 1 | S122: 0 | T122: 90 | U122: 90 | V122: 69.83333333
A123: Abigail Taw | B123: ABC2 | C123: ABC | D123: 2014-2015 | E123: 4 | F123: Pre | G123: 1 | H123: 21 | I123: Scott Peterson | J123: 4 | K123: 0 | M123: 1 | R123: 1 | S123: 0 | T123: 90 | U123: 110 | V123: 69.83333333
A124: Abigail Taw | B124: ABC2 | C124: ABC | D124: 2014-2015 | E124: 3 | F124: Pre | G124: 1 | H124: 25 | I124: Tiffany Bye | J124: 4 | K124: 0 | R124: 1 | S124: 0 | T124: 90 | U124: 90 | V124: 69.83333333
A125: Abigail Taw | B125: ABC2 | C125: ABC | D125: 2014-2015 | E125: 1 | F125: Pre | G125: 4 | H125: 32 | I125: Cutty Welt | J125: 4 | K125: 0 | R125: 1 | S125: 0 | T125: 90 | U125: 90 | V125: 69.83333333
A126: Abigail Taw | B126: ABC2 | C126: ABC | D126: 2014-2015 | E126: 2 | F126: Pre | G126: 4 | H126: 32 | I126: Cutty Welt | J126: 4 | K126: 0 | R126: 1 | S126: 0 | T126: 90 | U126: 90 | V126: 69.83333333
A127: Abigail Taw | B127: ABC2 | C127: ABC | D127: 2014-2015 | E127: 1 | F127: Pre | G127: 1 | H127: 41 | I127: Scott Peterson | J127: 4 | K127: 0 | M127: 1 | R127: 1 | S127: 0 | T127: 90 | U127: 110 | V127: 69.83333333
A128: Abigail Taw | B128: ABC2 | C128: ABC | D128: 2014-2015 | E128: 3 | F128: Pre | G128: 1 | H128: 41 | I128: Scott Peterson | J128: 4 | K128: 0 | L128: 1 | M128: 1 | N128: 1 | R128: 1 | S128: 0 | T128: 90 | U128: 100 | V128: 69.83333333
A129: Abigail Taw | B129: ABC2 | C129: ABC | D129: 2014-2015 | E129: 3 | F129: Pre | G129: 2 | H129: 50 | I129: Jeremy Swingle | J129: 4 | K129: 0 | R129: 1 | S129: 0 | T129: 90 | U129: 90 | V129: 69.83333333
A130: Abigail Taw | B130: ABC2 | C130: ABC | D130: 2014-2015 | E130: 1 | F130: Semi | G130: 1 | H130: A | I130: Scott Peterson | J130: 4 | K130: 0 | R130: =IF(J130=4,1,0) -> 1 | S130: =IF(K130=3,1,0) -> 0 | T130: 90 | U130: =T130+M130*(20) + (SUM(O130:Q130)*(10)) - L130*(5) - N130*(5) -> 90 | V130: =AVERAGEIFS(U:U,A:A,A130,F:F,"Pre") -> 69.83333333
A131: Abigail Taw | B131: ABC2 | C131: ABC | D131: 2014-2015 | E131: 4 | F131: Semi | G131: 1 | H131: C | I131: Scott Peterson | J131: 4 | K131: 0 | R131: 1 | S131: 0 | T131: 90 | U131: 90 | V131: 69.83333333
A132: Abigail Taw | B132: ABC2 | C132: ABC | D132: 2014-2015 | E132: 5 | F132: Pre | G132: 1 | H132: 1 | I132: Scott Peterson | J132: 2 | K132: 1 | R132: 0 | S132: 0 | T132: 40 | U132: 40 | V132: 69.83333333
A133: Abigail Taw | B133: ABC2 | C133: ABC | D133: 2014-2015 | E133: 5 | F133: Pre | G133: 4 | H133: 8 | I133: Cutty Welt | J133: 4 | K133: 0 | R133: 1 | S133: 0 | T133: 90 | U133: 90 | V133: 69.83333333
A134: Abigail Taw | B134: ABC2 | C134: ABC | D134: 2014-2015 | E134: 5 | F134: Pre | G134: 2 | H134: 14 | I134: Jeremy Swingle | J134: 4 | K134: 1 | R134: 1 | S134: 0 | T134: 80 | U134: 80 | V134: 69.83333333
A135: Abigail Taw | B135: ABC2 | C135: ABC | D135: 2014-2015 | E135: 5 | F135: Pre | G135: 3 | H135: 27 | I135: Tony Kong | J135: 4 | K135: 0 | R135: 1 | S135: 0 | T135: 90 | U135: 90 | V135: 69.83333333
A136: Abigail Taw | B136: ABC2 | C136: ABC | D136: 2014-2015 | E136: 5 | F136: Pre | G136: 3 | H136: 39 | I136: Tony Kong | J136: 4 | K136: 0 | R136: 1 | S136: 0 | T136: 90 | U136: 90 | V136: 69.83333333
A137: Abigail Taw | B137: ABC2 | C137: ABC | D137: 2014-2015 | E137: 5 | F137: Pre | G137: 1 | H137: 45 | I137: Scott Peterson | J137: 4 | K137: 0 | M137: 1 | R137: 1 | S137: 0 | T137: 90 | U137: 110 | V137: 69.83333333
A138: Abigail Taw | B138: ABC2 | C138: ABC | D138: 2014-2015 | E138: 5 | F138: Semi | G138: 1 | H138: C | I138: Scott Peterson | J138: 3 | K138: 2 | R138: 0 | S138: 0 | T138: 50 | U138: 50 | V138: 69.83333333
A139: Abigail Taw | B139: ABC2 | C139: ABC | D139: 2014-2015 | E139: 5 | F139: Semi | G139: 2 | H139: F | I139: Jeremy Swingle | J139: 4 | K139: 1 | R139: 1 | S139: 0 | T139: 80 | U139: 80 | V139: 69.83333333
A140: Abigail Taw | B140: ABC2 | C140: ABC | D140: 2014-2015 | E140: 5 | F140: Semi | G140: 2 | H140: H | I140: Jeremy Swingle | J140: 4 | K140: 1 | R140: 1 | S140: 0 | T140: 80 | U140: 80 | V140: 69.83333333
A141: Abigail Taw | B141: ABC2 | C141: ABC | D141: 2014-2015 | E141: 5 | F141: Semi | G141: 1 | H141: I | I141: Scott Peterson | J141: 4 | K141: 1 | R141: 1 | S141: 0 | T141: 80 | U141: 80 | V141: 69.83333333
A142: Abigail Van Doorne | B142: CH1 | C142: Chapel Hill | D142: 2014-2015 | E142: 2 | F142: Pre | G142: 4 | H142: 4 | I142: Cutty Welt | J142: 0 | K142: 0 | L142: 1 | R142: 0 | S142: 0 | T142: 0 | U142: -5 | V142: 5.166666667
A143: Abigail Van Doorne | B143: CH1 | C143: Chapel Hill | D143: 2014-2015 | E143: 3 | F143: Pre | G143: 4 | H143: 4 | I143: Cutty Welt | J143: 0 | K143: 0 | R143: 0 | S143: 0 | T143: 0 | U143: 0 | V143: 5.166666667
A144: Abigail Van Doorne | B144: CH1 | C144: Chapel Hill | D144: 2014-2015 | E144: 1 | F144: Pre | G144: 4 | H144: 8 | I144: Cutty Welt | J144: 0 | K144: 0 | R144: 0 | S144: 0 | T144: 0 | U144: 0 | V144: 5.166666667
A145: Abigail Van Doorne | B145: CH1 | C145: Chapel Hill | D145: 2014-2015 | E145: 4 | F145: Pre | G145: 2 | H145: 10 | I145: Jeremy Swingle | J145: 0 | K145: 0 | R145: 0 | S145: 0 | T145: 0 | U145: 0 | V145: 5.166666667
A146: Abigail Van Doorne | B146: CH1 | C146: Chapel Hill | D146: 2014-2015 | E146: 2 | F146: Pre | G146: 3 | H146: 11 | I146: Tiffany Bye | J146: 0 | K146: 0 | R146: 0 | S146: 0 | T146: 0 | U146: 0 | V146: 5.166666667
A147: Abigail Van Doorne | B147: CH1 | C147: Chapel Hill | D147: 2014-2015 | E147: 3 | F147: Pre | G147: 4 | H147: 12 | I147: Cutty Welt | J147: 0 | K147: 0 | R147: 0 | S147: 0 | T147: 0 | U147: 0 | V147: 5.166666667
A148: Abigail Van Doorne | B148: CH1 | C148: Chapel Hill | D148: 2014-2015 | E148: 1 | F148: Pre | G148: 2 | H148: 14 | I148: Jeremy Swingle | J148: 0 | K148: 0 | M148: 1 | R148: 0 | S148: 0 | T148: 0 | U148: 20 | V148: 5.166666667
A149: Abigail Van Doorne | B149: CH1 | C149: Chapel Hill | D149: 2014-2015 | E149: 4 | F149: Pre | G149: 3 | H149: 15 | I149: Tony Kong | J149: 0 | K149: 0 | R149: 0 | S149: 0 | T149: 0 | U149: 0 | V149: 5.166666667
A150: Abigail Van Doorne | B150: CH1 | C150: Chapel Hill | D150: 2014-2015 | E150: 3 | F150: Pre | G150: 2 | H150: 18 | I150: Jeremy Swingle | J150: 0 | K150: 0 | M150: 1 | R150: 0 | S150: 0 | T150: 0 | U150: 20 | V150: 5.166666667
A151: Abigail Van Doorne | B151: CH1 | C151: Chapel Hill | D151: 2014-2015 | E151: 2 | F151: Pre | G151: 3 | H151: 19 | I151: Tiffany Bye | J151: 0 | K151: 1 | R151: 0 | S151: 0 | T151: 0 | U151: 0 | V151: 5.166666667
A152: Abigail Van Doorne | B152: CH1 | C152: Chapel Hill | D152: 2014-2015 | E152: 1 | F152: Pre | G152: 3 | H152: 27 | I152: Tiffany Bye | J152: 0 | K152: 0 | R152: 0 | S152: 0 | T152: 0 | U152: 0 | V152: 5.166666667
A153: Abigail Van Doorne | B153: CH1 | C153: Chapel Hill | D153: 2014-2015 | E153: 3 | F153: Pre | G153: 3 | H153: 27 | I153: Tiffany Bye | J153: 0 | K153: 1 | R153: 0 | S153: 0 | T153: 0 | U153: 0 | V153: 5.166666667
A154: Abigail Van Doorne | B154: CH1 | C154: Chapel Hill | D154: 2014-2015 | E154: 2 | F154: Pre | G154: 1 | H154: 29 | I154: Scott Peterson | J154: 0 | K154: 0 | R154: 0 | S154: 0 | T154: 0 | U154: 0 | V154: 5.166666667
A155: Abigail Van Doorne | B155: CH1 | C155: Chapel Hill | D155: 2014-2015 | E155: 4 | F155: Pre | G155: 2 | H155: 30 | I155: Jeremy Swingle | J155: 0 | K155: 0 | R155: 0 | S155: 0 | T155: 0 | U155: 0 | V155: 5.166666667
A156: Abigail Van Doorne | B156: CH1 | C156: Chapel Hill | D156: 2014-2015 | E156: 3 | F156: Pre | G156: 1 | H156: 33 | I156: Scott Peterson | J156: 0 | K156: 1 | R156: 0 | S156: 0 | T156: 0 | U156: 0 | V156: 5.166666667
A157: Abigail Van Doorne | B157: CH1 | C157: Chapel Hill | D157: 2014-2015 | E157: 2 | F157: Pre | G157: 4 | H157: 40 | I157: Cutty Welt | J157: 0 | K157: 0 | L157: 1 | M157: 1 | R157: 0 | S157: 0 | T157: 0 | U157: 15 | V157: 5.166666667
A158: Abigail Van Doorne | B158: CH1 | C158: Chapel Hill | D158: 2014-2015 | E158: 3 | F158: Pre | G158: 1 | H158: 41 | I158: Scott Peterson | J158: 0 | K158: 1 | R158: 0 | S158: 0 | T158: 0 | U158: 0 | V158: 5.166666667
A159: Abigail Van Doorne | B159: CH1 | C159: Chapel Hill | D159: 2014-2015 | E159: 1 | F159: Pre | G159: 3 | H159: 43 | I159: Tiffany Bye | J159: 0 | K159: 1 | R159: 0 | S159: 0 | T159: 0 | U159: 0 | V159: 5.166666667
A160: Abigail Van Doorne | B160: CH1 | C160: Chapel Hill | D160: 2014-2015 | E160: 1 | F160: Pre | G160: 1 | H160: 49 | I160: Scott Peterson | J160: 0 | K160: 0 | L160: 1 | R160: 0 | S160: 0 | T160: 0 | U160: -5 | V160: 5.166666667
A161: Abigail Van Doorne | B161: CH1 | C161: Chapel Hill | D161: 2014-2015 | E161: 1 | F161: ConA | G161: 2 | H161: A-A | I161: Jeremy Swingle | J161: 0 | K161: 0 | R161: 0 | S161: 0 | T161: 0 | U161: 0 | V161: 5.166666667
A162: Abigail Van Doorne | B162: CH1 | C162: Chapel Hill | D162: 2014-2015 | E162: 2 | F162: ConA | G162: 2 | H162: A-D | I162: Jeremy Swingle | J162: 0 | K162: 0 | R162: 0 | S162: 0 | T162: 0 | U162: 0 | V162: 5.166666667
A163: Abigail Van Doorne | B163: CH1 | C163: Chapel Hill | D163: 2014-2015 | E163: 1 | F163: ConA | G163: 3 | H163: A-E | I163: Tiffany Bye | J163: 0 | K163: 0 | L163: 1 | R163: 0 | S163: 0 | T163: 0 | U163: -5 | V163: 5.166666667
A164: Abigail Van Doorne | B164: CH1 | C164: Chapel Hill | D164: 2014-2015 | E164: 4 | F164: ConA | G164: 3 | H164: A-E | I164: Abby Ashcraft | J164: 0 | K164: 1 | R164: 0 | S164: 0 | T164: 0 | U164: 0 | V164: 5.166666667
A165: Abigail Van Doorne | B165: CH1 | C165: Chapel Hill | D165: 2014-2015 | E165: 1 | F165: ConA | G165: 3 | H165: A-H | I165: Tiffany Bye | J165: 0 | K165: 0 | R165: 0 | S165: 0 | T165: 0 | U165: 0 | V165: 5.166666667
A166: Abigail Van Doorne | B166: CH1 | C166: Chapel Hill | D166: 2014-2015 | E166: 4 | F166: ConA | G166: 3 | H166: A-H | I166: Abby Ashcraft | J166: 0 | K166: 0 | R166: 0 | S166: 0 | T166: 0 | U166: 0 | V166: 5.166666667
A167: Abigail Van Doorne | B167: CH1 | C167: Chapel Hill | D167: 2014-2015 | E167: 2 | F167: ConA | G167: 2 | H167: A-J | I167: Jeremy Swingle | J167: 0 | K167: 0 | R167: 0 | S167: 0 | T167: 0 | U167: 0 | V167: 5.166666667
A168: Abigail Van Doorne | B168: CH1 | C168: Chapel Hill | D168: 2014-2015 | E168: 3 | F168: ConB | G168: 4 | H168: B-3 | I168: Cutty Welt | J168: 0 | K168: 0 | R168: 0 | S168: 0 | T168: 0 | U168: 0 | V168: 5.166666667
A169: Abigail Van Doorne | B169: CH1 | C169: Chapel Hill | D169: 2014-2015 | E169: 3 | F169: ConB | G169: 4 | H169: B-J | I169: Cutty Welt | J169: 0 | K169: 1 | R169: 0 | S169: 0 | T169: 0 | U169: 0 | V169: 5.166666667
A170: Abigail Van Doorne | B170: CH1 | C170: Chapel Hill | D170: 2014-2015 | E170: 4 | F170: Pre | G170: 4 | H170: 24 | I170: Cutty Welt | J170: 1 | K170: 0 | L170: 1 | R170: 0 | S170: 0 | T170: 20 | U170: 15 | V170: 5.166666667
A171: Abigail Van Doorne | B171: CH1 | C171: Chapel Hill | D171: 2014-2015 | E171: 1 | F171: Pre | G171: 4 | H171: 36 | I171: Cutty Welt | J171: 1 | K171: 0 | R171: 0 | S171: 0 | T171: 20 | U171: 20 | V171: 5.166666667
A172: Abigail Van Doorne | B172: CH1 | C172: Chapel Hill | D172: 2014-2015 | E172: 4 | F172: Pre | G172: 1 | H172: 37 | I172: Scott Peterson | J172: 1 | K172: 0 | R172: 0 | S172: 0 | T172: 20 | U172: 20 | V172: 5.166666667
A173: Abigail Van Doorne | B173: CH1 | C173: Chapel Hill | D173: 2014-2015 | E173: 2 | F173: Pre | G173: 2 | H173: 46 | I173: Jeremy Swingle | J173: 1 | K173: 0 | R173: 0 | S173: 0 | T173: 20 | U173: 20 | V173: 5.166666667
A174: Abigail Van Doorne | B174: CH1 | C174: Chapel Hill | D174: 2014-2015 | E174: 4 | F174: Pre | G174: 4 | H174: 48 | I174: Cutty Welt | J174: 1 | K174: 0 | R174: 0 | S174: 0 | T174: 20 | U174: 20 | V174: 5.166666667
A175: Abigail Van Doorne | B175: CH1 | C175: Chapel Hill | D175: 2014-2015 | E175: 2 | F175: ConA | G175: 2 | H175: A-A | I175: Jeremy Swingle | J175: 1 | K175: 0 | O175: 1 | R175: 0 | S175: 0 | T175: 20 | U175: 30 | V175: 5.166666667
A176: Abigail Van Doorne | B176: CH1 | C176: Chapel Hill | D176: 2014-2015 | E176: 4 | F176: ConA | G176: 2 | H176: A-C | I176: Jeremy Swingle | J176: 1 | K176: 0 | L176: 1 | R176: 0 | S176: 0 | T176: =quizscore(J176,K176) -> 20 | U176: 15 | V176: 5.166666667
A177: Abigail Van Doorne | B177: CH1 | C177: Chapel Hill | D177: 2014-2015 | E177: 3 | F177: ConB | G177: 4 | H177: B-4 | I177: Cutty Welt | J177: 1 | K177: 0 | O177: 1 | R177: 0 | S177: 0 | T177: 20 | U177: 30 | V177: 5.166666667
A178: Abigail Van Doorne | B178: CH1 | C178: Chapel Hill | D178: 2014-2015 | E178: 3 | F178: ConB | G178: 4 | H178: B-2 | I178: Cutty Welt | J178: 2 | K178: 0 | R178: 0 | S178: 0 | T178: 40 | U178: 40 | V178: 5.166666667
A179: Abigail Van Doorne | B179: CH1 | C179: Chapel Hill | D179: 2014-2015 | E179: 5 | F179: Pre | G179: 1 | H179: 5 | I179: Scott Peterson | J179: 0 | K179: 0 | L179: 1 | R179: 0 | S179: 0 | T179: 0 | U179: -5 | V179: 5.166666667
A180: Abigail Van Doorne | B180: CH1 | C180: Chapel Hill | D180: 2014-2015 | E180: 5 | F180: Pre | G180: 4 | H180: 20 | I180: Cutty Welt | J180: 1 | K180: 0 | R180: 0 | S180: 0 | T180: 20 | U180: 20 | V180: 5.166666667
A181: Abigail Van Doorne | B181: CH1 | C181: Chapel Hill | D181: 2014-2015 | E181: 5 | F181: Pre | G181: 2 | H181: 26 | I181: Jeremy Swingle | J181: 0 | K181: 0 | R181: 0 | S181: 0 | T181: 0 | U181: 0 | V181: 5.166666667
A182: Abigail Van Doorne | B182: CH1 | C182: Chapel Hill | D182: 2014-2015 | E182: 5 | F182: Pre | G182: 2 | H182: 34 | I182: Jeremy Swingle | J182: 0 | K182: 0 | R182: 0 | S182: 0 | T182: 0 | U182: 0 | V182: 5.166666667
A183: Abigail Van Doorne | B183: CH1 | C183: Chapel Hill | D183: 2014-2015 | E183: 5 | F183: Pre | G183: 3 | H183: 39 | I183: Tony Kong | J183: 0 | K183: 1 | R183: 0 | S183: 0 | T183: 0 | U183: 0 | V183: 5.166666667
A184: Abigail Van Doorne | B184: CH1 | C184: Chapel Hill | D184: 2014-2015 | E184: 5 | F184: Pre | G184: 4 | H184: 48 | I184: Cutty Welt | J184: 0 | K184: 0 | R184: 0 | S184: 0 | T184: 0 | U184: 0 | V184: 5.166666667
A185: Abigail Van Doorne | B185: CH1 | C185: Chapel Hill | D185: 2014-2015 | E185: 5 | F185: ConA | G185: 2 | H185: A-C | I185: Jeremy Swingle | J185: 1 | K185: 0 | R185: 0 | S185: 0 | T185: 20 | U185: 20 | V185: 5.166666667
A186: Abigail Van Doorne | B186: CH1 | C186: Chapel Hill | D186: 2014-2015 | E186: 5 | F186: ConA | G186: 3 | H186: A-E | I186: Abby Ashcraft | J186: 0 | K186: 0 | R186: 0 | S186: 0 | T186: 0 | U186: 0 | V186: 5.166666667
A187: Abigail Van Doorne | B187: CH1 | C187: Chapel Hill | D187: 2014-2015 | E187: 5 | F187: ConA | G187: 3 | H187: A-H | I187: Abby Ashcraft | J187: 0 | K187: 1 | R187: 0 | S187: 0 | T187: 0 | U187: 0 | V187: 5.166666667
A188: Abigail Van Doorne | B188: CH1 | C188: =VLOOKUP(B188,$B$2:$C$3219,2,FALSE) -> Chapel Hill | D188: 2014-2015 | E188: 5 | F188: ConA | G188: 3 | H188: A-I | I188: Abby Ashcraft | J188: 1 | K188: 0 | R188: 0 | S188: 0 | T188: 20 | U188: 20 | V188: 5.166666667
A189: Aidan McKee | B189: LH5 | C189: Lighthouse | D189: 2014-2015 | E189: 1 | F189: Pre | G189: 3 | H189: 7 | I189: Tiffany Bye | J189: 0 | K189: 2 | R189: 0 | S189: 0 | T189: -10 | U189: -10 | V189: 26.5
A190: Aidan McKee | B190: LH5 | C190: Lighthouse | D190: 2014-2015 | E190: 2 | F190: Pre | G190: 2 | H190: 2 | I190: Jeremy Swingle | J190: 0 | K190: 0 | R190: 0 | S190: 0 | T190: 0 | U190: 0 | V190: 26.5
A191: Aidan McKee | B191: LH5 | C191: Lighthouse | D191: 2014-2015 | E191: 2 | F191: Pre | G191: 4 | H191: 8 | I191: Cutty Welt | J191: 0 | K191: 0 | M191: 1 | R191: 0 | S191: 0 | T191: 0 | U191: 20 | V191: 26.5
A192: Aidan McKee | B192: LH5 | C192: Lighthouse | D192: 2014-2015 | E192: 1 | F192: Pre | G192: 3 | H192: 15 | I192: Tiffany Bye | J192: 0 | K192: 0 | R192: 0 | S192: 0 | T192: 0 | U192: 0 | V192: 26.5
A193: Aidan McKee | B193: LH5 | C193: Lighthouse | D193: 2014-2015 | E193: 3 | F193: Pre | G193: 3 | H193: 15 | I193: Tiffany Bye | J193: 0 | K193: 0 | R193: 0 | S193: 0 | T193: 0 | U193: 0 | V193: 26.5
A194: Aidan McKee | B194: LH5 | C194: Lighthouse | D194: 2014-2015 | E194: 2 | F194: Pre | G194: 2 | H194: 22 | I194: Jeremy Swingle | J194: 0 | K194: 1 | R194: =IF(J194=4,1,0) -> 0 | S194: =IF(K194=3,1,0) -> 0 | T194: 0 | U194: =T194+M194*(20) + (SUM(O194:Q194)*(10)) - L194*(5) - N194*(5) -> 0 | V194: =AVERAGEIFS(U:U,A:A,A194,F:F,"Pre") -> 26.5
A195: Aidan McKee | B195: LH5 | C195: Lighthouse | D195: 2014-2015 | E195: 3 | F195: Pre | G195: 4 | H195: 24 | I195: Cutty Welt | J195: 0 | K195: 0 | N195: 1 | R195: 0 | S195: 0 | T195: 0 | U195: -5 | V195: 26.5
A196: Aidan McKee | B196: LH5 | C196: Lighthouse | D196: 2014-2015 | E196: 1 | F196: Pre | G196: 1 | H196: 29 | I196: Scott Peterson | J196: 0 | K196: 1 | R196: 0 | S196: 0 | T196: 0 | U196: 0 | V196: 26.5
A197: Aidan McKee | B197: LH5 | C197: Lighthouse | D197: 2014-2015 | E197: 3 | F197: Pre | G197: 2 | H197: 30 | I197: Jeremy Swingle | J197: 0 | K197: 0 | R197: 0 | S197: 0 | T197: 0 | U197: 0 | V197: 26.5
A198: Aidan McKee | B198: LH5 | C198: Lighthouse | D198: 2014-2015 | E198: 2 | F198: Pre | G198: 1 | H198: 41 | I198: Scott Peterson | J198: 0 | K198: 1 | R198: 0 | S198: 0 | T198: 0 | U198: 0 | V198: 26.5
A199: Aidan McKee | B199: LH5 | C199: Lighthouse | D199: 2014-2015 | E199: 3 | F199: Pre | G199: 2 | H199: 50 | I199: Jeremy Swingle | J199: 0 | K199: 0 | R199: 0 | S199: 0 | T199: 0 | U199: 0 | V199: 26.5
A200: Aidan McKee | B200: LH5 | C200: Lighthouse | D200: 2014-2015 | E200: 1 | F200: ConA | G200: 3 | H200: A-E | I200: Tiffany Bye | J200: 0 | K200: 0 | M200: 1 | R200: 0 | S200: 0 | T200: 0 | U200: 20 | V200: 26.5
... 3772 more rows

Sheet Accuracy
A1: Rank | B1: Name | C1: Church | D1: #Quizzes | E1: Correct | F1: Error | G1: Jumps | H1: Accuracy | I1: STAT | J1: Corr/Quiz | K1: Foul | L1: BonCorr | M1: BonErr | N1: 3rd | O1: 4th | P1: 5th | Q1: QuizOut | R1: % | S1: ErrOut | T1: %2 | U1: PreC | V1: PreE | W1: PreAcc | X1: SemiC | Y1: SemiE | Z1: SemiAcc | AA1: ConAC | AB1: ConAE | AC1: ConAAcc | AD1: ConBC | AE1: ConBE | AF1: ConBAcc
A2: 1 | B2: Bryce Asberg | C2: Tacoma | D2: =COUNTIF(DATA!$A$2:$A$9731,B2) -> 41 | E2: =SUMIF(DATA!$A$2:$A$9077,B2,DATA!$J$2:$J$9077) -> 146 | F2: =SUMIF(DATA!$A$2:$A$9077,B2,DATA!$K$2:$K$9077) -> 27 | G2: =E2+F2 -> 173 | H2: =E2/(E2+F2) -> 0.8439306358 | I2: =(E2+L2-F2-K2-M2)/D2 -> 3.048780488 | J2: =Table1[[#This Row],[Correct]]/Table1[[#This Row],['#Quizzes]] -> 3.56097561 | K2: =SUMIF(DATA!$A$2:$A$9077,B2,DATA!$L$2:$L$9077) -> 0 | L2: =SUMIF(DATA!$A$2:$A$9077,B2,DATA!$M$2:$M$79077) -> 9 | M2: =SUMIF(DATA!$A$2:$A$9077,B2,DATA!$N$2:$N$9077) -> 3 | N2: =SUMIF(DATA!$A$2:$A$9101,B2,DATA!$O$2:$O$9101) -> 0 | O2: =SUMIF(DATA!$A$2:$A$9101,B2,DATA!$P$2:$P$9101) -> 0 | P2: =SUMIF(DATA!$A$2:$A$9101,B2,DATA!$Q$2:$Q$9101) -> 0 | Q2: =SUMIF(DATA!$A$2:$A$9078,B2,DATA!$R$2:$R$9078) -> 32 | R2: =Q2/D2 -> 0.7804878049 | S2: =SUMIF(DATA!$A$2:$A$9078,B2,DATA!$S$2:$S$9078) -> 2 | T2: =S2/D2 -> 0.0487804878 | U2: =SUMIFS(DATA!J:J,DATA!A:A,Table1[[#This Row],[Name]],DATA!F:F,"Pre") -> 97 | V2: =SUMIFS(DATA!K:K,DATA!A:A,Table1[[#This Row],[Name]],DATA!F:F,"Pre") -> 18 | W2: =U2/(U2+V2) -> 0.8434782609 | X2: =SUMIFS(DATA!J:J,DATA!A:A,Table1[[#This Row],[Name]],DATA!F:F,"Semi") -> 0 | Y2: =SUMIFS(DATA!K:K,DATA!A:A,Table1[[#This Row],[Name]],DATA!F:F,"Semi") -> 0 | Z2: =X2/(X2+Y2) ->  | AA2: =SUMIFS(DATA!J:J,DATA!A:A,Table1[[#This Row],[Name]],DATA!F:F,"COnA") -> 49 | AB2: =SUMIFS(DATA!K:K,DATA!A:A,Table1[[#This Row],[Name]],DATA!F:F,"ConA") -> 9 | AC2: =AA2/(AA2+AB2) -> 0.8448275862 | AD2: =SUMIFS(DATA!J:J,DATA!A:A,Table1[[#This Row],[Name]],DATA!F:F,"ConB") -> 0 | AE2: =SUMIFS(DATA!K:K,DATA!A:A,Table1[[#This Row],[Name]],DATA!F:F,"ConB") -> 0 | AF2: =AD2/(AD2+AE2) -> 
A3: 2 | B3: Anna Kong | C3: Woodinville | D3: =COUNTIF(DATA!$A$2:$A$9731,B3) -> 57 | E3: =SUMIF(DATA!$A$2:$A$9077,B3,DATA!$J$2:$J$9077) -> 200 | F3: =SUMIF(DATA!$A$2:$A$9077,B3,DATA!$K$2:$K$9077) -> 54 | G3: 254 | H3: 0.7874015748 | I3: 2.807017544 | J3: =Table1[[#This Row],[Correct]]/Table1[[#This Row],['#Quizzes]] -> 3.50877193 | K3: =SUMIF(DATA!$A$2:$A$9077,B3,DATA!$L$2:$L$9077) -> 0 | L3: =SUMIF(DATA!$A$2:$A$9077,B3,DATA!$M$2:$M$79077) -> 17 | M3: =SUMIF(DATA!$A$2:$A$9077,B3,DATA!$N$2:$N$9077) -> 3 | N3: =SUMIF(DATA!$A$2:$A$9101,B3,DATA!$O$2:$O$9101) -> 0 | O3: =SUMIF(DATA!$A$2:$A$9101,B3,DATA!$P$2:$P$9101) -> 0 | P3: =SUMIF(DATA!$A$2:$A$9101,B3,DATA!$Q$2:$Q$9101) -> 0 | Q3: =SUMIF(DATA!$A$2:$A$9078,B3,DATA!$R$2:$R$9078) -> 45 | R3: 0.7894736842 | S3: =SUMIF(DATA!$A$2:$A$9078,B3,DATA!$S$2:$S$9078) -> 8 | T3: 0.1403508772 | U3: =SUMIFS(DATA!J:J,DATA!A:A,Table1[[#This Row],[Name]],DATA!F:F,"Pre") -> 109 | V3: =SUMIFS(DATA!K:K,DATA!A:A,Table1[[#This Row],[Name]],DATA!F:F,"Pre") -> 19 | W3: 0.8515625 | X3: =SUMIFS(DATA!J:J,DATA!A:A,Table1[[#This Row],[Name]],DATA!F:F,"Semi") -> 91 | Y3: =SUMIFS(DATA!K:K,DATA!A:A,Table1[[#This Row],[Name]],DATA!F:F,"Semi") -> 35 | Z3: 0.7222222222 | AA3: =SUMIFS(DATA!J:J,DATA!A:A,Table1[[#This Row],[Name]],DATA!F:F,"COnA") -> 0 | AB3: =SUMIFS(DATA!K:K,DATA!A:A,Table1[[#This Row],[Name]],DATA!F:F,"ConA") -> 0 | AD3: =SUMIFS(DATA!J:J,DATA!A:A,Table1[[#This Row],[Name]],DATA!F:F,"ConB") -> 0 | AE3: =SUMIFS(DATA!K:K,DATA!A:A,Table1[[#This Row],[Name]],DATA!F:F,"ConB") -> 0
A4: 3 | B4: Lydia Taw | C4: ABC | D4: =COUNTIF(DATA!$A$2:$A$9731,B4) -> 56 | E4: =SUMIF(DATA!$A$2:$A$9077,B4,DATA!$J$2:$J$9077) -> 180 | F4: =SUMIF(DATA!$A$2:$A$9077,B4,DATA!$K$2:$K$9077) -> 38 | G4: 218 | H4: 0.8256880734 | I4: 2.607142857 | J4: =Table1[[#This Row],[Correct]]/Table1[[#This Row],['#Quizzes]] -> 3.214285714 | K4: =SUMIF(DATA!$A$2:$A$9077,B4,DATA!$L$2:$L$9077) -> 7 | L4: =SUMIF(DATA!$A$2:$A$9077,B4,DATA!$M$2:$M$79077) -> 11 | M4: =SUMIF(DATA!$A$2:$A$9077,B4,DATA!$N$2:$N$9077) -> 0 | N4: =SUMIF(DATA!$A$2:$A$9101,B4,DATA!$O$2:$O$9101) -> 4 | O4: =SUMIF(DATA!$A$2:$A$9101,B4,DATA!$P$2:$P$9101) -> 0 | P4: =SUMIF(DATA!$A$2:$A$9101,B4,DATA!$Q$2:$Q$9101) -> 0 | Q4: =SUMIF(DATA!$A$2:$A$9078,B4,DATA!$R$2:$R$9078) -> 31 | R4: 0.5535714286 | S4: =SUMIF(DATA!$A$2:$A$9078,B4,DATA!$S$2:$S$9078) -> 2 | T4: 0.03571428571 | U4: =SUMIFS(DATA!J:J,DATA!A:A,Table1[[#This Row],[Name]],DATA!F:F,"Pre") -> 108 | V4: =SUMIFS(DATA!K:K,DATA!A:A,Table1[[#This Row],[Name]],DATA!F:F,"Pre") -> 18 | W4: 0.8571428571 | X4: =SUMIFS(DATA!J:J,DATA!A:A,Table1[[#This Row],[Name]],DATA!F:F,"Semi") -> 72 | Y4: =SUMIFS(DATA!K:K,DATA!A:A,Table1[[#This Row],[Name]],DATA!F:F,"Semi") -> 20 | Z4: 0.7826086957 | AA4: =SUMIFS(DATA!J:J,DATA!A:A,Table1[[#This Row],[Name]],DATA!F:F,"COnA") -> 0 | AB4: =SUMIFS(DATA!K:K,DATA!A:A,Table1[[#This Row],[Name]],DATA!F:F,"ConA") -> 0 | AD4: =SUMIFS(DATA!J:J,DATA!A:A,Table1[[#This Row],[Name]],DATA!F:F,"ConB") -> 0 | AE4: =SUMIFS(DATA!K:K,DATA!A:A,Table1[[#This Row],[Name]],DATA!F:F,"ConB") -> 0
A5: 5 | B5: Micah Hollen | C5: Grays Harbor | D5: =COUNTIF(DATA!$A$2:$A$9731,B5) -> 53 | E5: =SUMIF(DATA!$A$2:$A$9077,B5,DATA!$J$2:$J$9077) -> 168 | F5: =SUMIF(DATA!$A$2:$A$9077,B5,DATA!$K$2:$K$9077) -> 49 | G5: 217 | H5: 0.7741935484 | I5: 2.396226415 | J5: =Table1[[#This Row],[Correct]]/Table1[[#This Row],['#Quizzes]] -> 3.169811321 | K5: =SUMIF(DATA!$A$2:$A$9077,B5,DATA!$L$2:$L$9077) -> 0 | L5: =SUMIF(DATA!$A$2:$A$9077,B5,DATA!$M$2:$M$79077) -> 8 | M5: =SUMIF(DATA!$A$2:$A$9077,B5,DATA!$N$2:$N$9077) -> 0 | N5: =SUMIF(DATA!$A$2:$A$9101,B5,DATA!$O$2:$O$9101) -> 0 | O5: =SUMIF(DATA!$A$2:$A$9101,B5,DATA!$P$2:$P$9101) -> 0 | P5: =SUMIF(DATA!$A$2:$A$9101,B5,DATA!$Q$2:$Q$9101) -> 0 | Q5: =SUMIF(DATA!$A$2:$A$9078,B5,DATA!$R$2:$R$9078) -> 33 | R5: 0.6226415094 | S5: =SUMIF(DATA!$A$2:$A$9078,B5,DATA!$S$2:$S$9078) -> 4 | T5: 0.07547169811 | U5: =SUMIFS(DATA!J:J,DATA!A:A,Table1[[#This Row],[Name]],DATA!F:F,"Pre") -> 109 | V5: =SUMIFS(DATA!K:K,DATA!A:A,Table1[[#This Row],[Name]],DATA!F:F,"Pre") -> 23 | W5: 0.8257575758 | X5: =SUMIFS(DATA!J:J,DATA!A:A,Table1[[#This Row],[Name]],DATA!F:F,"Semi") -> 39 | Y5: =SUMIFS(DATA!K:K,DATA!A:A,Table1[[#This Row],[Name]],DATA!F:F,"Semi") -> 23 | Z5: 0.6290322581 | AA5: =SUMIFS(DATA!J:J,DATA!A:A,Table1[[#This Row],[Name]],DATA!F:F,"COnA") -> 20 | AB5: =SUMIFS(DATA!K:K,DATA!A:A,Table1[[#This Row],[Name]],DATA!F:F,"ConA") -> 3 | AC5: 0.8695652174 | AD5: =SUMIFS(DATA!J:J,DATA!A:A,Table1[[#This Row],[Name]],DATA!F:F,"ConB") -> 0 | AE5: =SUMIFS(DATA!K:K,DATA!A:A,Table1[[#This Row],[Name]],DATA!F:F,"ConB") -> 0
A6: 4 | B6: David Steinke | C6: Dallas | D6: =COUNTIF(DATA!$A$2:$A$9731,B6) -> 55 | E6: =SUMIF(DATA!$A$2:$A$9077,B6,DATA!$J$2:$J$9077) -> 189 | F6: =SUMIF(DATA!$A$2:$A$9077,B6,DATA!$K$2:$K$9077) -> 79 | G6: 268 | H6: 0.7052238806 | I6: 2.236363636 | J6: =Table1[[#This Row],[Correct]]/Table1[[#This Row],['#Quizzes]] -> 3.436363636 | K6: =SUMIF(DATA!$A$2:$A$9077,B6,DATA!$L$2:$L$9077) -> 0 | L6: =SUMIF(DATA!$A$2:$A$9077,B6,DATA!$M$2:$M$79077) -> 14 | M6: =SUMIF(DATA!$A$2:$A$9077,B6,DATA!$N$2:$N$9077) -> 1 | N6: =SUMIF(DATA!$A$2:$A$9101,B6,DATA!$O$2:$O$9101) -> 0 | O6: =SUMIF(DATA!$A$2:$A$9101,B6,DATA!$P$2:$P$9101) -> 0 | P6: =SUMIF(DATA!$A$2:$A$9101,B6,DATA!$Q$2:$Q$9101) -> 0 | Q6: =SUMIF(DATA!$A$2:$A$9078,B6,DATA!$R$2:$R$9078) -> 35 | R6: 0.6363636364 | S6: =SUMIF(DATA!$A$2:$A$9078,B6,DATA!$S$2:$S$9078) -> 10 | T6: 0.1818181818 | U6: =SUMIFS(DATA!J:J,DATA!A:A,Table1[[#This Row],[Name]],DATA!F:F,"Pre") -> 113 | V6: =SUMIFS(DATA!K:K,DATA!A:A,Table1[[#This Row],[Name]],DATA!F:F,"Pre") -> 35 | W6: 0.7635135135 | X6: =SUMIFS(DATA!J:J,DATA!A:A,Table1[[#This Row],[Name]],DATA!F:F,"Semi") -> 62 | Y6: =SUMIFS(DATA!K:K,DATA!A:A,Table1[[#This Row],[Name]],DATA!F:F,"Semi") -> 38 | Z6: 0.62 | AA6: =SUMIFS(DATA!J:J,DATA!A:A,Table1[[#This Row],[Name]],DATA!F:F,"COnA") -> 14 | AB6: =SUMIFS(DATA!K:K,DATA!A:A,Table1[[#This Row],[Name]],DATA!F:F,"ConA") -> 6 | AC6: 0.7 | AD6: =SUMIFS(DATA!J:J,DATA!A:A,Table1[[#This Row],[Name]],DATA!F:F,"ConB") -> 0 | AE6: =SUMIFS(DATA!K:K,DATA!A:A,Table1[[#This Row],[Name]],DATA!F:F,"ConB") -> 0
A7: 10 | B7: Abigail Taw | C7: ABC | D7: =COUNTIF(DATA!$A$2:$A$9731,B7) -> 46 | E7: =SUMIF(DATA!$A$2:$A$9077,B7,DATA!$J$2:$J$9077) -> 139 | F7: =SUMIF(DATA!$A$2:$A$9077,B7,DATA!$K$2:$K$9077) -> 48 | G7: 187 | H7: 0.743315508 | I7: 2 | J7: =Table1[[#This Row],[Correct]]/Table1[[#This Row],['#Quizzes]] -> 3.02173913 | K7: =SUMIF(DATA!$A$2:$A$9077,B7,DATA!$L$2:$L$9077) -> 2 | L7: =SUMIF(DATA!$A$2:$A$9077,B7,DATA!$M$2:$M$79077) -> 8 | M7: =SUMIF(DATA!$A$2:$A$9077,B7,DATA!$N$2:$N$9077) -> 5 | N7: =SUMIF(DATA!$A$2:$A$9101,B7,DATA!$O$2:$O$9101) -> 1 | O7: =SUMIF(DATA!$A$2:$A$9101,B7,DATA!$P$2:$P$9101) -> 0 | P7: =SUMIF(DATA!$A$2:$A$9101,B7,DATA!$Q$2:$Q$9101) -> 0 | Q7: =SUMIF(DATA!$A$2:$A$9078,B7,DATA!$R$2:$R$9078) -> 28 | R7: 0.6086956522 | S7: =SUMIF(DATA!$A$2:$A$9078,B7,DATA!$S$2:$S$9078) -> 6 | T7: 0.1304347826 | U7: =SUMIFS(DATA!J:J,DATA!A:A,Table1[[#This Row],[Name]],DATA!F:F,"Pre") -> 98 | V7: =SUMIFS(DATA!K:K,DATA!A:A,Table1[[#This Row],[Name]],DATA!F:F,"Pre") -> 27 | W7: 0.784 | X7: =SUMIFS(DATA!J:J,DATA!A:A,Table1[[#This Row],[Name]],DATA!F:F,"Semi") -> 41 | Y7: =SUMIFS(DATA!K:K,DATA!A:A,Table1[[#This Row],[Name]],DATA!F:F,"Semi") -> 21 | Z7: 0.6612903226 | AA7: =SUMIFS(DATA!J:J,DATA!A:A,Table1[[#This Row],[Name]],DATA!F:F,"COnA") -> 0 | AB7: =SUMIFS(DATA!K:K,DATA!A:A,Table1[[#This Row],[Name]],DATA!F:F,"ConA") -> 0 | AD7: =SUMIFS(DATA!J:J,DATA!A:A,Table1[[#This Row],[Name]],DATA!F:F,"ConB") -> 0 | AE7: =SUMIFS(DATA!K:K,DATA!A:A,Table1[[#This Row],[Name]],DATA!F:F,"ConB") -> 0
A8: 6 | B8: Jamie Rand | C8: Dallas | D8: =COUNTIF(DATA!$A$2:$A$9731,B8) -> 44 | E8: =SUMIF(DATA!$A$2:$A$9077,B8,DATA!$J$2:$J$9077) -> 138 | F8: =SUMIF(DATA!$A$2:$A$9077,B8,DATA!$K$2:$K$9077) -> 51 | G8: 189 | H8: 0.7301587302 | I8: 1.977272727 | J8: =Table1[[#This Row],[Correct]]/Table1[[#This Row],['#Quizzes]] -> 3.136363636 | K8: =SUMIF(DATA!$A$2:$A$9077,B8,DATA!$L$2:$L$9077) -> 0 | L8: =SUMIF(DATA!$A$2:$A$9077,B8,DATA!$M$2:$M$79077) -> 5 | M8: =SUMIF(DATA!$A$2:$A$9077,B8,DATA!$N$2:$N$9077) -> 5 | N8: =SUMIF(DATA!$A$2:$A$9101,B8,DATA!$O$2:$O$9101) -> 0 | O8: =SUMIF(DATA!$A$2:$A$9101,B8,DATA!$P$2:$P$9101) -> 0 | P8: =SUMIF(DATA!$A$2:$A$9101,B8,DATA!$Q$2:$Q$9101) -> 0 | Q8: =SUMIF(DATA!$A$2:$A$9078,B8,DATA!$R$2:$R$9078) -> 24 | R8: 0.5454545455 | S8: =SUMIF(DATA!$A$2:$A$9078,B8,DATA!$S$2:$S$9078) -> 4 | T8: 0.09090909091 | U8: =SUMIFS(DATA!J:J,DATA!A:A,Table1[[#This Row],[Name]],DATA!F:F,"Pre") -> 95 | V8: =SUMIFS(DATA!K:K,DATA!A:A,Table1[[#This Row],[Name]],DATA!F:F,"Pre") -> 32 | W8: 0.7480314961 | X8: =SUMIFS(DATA!J:J,DATA!A:A,Table1[[#This Row],[Name]],DATA!F:F,"Semi") -> 8 | Y8: =SUMIFS(DATA!K:K,DATA!A:A,Table1[[#This Row],[Name]],DATA!F:F,"Semi") -> 7 | Z8: 0.5333333333 | AA8: =SUMIFS(DATA!J:J,DATA!A:A,Table1[[#This Row],[Name]],DATA!F:F,"COnA") -> 35 | AB8: =SUMIFS(DATA!K:K,DATA!A:A,Table1[[#This Row],[Name]],DATA!F:F,"ConA") -> 12 | AC8: 0.7446808511 | AD8: =SUMIFS(DATA!J:J,DATA!A:A,Table1[[#This Row],[Name]],DATA!F:F,"ConB") -> 0 | AE8: =SUMIFS(DATA!K:K,DATA!A:A,Table1[[#This Row],[Name]],DATA!F:F,"ConB") -> 0
A9: 7 | B9: Kendra Gross | C9: Grays Harbor | D9: =COUNTIF(DATA!$A$2:$A$9731,B9) -> 48 | E9: =SUMIF(DATA!$A$2:$A$9077,B9,DATA!$J$2:$J$9077) -> 145 | F9: =SUMIF(DATA!$A$2:$A$9077,B9,DATA!$K$2:$K$9077) -> 60 | G9: 205 | H9: 0.7073170732 | I9: 1.833333333 | J9: =Table1[[#This Row],[Correct]]/Table1[[#This Row],['#Quizzes]] -> 3.020833333 | K9: =SUMIF(DATA!$A$2:$A$9077,B9,DATA!$L$2:$L$9077) -> 0 | L9: =SUMIF(DATA!$A$2:$A$9077,B9,DATA!$M$2:$M$79077) -> 4 | M9: =SUMIF(DATA!$A$2:$A$9077,B9,DATA!$N$2:$N$9077) -> 1 | N9: =SUMIF(DATA!$A$2:$A$9101,B9,DATA!$O$2:$O$9101) -> 0 | O9: =SUMIF(DATA!$A$2:$A$9101,B9,DATA!$P$2:$P$9101) -> 0 | P9: =SUMIF(DATA!$A$2:$A$9101,B9,DATA!$Q$2:$Q$9101) -> 0 | Q9: =SUMIF(DATA!$A$2:$A$9078,B9,DATA!$R$2:$R$9078) -> 25 | R9: 0.5208333333 | S9: =SUMIF(DATA!$A$2:$A$9078,B9,DATA!$S$2:$S$9078) -> 3 | T9: 0.0625 | U9: =SUMIFS(DATA!J:J,DATA!A:A,Table1[[#This Row],[Name]],DATA!F:F,"Pre") -> 102 | V9: =SUMIFS(DATA!K:K,DATA!A:A,Table1[[#This Row],[Name]],DATA!F:F,"Pre") -> 33 | W9: 0.7555555556 | X9: =SUMIFS(DATA!J:J,DATA!A:A,Table1[[#This Row],[Name]],DATA!F:F,"Semi") -> 43 | Y9: =SUMIFS(DATA!K:K,DATA!A:A,Table1[[#This Row],[Name]],DATA!F:F,"Semi") -> 27 | Z9: 0.6142857143 | AA9: =SUMIFS(DATA!J:J,DATA!A:A,Table1[[#This Row],[Name]],DATA!F:F,"COnA") -> 0 | AB9: =SUMIFS(DATA!K:K,DATA!A:A,Table1[[#This Row],[Name]],DATA!F:F,"ConA") -> 0 | AD9: =SUMIFS(DATA!J:J,DATA!A:A,Table1[[#This Row],[Name]],DATA!F:F,"ConB") -> 0 | AE9: =SUMIFS(DATA!K:K,DATA!A:A,Table1[[#This Row],[Name]],DATA!F:F,"ConB") -> 0
A10: 13 | B10: Emma Carlson | C10: Dallas | D10: =COUNTIF(DATA!$A$2:$A$9731,B10) -> 55 | E10: =SUMIF(DATA!$A$2:$A$9077,B10,DATA!$J$2:$J$9077) -> 136 | F10: =SUMIF(DATA!$A$2:$A$9077,B10,DATA!$K$2:$K$9077) -> 44 | G10: 180 | H10: 0.7555555556 | I10: 1.8 | J10: =Table1[[#This Row],[Correct]]/Table1[[#This Row],['#Quizzes]] -> 2.472727273 | K10: =SUMIF(DATA!$A$2:$A$9077,B10,DATA!$L$2:$L$9077) -> 0 | L10: =SUMIF(DATA!$A$2:$A$9077,B10,DATA!$M$2:$M$79077) -> 9 | M10: =SUMIF(DATA!$A$2:$A$9077,B10,DATA!$N$2:$N$9077) -> 2 | N10: =SUMIF(DATA!$A$2:$A$9101,B10,DATA!$O$2:$O$9101) -> 0 | O10: =SUMIF(DATA!$A$2:$A$9101,B10,DATA!$P$2:$P$9101) -> 0 | P10: =SUMIF(DATA!$A$2:$A$9101,B10,DATA!$Q$2:$Q$9101) -> 0 | Q10: =SUMIF(DATA!$A$2:$A$9078,B10,DATA!$R$2:$R$9078) -> 19 | R10: 0.3454545455 | S10: =SUMIF(DATA!$A$2:$A$9078,B10,DATA!$S$2:$S$9078) -> 1 | T10: 0.01818181818 | U10: =SUMIFS(DATA!J:J,DATA!A:A,Table1[[#This Row],[Name]],DATA!F:F,"Pre") -> 90 | V10: =SUMIFS(DATA!K:K,DATA!A:A,Table1[[#This Row],[Name]],DATA!F:F,"Pre") -> 30 | W10: 0.75 | X10: =SUMIFS(DATA!J:J,DATA!A:A,Table1[[#This Row],[Name]],DATA!F:F,"Semi") -> 34 | Y10: =SUMIFS(DATA!K:K,DATA!A:A,Table1[[#This Row],[Name]],DATA!F:F,"Semi") -> 11 | Z10: 0.7555555556 | AA10: =SUMIFS(DATA!J:J,DATA!A:A,Table1[[#This Row],[Name]],DATA!F:F,"COnA") -> 12 | AB10: =SUMIFS(DATA!K:K,DATA!A:A,Table1[[#This Row],[Name]],DATA!F:F,"ConA") -> 3 | AC10: 0.8 | AD10: =SUMIFS(DATA!J:J,DATA!A:A,Table1[[#This Row],[Name]],DATA!F:F,"ConB") -> 0 | AE10: =SUMIFS(DATA!K:K,DATA!A:A,Table1[[#This Row],[Name]],DATA!F:F,"ConB") -> 0
A11: 11 | B11: Stephen Miller | C11: Dallas | D11: =COUNTIF(DATA!$A$2:$A$9731,B11) -> 44 | E11: =SUMIF(DATA!$A$2:$A$9077,B11,DATA!$J$2:$J$9077) -> 101 | F11: =SUMIF(DATA!$A$2:$A$9077,B11,DATA!$K$2:$K$9077) -> 31 | G11: 132 | H11: 0.7651515152 | I11: 1.636363636 | J11: =Table1[[#This Row],[Correct]]/Table1[[#This Row],['#Quizzes]] -> 2.295454545 | K11: =SUMIF(DATA!$A$2:$A$9077,B11,DATA!$L$2:$L$9077) -> 0 | L11: =SUMIF(DATA!$A$2:$A$9077,B11,DATA!$M$2:$M$79077) -> 2 | M11: =SUMIF(DATA!$A$2:$A$9077,B11,DATA!$N$2:$N$9077) -> 0 | N11: =SUMIF(DATA!$A$2:$A$9101,B11,DATA!$O$2:$O$9101) -> 1 | O11: =SUMIF(DATA!$A$2:$A$9101,B11,DATA!$P$2:$P$9101) -> 0 | P11: =SUMIF(DATA!$A$2:$A$9101,B11,DATA!$Q$2:$Q$9101) -> 0 | Q11: =SUMIF(DATA!$A$2:$A$9078,B11,DATA!$R$2:$R$9078) -> 16 | R11: 0.3636363636 | S11: =SUMIF(DATA!$A$2:$A$9078,B11,DATA!$S$2:$S$9078) -> 1 | T11: 0.02272727273 | U11: =SUMIFS(DATA!J:J,DATA!A:A,Table1[[#This Row],[Name]],DATA!F:F,"Pre") -> 74 | V11: =SUMIFS(DATA!K:K,DATA!A:A,Table1[[#This Row],[Name]],DATA!F:F,"Pre") -> 18 | W11: 0.8043478261 | X11: =SUMIFS(DATA!J:J,DATA!A:A,Table1[[#This Row],[Name]],DATA!F:F,"Semi") -> 3 | Y11: =SUMIFS(DATA!K:K,DATA!A:A,Table1[[#This Row],[Name]],DATA!F:F,"Semi") -> 2 | Z11: 0.6 | AA11: =SUMIFS(DATA!J:J,DATA!A:A,Table1[[#This Row],[Name]],DATA!F:F,"COnA") -> 24 | AB11: =SUMIFS(DATA!K:K,DATA!A:A,Table1[[#This Row],[Name]],DATA!F:F,"ConA") -> 11 | AC11: 0.6857142857 | AD11: =SUMIFS(DATA!J:J,DATA!A:A,Table1[[#This Row],[Name]],DATA!F:F,"ConB") -> 0 | AE11: =SUMIFS(DATA!K:K,DATA!A:A,Table1[[#This Row],[Name]],DATA!F:F,"ConB") -> 0
A12: 12 | B12: Claire Kong | C12: Woodinville | D12: =COUNTIF(DATA!$A$2:$A$9731,B12) -> 57 | E12: =SUMIF(DATA!$A$2:$A$9077,B12,DATA!$J$2:$J$9077) -> 106 | F12: =SUMIF(DATA!$A$2:$A$9077,B12,DATA!$K$2:$K$9077) -> 22 | G12: 128 | H12: 0.828125 | I12: 1.631578947 | J12: =Table1[[#This Row],[Correct]]/Table1[[#This Row],['#Quizzes]] -> 1.859649123 | K12: =SUMIF(DATA!$A$2:$A$9077,B12,DATA!$L$2:$L$9077) -> 0 | L12: =SUMIF(DATA!$A$2:$A$9077,B12,DATA!$M$2:$M$79077) -> 9 | M12: =SUMIF(DATA!$A$2:$A$9077,B12,DATA!$N$2:$N$9077) -> 0 | N12: =SUMIF(DATA!$A$2:$A$9101,B12,DATA!$O$2:$O$9101) -> 1 | O12: =SUMIF(DATA!$A$2:$A$9101,B12,DATA!$P$2:$P$9101) -> 0 | P12: =SUMIF(DATA!$A$2:$A$9101,B12,DATA!$Q$2:$Q$9101) -> 0 | Q12: =SUMIF(DATA!$A$2:$A$9078,B12,DATA!$R$2:$R$9078) -> 11 | R12: 0.1929824561 | S12: =SUMIF(DATA!$A$2:$A$9078,B12,DATA!$S$2:$S$9078) -> 0 | T12: 0 | U12: =SUMIFS(DATA!J:J,DATA!A:A,Table1[[#This Row],[Name]],DATA!F:F,"Pre") -> 75 | V12: =SUMIFS(DATA!K:K,DATA!A:A,Table1[[#This Row],[Name]],DATA!F:F,"Pre") -> 13 | W12: 0.8522727273 | X12: =SUMIFS(DATA!J:J,DATA!A:A,Table1[[#This Row],[Name]],DATA!F:F,"Semi") -> 31 | Y12: =SUMIFS(DATA!K:K,DATA!A:A,Table1[[#This Row],[Name]],DATA!F:F,"Semi") -> 9 | Z12: 0.775 | AA12: =SUMIFS(DATA!J:J,DATA!A:A,Table1[[#This Row],[Name]],DATA!F:F,"COnA") -> 0 | AB12: =SUMIFS(DATA!K:K,DATA!A:A,Table1[[#This Row],[Name]],DATA!F:F,"ConA") -> 0 | AD12: =SUMIFS(DATA!J:J,DATA!A:A,Table1[[#This Row],[Name]],DATA!F:F,"ConB") -> 0 | AE12: =SUMIFS(DATA!K:K,DATA!A:A,Table1[[#This Row],[Name]],DATA!F:F,"ConB") -> 0
A13: 9 | B13: Abi Carlson | C13: Dallas | D13: =COUNTIF(DATA!$A$2:$A$9731,B13) -> 48 | E13: =SUMIF(DATA!$A$2:$A$9077,B13,DATA!$J$2:$J$9077) -> 154 | F13: =SUMIF(DATA!$A$2:$A$9077,B13,DATA!$K$2:$K$9077) -> 81 | G13: 235 | H13: 0.6553191489 | I13: 1.625 | J13: =Table1[[#This Row],[Correct]]/Table1[[#This Row],['#Quizzes]] -> 3.208333333 | K13: =SUMIF(DATA!$A$2:$A$9077,B13,DATA!$L$2:$L$9077) -> 0 | L13: =SUMIF(DATA!$A$2:$A$9077,B13,DATA!$M$2:$M$79077) -> 7 | M13: =SUMIF(DATA!$A$2:$A$9077,B13,DATA!$N$2:$N$9077) -> 2 | N13: =SUMIF(DATA!$A$2:$A$9101,B13,DATA!$O$2:$O$9101) -> 1 | O13: =SUMIF(DATA!$A$2:$A$9101,B13,DATA!$P$2:$P$9101) -> 0 | P13: =SUMIF(DATA!$A$2:$A$9101,B13,DATA!$Q$2:$Q$9101) -> 0 | Q13: =SUMIF(DATA!$A$2:$A$9078,B13,DATA!$R$2:$R$9078) -> 29 | R13: 0.6041666667 | S13: =SUMIF(DATA!$A$2:$A$9078,B13,DATA!$S$2:$S$9078) -> 15 | T13: 0.3125 | U13: =SUMIFS(DATA!J:J,DATA!A:A,Table1[[#This Row],[Name]],DATA!F:F,"Pre") -> 109 | V13: =SUMIFS(DATA!K:K,DATA!A:A,Table1[[#This Row],[Name]],DATA!F:F,"Pre") -> 42 | W13: 0.7218543046 | X13: =SUMIFS(DATA!J:J,DATA!A:A,Table1[[#This Row],[Name]],DATA!F:F,"Semi") -> 45 | Y13: =SUMIFS(DATA!K:K,DATA!A:A,Table1[[#This Row],[Name]],DATA!F:F,"Semi") -> 39 | Z13: 0.5357142857 | AA13: =SUMIFS(DATA!J:J,DATA!A:A,Table1[[#This Row],[Name]],DATA!F:F,"COnA") -> 0 | AB13: =SUMIFS(DATA!K:K,DATA!A:A,Table1[[#This Row],[Name]],DATA!F:F,"ConA") -> 0 | AD13: =SUMIFS(DATA!J:J,DATA!A:A,Table1[[#This Row],[Name]],DATA!F:F,"ConB") -> 0 | AE13: =SUMIFS(DATA!K:K,DATA!A:A,Table1[[#This Row],[Name]],DATA!F:F,"ConB") -> 0
A14: 8 | B14: Daniel Emme | C14: EBC | D14: =COUNTIF(DATA!$A$2:$A$9731,B14) -> 43 | E14: =SUMIF(DATA!$A$2:$A$9077,B14,DATA!$J$2:$J$9077) -> 100 | F14: =SUMIF(DATA!$A$2:$A$9077,B14,DATA!$K$2:$K$9077) -> 33 | G14: 133 | H14: 0.7518796992 | I14: 1.604651163 | J14: =Table1[[#This Row],[Correct]]/Table1[[#This Row],['#Quizzes]] -> 2.325581395 | K14: =SUMIF(DATA!$A$2:$A$9077,B14,DATA!$L$2:$L$9077) -> 0 | L14: =SUMIF(DATA!$A$2:$A$9077,B14,DATA!$M$2:$M$79077) -> 3 | M14: =SUMIF(DATA!$A$2:$A$9077,B14,DATA!$N$2:$N$9077) -> 1 | N14: =SUMIF(DATA!$A$2:$A$9101,B14,DATA!$O$2:$O$9101) -> 5 | O14: =SUMIF(DATA!$A$2:$A$9101,B14,DATA!$P$2:$P$9101) -> 0 | P14: =SUMIF(DATA!$A$2:$A$9101,B14,DATA!$Q$2:$Q$9101) -> 0 | Q14: =SUMIF(DATA!$A$2:$A$9078,B14,DATA!$R$2:$R$9078) -> 15 | R14: 0.3488372093 | S14: =SUMIF(DATA!$A$2:$A$9078,B14,DATA!$S$2:$S$9078) -> 3 | T14: 0.06976744186 | U14: =SUMIFS(DATA!J:J,DATA!A:A,Table1[[#This Row],[Name]],DATA!F:F,"Pre") -> 79 | V14: =SUMIFS(DATA!K:K,DATA!A:A,Table1[[#This Row],[Name]],DATA!F:F,"Pre") -> 21 | W14: 0.79 | X14: =SUMIFS(DATA!J:J,DATA!A:A,Table1[[#This Row],[Name]],DATA!F:F,"Semi") -> 21 | Y14: =SUMIFS(DATA!K:K,DATA!A:A,Table1[[#This Row],[Name]],DATA!F:F,"Semi") -> 12 | Z14: 0.6363636364 | AA14: =SUMIFS(DATA!J:J,DATA!A:A,Table1[[#This Row],[Name]],DATA!F:F,"COnA") -> 0 | AB14: =SUMIFS(DATA!K:K,DATA!A:A,Table1[[#This Row],[Name]],DATA!F:F,"ConA") -> 0 | AD14: =SUMIFS(DATA!J:J,DATA!A:A,Table1[[#This Row],[Name]],DATA!F:F,"ConB") -> 0 | AE14: =SUMIFS(DATA!K:K,DATA!A:A,Table1[[#This Row],[Name]],DATA!F:F,"ConB") -> 0
A15: 18 | B15: Maddie Ashcraft | C15: Lighthouse | D15: =COUNTIF(DATA!$A$2:$A$9731,B15) -> 49 | E15: =SUMIF(DATA!$A$2:$A$9077,B15,DATA!$J$2:$J$9077) -> 115 | F15: =SUMIF(DATA!$A$2:$A$9077,B15,DATA!$K$2:$K$9077) -> 34 | G15: 149 | H15: 0.7718120805 | I15: 1.632653061 | J15: =Table1[[#This Row],[Correct]]/Table1[[#This Row],['#Quizzes]] -> 2.346938776 | K15: =SUMIF(DATA!$A$2:$A$9077,B15,DATA!$L$2:$L$9077) -> 0 | L15: =SUMIF(DATA!$A$2:$A$9077,B15,DATA!$M$2:$M$79077) -> 5 | M15: =SUMIF(DATA!$A$2:$A$9077,B15,DATA!$N$2:$N$9077) -> 6 | N15: =SUMIF(DATA!$A$2:$A$9101,B15,DATA!$O$2:$O$9101) -> 6 | O15: =SUMIF(DATA!$A$2:$A$9101,B15,DATA!$P$2:$P$9101) -> 0 | P15: =SUMIF(DATA!$A$2:$A$9101,B15,DATA!$Q$2:$Q$9101) -> 0 | Q15: =SUMIF(DATA!$A$2:$A$9078,B15,DATA!$R$2:$R$9078) -> 12 | R15: 0.2448979592 | S15: =SUMIF(DATA!$A$2:$A$9078,B15,DATA!$S$2:$S$9078) -> 0 | T15: 0 | U15: =SUMIFS(DATA!J:J,DATA!A:A,Table1[[#This Row],[Name]],DATA!F:F,"Pre") -> 68 | V15: =SUMIFS(DATA!K:K,DATA!A:A,Table1[[#This Row],[Name]],DATA!F:F,"Pre") -> 24 | W15: 0.7391304348 | X15: =SUMIFS(DATA!J:J,DATA!A:A,Table1[[#This Row],[Name]],DATA!F:F,"Semi") -> 0 | Y15: =SUMIFS(DATA!K:K,DATA!A:A,Table1[[#This Row],[Name]],DATA!F:F,"Semi") -> 0 | AA15: =SUMIFS(DATA!J:J,DATA!A:A,Table1[[#This Row],[Name]],DATA!F:F,"COnA") -> 33 | AB15: =SUMIFS(DATA!K:K,DATA!A:A,Table1[[#This Row],[Name]],DATA!F:F,"ConA") -> 8 | AC15: 0.8048780488 | AD15: =SUMIFS(DATA!J:J,DATA!A:A,Table1[[#This Row],[Name]],DATA!F:F,"ConB") -> 14 | AE15: =SUMIFS(DATA!K:K,DATA!A:A,Table1[[#This Row],[Name]],DATA!F:F,"ConB") -> 2 | AF15: 0.875
A16: 15 | B16: Stephen Nguyen | C16: ABC | D16: =COUNTIF(DATA!$A$2:$A$9731,B16) -> 49 | E16: =SUMIF(DATA!$A$2:$A$9077,B16,DATA!$J$2:$J$9077) -> 143 | F16: =SUMIF(DATA!$A$2:$A$9077,B16,DATA!$K$2:$K$9077) -> 78 | G16: 221 | H16: 0.6470588235 | I16: 1.530612245 | J16: =Table1[[#This Row],[Correct]]/Table1[[#This Row],['#Quizzes]] -> 2.918367347 | K16: =SUMIF(DATA!$A$2:$A$9077,B16,DATA!$L$2:$L$9077) -> 0 | L16: =SUMIF(DATA!$A$2:$A$9077,B16,DATA!$M$2:$M$79077) -> 14 | M16: =SUMIF(DATA!$A$2:$A$9077,B16,DATA!$N$2:$N$9077) -> 4 | N16: =SUMIF(DATA!$A$2:$A$9101,B16,DATA!$O$2:$O$9101) -> 0 | O16: =SUMIF(DATA!$A$2:$A$9101,B16,DATA!$P$2:$P$9101) -> 0 | P16: =SUMIF(DATA!$A$2:$A$9101,B16,DATA!$Q$2:$Q$9101) -> 0 | Q16: =SUMIF(DATA!$A$2:$A$9078,B16,DATA!$R$2:$R$9078) -> 21 | R16: 0.4285714286 | S16: =SUMIF(DATA!$A$2:$A$9078,B16,DATA!$S$2:$S$9078) -> 13 | T16: 0.2653061224 | U16: =SUMIFS(DATA!J:J,DATA!A:A,Table1[[#This Row],[Name]],DATA!F:F,"Pre") -> 91 | V16: =SUMIFS(DATA!K:K,DATA!A:A,Table1[[#This Row],[Name]],DATA!F:F,"Pre") -> 50 | W16: 0.6453900709 | X16: =SUMIFS(DATA!J:J,DATA!A:A,Table1[[#This Row],[Name]],DATA!F:F,"Semi") -> 38 | Y16: =SUMIFS(DATA!K:K,DATA!A:A,Table1[[#This Row],[Name]],DATA!F:F,"Semi") -> 24 | Z16: 0.6129032258 | AA16: =SUMIFS(DATA!J:J,DATA!A:A,Table1[[#This Row],[Name]],DATA!F:F,"COnA") -> 14 | AB16: =SUMIFS(DATA!K:K,DATA!A:A,Table1[[#This Row],[Name]],DATA!F:F,"ConA") -> 4 | AC16: 0.7777777778 | AD16: =SUMIFS(DATA!J:J,DATA!A:A,Table1[[#This Row],[Name]],DATA!F:F,"ConB") -> 0 | AE16: =SUMIFS(DATA!K:K,DATA!A:A,Table1[[#This Row],[Name]],DATA!F:F,"ConB") -> 0
A17: 17 | B17: Inez Yoon | C17: Tacoma | D17: =COUNTIF(DATA!$A$2:$A$9731,B17) -> 49 | E17: =SUMIF(DATA!$A$2:$A$9077,B17,DATA!$J$2:$J$9077) -> 111 | F17: =SUMIF(DATA!$A$2:$A$9077,B17,DATA!$K$2:$K$9077) -> 36 | G17: 147 | H17: 0.7551020408 | I17: 1.571428571 | J17: =Table1[[#This Row],[Correct]]/Table1[[#This Row],['#Quizzes]] -> 2.265306122 | K17: =SUMIF(DATA!$A$2:$A$9077,B17,DATA!$L$2:$L$9077) -> 0 | L17: =SUMIF(DATA!$A$2:$A$9077,B17,DATA!$M$2:$M$79077) -> 4 | M17: =SUMIF(DATA!$A$2:$A$9077,B17,DATA!$N$2:$N$9077) -> 2 | N17: =SUMIF(DATA!$A$2:$A$9101,B17,DATA!$O$2:$O$9101) -> 0 | O17: =SUMIF(DATA!$A$2:$A$9101,B17,DATA!$P$2:$P$9101) -> 0 | P17: =SUMIF(DATA!$A$2:$A$9101,B17,DATA!$Q$2:$Q$9101) -> 0 | Q17: =SUMIF(DATA!$A$2:$A$9078,B17,DATA!$R$2:$R$9078) -> 9 | R17: 0.1836734694 | S17: =SUMIF(DATA!$A$2:$A$9078,B17,DATA!$S$2:$S$9078) -> 2 | T17: 0.04081632653 | U17: =SUMIFS(DATA!J:J,DATA!A:A,Table1[[#This Row],[Name]],DATA!F:F,"Pre") -> 65 | V17: =SUMIFS(DATA!K:K,DATA!A:A,Table1[[#This Row],[Name]],DATA!F:F,"Pre") -> 19 | W17: 0.7738095238 | X17: =SUMIFS(DATA!J:J,DATA!A:A,Table1[[#This Row],[Name]],DATA!F:F,"Semi") -> 0 | Y17: =SUMIFS(DATA!K:K,DATA!A:A,Table1[[#This Row],[Name]],DATA!F:F,"Semi") -> 0 | AA17: =SUMIFS(DATA!J:J,DATA!A:A,Table1[[#This Row],[Name]],DATA!F:F,"COnA") -> 26 | AB17: =SUMIFS(DATA!K:K,DATA!A:A,Table1[[#This Row],[Name]],DATA!F:F,"ConA") -> 8 | AC17: 0.7647058824 | AD17: =SUMIFS(DATA!J:J,DATA!A:A,Table1[[#This Row],[Name]],DATA!F:F,"ConB") -> 20 | AE17: =SUMIFS(DATA!K:K,DATA!A:A,Table1[[#This Row],[Name]],DATA!F:F,"ConB") -> 9 | AF17: 0.6896551724
A18: 19 | B18: Joshua Hole | C18: Grays Harbor | D18: =COUNTIF(DATA!$A$2:$A$9731,B18) -> 43 | E18: =SUMIF(DATA!$A$2:$A$9077,B18,DATA!$J$2:$J$9077) -> 132 | F18: =SUMIF(DATA!$A$2:$A$9077,B18,DATA!$K$2:$K$9077) -> 64 | G18: 196 | H18: 0.6734693878 | I18: 1.511627907 | J18: =Table1[[#This Row],[Correct]]/Table1[[#This Row],['#Quizzes]] -> 3.069767442 | K18: =SUMIF(DATA!$A$2:$A$9077,B18,DATA!$L$2:$L$9077) -> 4 | L18: =SUMIF(DATA!$A$2:$A$9077,B18,DATA!$M$2:$M$79077) -> 5 | M18: =SUMIF(DATA!$A$2:$A$9077,B18,DATA!$N$2:$N$9077) -> 4 | N18: =SUMIF(DATA!$A$2:$A$9101,B18,DATA!$O$2:$O$9101) -> 0 | O18: =SUMIF(DATA!$A$2:$A$9101,B18,DATA!$P$2:$P$9101) -> 0 | P18: =SUMIF(DATA!$A$2:$A$9101,B18,DATA!$Q$2:$Q$9101) -> 0 | Q18: =SUMIF(DATA!$A$2:$A$9078,B18,DATA!$R$2:$R$9078) -> 21 | R18: 0.488372093 | S18: =SUMIF(DATA!$A$2:$A$9078,B18,DATA!$S$2:$S$9078) -> 9 | T18: 0.2093023256 | U18: =SUMIFS(DATA!J:J,DATA!A:A,Table1[[#This Row],[Name]],DATA!F:F,"Pre") -> 100 | V18: =SUMIFS(DATA!K:K,DATA!A:A,Table1[[#This Row],[Name]],DATA!F:F,"Pre") -> 44 | W18: 0.6944444444 | X18: =SUMIFS(DATA!J:J,DATA!A:A,Table1[[#This Row],[Name]],DATA!F:F,"Semi") -> 21 | Y18: =SUMIFS(DATA!K:K,DATA!A:A,Table1[[#This Row],[Name]],DATA!F:F,"Semi") -> 15 | Z18: 0.5833333333 | AA18: =SUMIFS(DATA!J:J,DATA!A:A,Table1[[#This Row],[Name]],DATA!F:F,"COnA") -> 11 | AB18: =SUMIFS(DATA!K:K,DATA!A:A,Table1[[#This Row],[Name]],DATA!F:F,"ConA") -> 5 | AC18: 0.6875 | AD18: =SUMIFS(DATA!J:J,DATA!A:A,Table1[[#This Row],[Name]],DATA!F:F,"ConB") -> 0 | AE18: =SUMIFS(DATA!K:K,DATA!A:A,Table1[[#This Row],[Name]],DATA!F:F,"ConB") -> 0
A19: 16 | B19: Andrew Borden | C19: ABC | D19: =COUNTIF(DATA!$A$2:$A$9731,B19) -> 49 | E19: =SUMIF(DATA!$A$2:$A$9077,B19,DATA!$J$2:$J$9077) -> 114 | F19: =SUMIF(DATA!$A$2:$A$9077,B19,DATA!$K$2:$K$9077) -> 47 | G19: 161 | H19: 0.7080745342 | I19: 1.469387755 | J19: =Table1[[#This Row],[Correct]]/Table1[[#This Row],['#Quizzes]] -> 2.326530612 | K19: =SUMIF(DATA!$A$2:$A$9077,B19,DATA!$L$2:$L$9077) -> 1 | L19: =SUMIF(DATA!$A$2:$A$9077,B19,DATA!$M$2:$M$79077) -> 6 | M19: =SUMIF(DATA!$A$2:$A$9077,B19,DATA!$N$2:$N$9077) -> 0 | N19: =SUMIF(DATA!$A$2:$A$9101,B19,DATA!$O$2:$O$9101) -> 0 | O19: =SUMIF(DATA!$A$2:$A$9101,B19,DATA!$P$2:$P$9101) -> 0 | P19: =SUMIF(DATA!$A$2:$A$9101,B19,DATA!$Q$2:$Q$9101) -> 0 | Q19: =SUMIF(DATA!$A$2:$A$9078,B19,DATA!$R$2:$R$9078) -> 14 | R19: 0.2857142857 | S19: =SUMIF(DATA!$A$2:$A$9078,B19,DATA!$S$2:$S$9078) -> 4 | T19: 0.08163265306 | U19: =SUMIFS(DATA!J:J,DATA!A:A,Table1[[#This Row],[Name]],DATA!F:F,"Pre") -> 86 | V19: =SUMIFS(DATA!K:K,DATA!A:A,Table1[[#This Row],[Name]],DATA!F:F,"Pre") -> 24 | W19: 0.7818181818 | X19: =SUMIFS(DATA!J:J,DATA!A:A,Table1[[#This Row],[Name]],DATA!F:F,"Semi") -> 20 | Y19: =SUMIFS(DATA!K:K,DATA!A:A,Table1[[#This Row],[Name]],DATA!F:F,"Semi") -> 17 | Z19: 0.5405405405 | AA19: =SUMIFS(DATA!J:J,DATA!A:A,Table1[[#This Row],[Name]],DATA!F:F,"COnA") -> 8 | AB19: =SUMIFS(DATA!K:K,DATA!A:A,Table1[[#This Row],[Name]],DATA!F:F,"ConA") -> 6 | AC19: 0.5714285714 | AD19: =SUMIFS(DATA!J:J,DATA!A:A,Table1[[#This Row],[Name]],DATA!F:F,"ConB") -> 0 | AE19: =SUMIFS(DATA!K:K,DATA!A:A,Table1[[#This Row],[Name]],DATA!F:F,"ConB") -> 0
A20: 14 | B20: Esther Derr | C20: Chapel Hill | D20: =COUNTIF(DATA!$A$2:$A$9731,B20) -> 50 | E20: =SUMIF(DATA!$A$2:$A$9077,B20,DATA!$J$2:$J$9077) -> 136 | F20: =SUMIF(DATA!$A$2:$A$9077,B20,DATA!$K$2:$K$9077) -> 57 | G20: 193 | H20: 0.7046632124 | I20: 1.52 | J20: =Table1[[#This Row],[Correct]]/Table1[[#This Row],['#Quizzes]] -> 2.72 | K20: =SUMIF(DATA!$A$2:$A$9077,B20,DATA!$L$2:$L$9077) -> 1 | L20: =SUMIF(DATA!$A$2:$A$9077,B20,DATA!$M$2:$M$79077) -> 0 | M20: =SUMIF(DATA!$A$2:$A$9077,B20,DATA!$N$2:$N$9077) -> 2 | N20: =SUMIF(DATA!$A$2:$A$9101,B20,DATA!$O$2:$O$9101) -> 1 | O20: =SUMIF(DATA!$A$2:$A$9101,B20,DATA!$P$2:$P$9101) -> 0 | P20: =SUMIF(DATA!$A$2:$A$9101,B20,DATA!$Q$2:$Q$9101) -> 0 | Q20: =SUMIF(DATA!$A$2:$A$9078,B20,DATA!$R$2:$R$9078) -> 21 | R20: 0.42 | S20: =SUMIF(DATA!$A$2:$A$9078,B20,DATA!$S$2:$S$9078) -> 2 | T20: 0.04 | U20: =SUMIFS(DATA!J:J,DATA!A:A,Table1[[#This Row],[Name]],DATA!F:F,"Pre") -> 74 | V20: =SUMIFS(DATA!K:K,DATA!A:A,Table1[[#This Row],[Name]],DATA!F:F,"Pre") -> 35 | W20: 0.6788990826 | X20: =SUMIFS(DATA!J:J,DATA!A:A,Table1[[#This Row],[Name]],DATA!F:F,"Semi") -> 0 | Y20: =SUMIFS(DATA!K:K,DATA!A:A,Table1[[#This Row],[Name]],DATA!F:F,"Semi") -> 0 | AA20: =SUMIFS(DATA!J:J,DATA!A:A,Table1[[#This Row],[Name]],DATA!F:F,"COnA") -> 49 | AB20: =SUMIFS(DATA!K:K,DATA!A:A,Table1[[#This Row],[Name]],DATA!F:F,"ConA") -> 18 | AC20: 0.7313432836 | AD20: =SUMIFS(DATA!J:J,DATA!A:A,Table1[[#This Row],[Name]],DATA!F:F,"ConB") -> 13 | AE20: =SUMIFS(DATA!K:K,DATA!A:A,Table1[[#This Row],[Name]],DATA!F:F,"ConB") -> 4 | AF20: 0.7647058824
A21: 20 | B21: Ryan Small | C21: Fox Island | D21: =COUNTIF(DATA!$A$2:$A$9731,B21) -> 48 | E21: =SUMIF(DATA!$A$2:$A$9077,B21,DATA!$J$2:$J$9077) -> 121 | F21: =SUMIF(DATA!$A$2:$A$9077,B21,DATA!$K$2:$K$9077) -> 62 | G21: 183 | H21: 0.6612021858 | I21: 1.354166667 | J21: =Table1[[#This Row],[Correct]]/Table1[[#This Row],['#Quizzes]] -> 2.520833333 | K21: =SUMIF(DATA!$A$2:$A$9077,B21,DATA!$L$2:$L$9077) -> 0 | L21: =SUMIF(DATA!$A$2:$A$9077,B21,DATA!$M$2:$M$79077) -> 14 | M21: =SUMIF(DATA!$A$2:$A$9077,B21,DATA!$N$2:$N$9077) -> 8 | N21: =SUMIF(DATA!$A$2:$A$9101,B21,DATA!$O$2:$O$9101) -> 1 | O21: =SUMIF(DATA!$A$2:$A$9101,B21,DATA!$P$2:$P$9101) -> 0 | P21: =SUMIF(DATA!$A$2:$A$9101,B21,DATA!$Q$2:$Q$9101) -> 0 | Q21: =SUMIF(DATA!$A$2:$A$9078,B21,DATA!$R$2:$R$9078) -> 18 | R21: 0.375 | S21: =SUMIF(DATA!$A$2:$A$9078,B21,DATA!$S$2:$S$9078) -> 6 | T21: 0.125 | U21: =SUMIFS(DATA!J:J,DATA!A:A,Table1[[#This Row],[Name]],DATA!F:F,"Pre") -> 79 | V21: =SUMIFS(DATA!K:K,DATA!A:A,Table1[[#This Row],[Name]],DATA!F:F,"Pre") -> 32 | W21: 0.7117117117 | X21: =SUMIFS(DATA!J:J,DATA!A:A,Table1[[#This Row],[Name]],DATA!F:F,"Semi") -> 8 | Y21: =SUMIFS(DATA!K:K,DATA!A:A,Table1[[#This Row],[Name]],DATA!F:F,"Semi") -> 5 | Z21: 0.6153846154 | AA21: =SUMIFS(DATA!J:J,DATA!A:A,Table1[[#This Row],[Name]],DATA!F:F,"COnA") -> 27 | AB21: =SUMIFS(DATA!K:K,DATA!A:A,Table1[[#This Row],[Name]],DATA!F:F,"ConA") -> 17 | AC21: 0.6136363636 | AD21: =SUMIFS(DATA!J:J,DATA!A:A,Table1[[#This Row],[Name]],DATA!F:F,"ConB") -> 7 | AE21: =SUMIFS(DATA!K:K,DATA!A:A,Table1[[#This Row],[Name]],DATA!F:F,"ConB") -> 8 | AF21: 0.4666666667
A22: 21 | B22: Emilee Pope | C22: Dallas | D22: =COUNTIF(DATA!$A$2:$A$9731,B22) -> 48 | E22: =SUMIF(DATA!$A$2:$A$9077,B22,DATA!$J$2:$J$9077) -> 113 | F22: =SUMIF(DATA!$A$2:$A$9077,B22,DATA!$K$2:$K$9077) -> 56 | G22: 169 | H22: 0.6686390533 | I22: 1.208333333 | J22: =Table1[[#This Row],[Correct]]/Table1[[#This Row],['#Quizzes]] -> 2.354166667 | K22: =SUMIF(DATA!$A$2:$A$9077,B22,DATA!$L$2:$L$9077) -> 1 | L22: =SUMIF(DATA!$A$2:$A$9077,B22,DATA!$M$2:$M$79077) -> 3 | M22: =SUMIF(DATA!$A$2:$A$9077,B22,DATA!$N$2:$N$9077) -> 1 | N22: =SUMIF(DATA!$A$2:$A$9101,B22,DATA!$O$2:$O$9101) -> 3 | O22: =SUMIF(DATA!$A$2:$A$9101,B22,DATA!$P$2:$P$9101) -> 0 | P22: =SUMIF(DATA!$A$2:$A$9101,B22,DATA!$Q$2:$Q$9101) -> 0 | Q22: =SUMIF(DATA!$A$2:$A$9078,B22,DATA!$R$2:$R$9078) -> 14 | R22: 0.2916666667 | S22: =SUMIF(DATA!$A$2:$A$9078,B22,DATA!$S$2:$S$9078) -> 3 | T22: 0.0625 | U22: =SUMIFS(DATA!J:J,DATA!A:A,Table1[[#This Row],[Name]],DATA!F:F,"Pre") -> 87 | V22: =SUMIFS(DATA!K:K,DATA!A:A,Table1[[#This Row],[Name]],DATA!F:F,"Pre") -> 39 | W22: 0.6904761905 | X22: =SUMIFS(DATA!J:J,DATA!A:A,Table1[[#This Row],[Name]],DATA!F:F,"Semi") -> 26 | Y22: =SUMIFS(DATA!K:K,DATA!A:A,Table1[[#This Row],[Name]],DATA!F:F,"Semi") -> 17 | Z22: 0.6046511628 | AA22: =SUMIFS(DATA!J:J,DATA!A:A,Table1[[#This Row],[Name]],DATA!F:F,"COnA") -> 0 | AB22: =SUMIFS(DATA!K:K,DATA!A:A,Table1[[#This Row],[Name]],DATA!F:F,"ConA") -> 0 | AD22: =SUMIFS(DATA!J:J,DATA!A:A,Table1[[#This Row],[Name]],DATA!F:F,"ConB") -> 0 | AE22: =SUMIFS(DATA!K:K,DATA!A:A,Table1[[#This Row],[Name]],DATA!F:F,"ConB") -> 0
A23: 22 | B23: Samuel Do | C23: ABC | D23: =COUNTIF(DATA!$A$2:$A$9731,B23) -> 45 | E23: =SUMIF(DATA!$A$2:$A$9077,B23,DATA!$J$2:$J$9077) -> 85 | F23: =SUMIF(DATA!$A$2:$A$9077,B23,DATA!$K$2:$K$9077) -> 38 | G23: 123 | H23: 0.6910569106 | I23: 1.2 | J23: =Table1[[#This Row],[Correct]]/Table1[[#This Row],['#Quizzes]] -> 1.888888889 | K23: =SUMIF(DATA!$A$2:$A$9077,B23,DATA!$L$2:$L$9077) -> 0 | L23: =SUMIF(DATA!$A$2:$A$9077,B23,DATA!$M$2:$M$79077) -> 9 | M23: =SUMIF(DATA!$A$2:$A$9077,B23,DATA!$N$2:$N$9077) -> 2 | N23: =SUMIF(DATA!$A$2:$A$9101,B23,DATA!$O$2:$O$9101) -> 0 | O23: =SUMIF(DATA!$A$2:$A$9101,B23,DATA!$P$2:$P$9101) -> 0 | P23: =SUMIF(DATA!$A$2:$A$9101,B23,DATA!$Q$2:$Q$9101) -> 0 | Q23: =SUMIF(DATA!$A$2:$A$9078,B23,DATA!$R$2:$R$9078) -> 5 | R23: 0.1111111111 | S23: =SUMIF(DATA!$A$2:$A$9078,B23,DATA!$S$2:$S$9078) -> 2 | T23: 0.04444444444 | U23: =SUMIFS(DATA!J:J,DATA!A:A,Table1[[#This Row],[Name]],DATA!F:F,"Pre") -> 48 | V23: =SUMIFS(DATA!K:K,DATA!A:A,Table1[[#This Row],[Name]],DATA!F:F,"Pre") -> 25 | W23: 0.6575342466 | X23: =SUMIFS(DATA!J:J,DATA!A:A,Table1[[#This Row],[Name]],DATA!F:F,"Semi") -> 0 | Y23: =SUMIFS(DATA!K:K,DATA!A:A,Table1[[#This Row],[Name]],DATA!F:F,"Semi") -> 0 | AA23: =SUMIFS(DATA!J:J,DATA!A:A,Table1[[#This Row],[Name]],DATA!F:F,"COnA") -> 11 | AB23: =SUMIFS(DATA!K:K,DATA!A:A,Table1[[#This Row],[Name]],DATA!F:F,"ConA") -> 6 | AC23: 0.6470588235 | AD23: =SUMIFS(DATA!J:J,DATA!A:A,Table1[[#This Row],[Name]],DATA!F:F,"ConB") -> 26 | AE23: =SUMIFS(DATA!K:K,DATA!A:A,Table1[[#This Row],[Name]],DATA!F:F,"ConB") -> 7 | AF23: 0.7878787879
A24: 24 | B24: Teresa Derr | C24: Chapel Hill | D24: =COUNTIF(DATA!$A$2:$A$9731,B24) -> 47 | E24: =SUMIF(DATA!$A$2:$A$9077,B24,DATA!$J$2:$J$9077) -> 85 | F24: =SUMIF(DATA!$A$2:$A$9077,B24,DATA!$K$2:$K$9077) -> 24 | G24: 109 | H24: 0.7798165138 | I24: 1.255319149 | J24: =Table1[[#This Row],[Correct]]/Table1[[#This Row],['#Quizzes]] -> 1.808510638 | K24: =SUMIF(DATA!$A$2:$A$9077,B24,DATA!$L$2:$L$9077) -> 0 | L24: =SUMIF(DATA!$A$2:$A$9077,B24,DATA!$M$2:$M$79077) -> 9 | M24: =SUMIF(DATA!$A$2:$A$9077,B24,DATA!$N$2:$N$9077) -> 11 | N24: =SUMIF(DATA!$A$2:$A$9101,B24,DATA!$O$2:$O$9101) -> 0 | O24: =SUMIF(DATA!$A$2:$A$9101,B24,DATA!$P$2:$P$9101) -> 0 | P24: =SUMIF(DATA!$A$2:$A$9101,B24,DATA!$Q$2:$Q$9101) -> 0 | Q24: =SUMIF(DATA!$A$2:$A$9078,B24,DATA!$R$2:$R$9078) -> 8 | R24: 0.170212766 | S24: =SUMIF(DATA!$A$2:$A$9078,B24,DATA!$S$2:$S$9078) -> 1 | T24: 0.02127659574 | U24: =SUMIFS(DATA!J:J,DATA!A:A,Table1[[#This Row],[Name]],DATA!F:F,"Pre") -> 48 | V24: =SUMIFS(DATA!K:K,DATA!A:A,Table1[[#This Row],[Name]],DATA!F:F,"Pre") -> 18 | W24: 0.7272727273 | X24: =SUMIFS(DATA!J:J,DATA!A:A,Table1[[#This Row],[Name]],DATA!F:F,"Semi") -> 0 | Y24: =SUMIFS(DATA!K:K,DATA!A:A,Table1[[#This Row],[Name]],DATA!F:F,"Semi") -> 0 | AA24: =SUMIFS(DATA!J:J,DATA!A:A,Table1[[#This Row],[Name]],DATA!F:F,"COnA") -> 31 | AB24: =SUMIFS(DATA!K:K,DATA!A:A,Table1[[#This Row],[Name]],DATA!F:F,"ConA") -> 4 | AC24: 0.8857142857 | AD24: =SUMIFS(DATA!J:J,DATA!A:A,Table1[[#This Row],[Name]],DATA!F:F,"ConB") -> 6 | AE24: =SUMIFS(DATA!K:K,DATA!A:A,Table1[[#This Row],[Name]],DATA!F:F,"ConB") -> 2 | AF24: 0.75
A25: 23 | B25: Kimberly Bonar | C25: EBC | D25: =COUNTIF(DATA!$A$2:$A$9731,B25) -> 45 | E25: =SUMIF(DATA!$A$2:$A$9077,B25,DATA!$J$2:$J$9077) -> 99 | F25: =SUMIF(DATA!$A$2:$A$9077,B25,DATA!$K$2:$K$9077) -> 50 | G25: 149 | H25: 0.6644295302 | I25: 1.222222222 | J25: =Table1[[#This Row],[Correct]]/Table1[[#This Row],['#Quizzes]] -> 2.2 | K25: =SUMIF(DATA!$A$2:$A$9077,B25,DATA!$L$2:$L$9077) -> 2 | L25: =SUMIF(DATA!$A$2:$A$9077,B25,DATA!$M$2:$M$79077) -> 8 | M25: =SUMIF(DATA!$A$2:$A$9077,B25,DATA!$N$2:$N$9077) -> 0 | N25: =SUMIF(DATA!$A$2:$A$9101,B25,DATA!$O$2:$O$9101) -> 2 | O25: =SUMIF(DATA!$A$2:$A$9101,B25,DATA!$P$2:$P$9101) -> 0 | P25: =SUMIF(DATA!$A$2:$A$9101,B25,DATA!$Q$2:$Q$9101) -> 0 | Q25: =SUMIF(DATA!$A$2:$A$9078,B25,DATA!$R$2:$R$9078) -> 10 | R25: 0.2222222222 | S25: =SUMIF(DATA!$A$2:$A$9078,B25,DATA!$S$2:$S$9078) -> 3 | T25: 0.06666666667 | U25: =SUMIFS(DATA!J:J,DATA!A:A,Table1[[#This Row],[Name]],DATA!F:F,"Pre") -> 58 | V25: =SUMIFS(DATA!K:K,DATA!A:A,Table1[[#This Row],[Name]],DATA!F:F,"Pre") -> 29 | W25: 0.6666666667 | X25: =SUMIFS(DATA!J:J,DATA!A:A,Table1[[#This Row],[Name]],DATA!F:F,"Semi") -> 1 | Y25: =SUMIFS(DATA!K:K,DATA!A:A,Table1[[#This Row],[Name]],DATA!F:F,"Semi") -> 2 | Z25: 0.3333333333 | AA25: =SUMIFS(DATA!J:J,DATA!A:A,Table1[[#This Row],[Name]],DATA!F:F,"COnA") -> 17 | AB25: =SUMIFS(DATA!K:K,DATA!A:A,Table1[[#This Row],[Name]],DATA!F:F,"ConA") -> 8 | AC25: 0.68 | AD25: =SUMIFS(DATA!J:J,DATA!A:A,Table1[[#This Row],[Name]],DATA!F:F,"ConB") -> 23 | AE25: =SUMIFS(DATA!K:K,DATA!A:A,Table1[[#This Row],[Name]],DATA!F:F,"ConB") -> 11 | AF25: 0.6764705882
A26: 25 | B26: Ruth Stuart | C26: Lighthouse | D26: =COUNTIF(DATA!$A$2:$A$9731,B26) -> 42 | E26: =SUMIF(DATA!$A$2:$A$9077,B26,DATA!$J$2:$J$9077) -> 69 | F26: =SUMIF(DATA!$A$2:$A$9077,B26,DATA!$K$2:$K$9077) -> 26 | G26: 95 | H26: 0.7263157895 | I26: 1.047619048 | J26: =Table1[[#This Row],[Correct]]/Table1[[#This Row],['#Quizzes]] -> 1.642857143 | K26: =SUMIF(DATA!$A$2:$A$9077,B26,DATA!$L$2:$L$9077) -> 0 | L26: =SUMIF(DATA!$A$2:$A$9077,B26,DATA!$M$2:$M$79077) -> 4 | M26: =SUMIF(DATA!$A$2:$A$9077,B26,DATA!$N$2:$N$9077) -> 3 | N26: =SUMIF(DATA!$A$2:$A$9101,B26,DATA!$O$2:$O$9101) -> 2 | O26: =SUMIF(DATA!$A$2:$A$9101,B26,DATA!$P$2:$P$9101) -> 0 | P26: =SUMIF(DATA!$A$2:$A$9101,B26,DATA!$Q$2:$Q$9101) -> 0 | Q26: =SUMIF(DATA!$A$2:$A$9078,B26,DATA!$R$2:$R$9078) -> 2 | R26: 0.04761904762 | S26: =SUMIF(DATA!$A$2:$A$9078,B26,DATA!$S$2:$S$9078) -> 0 | T26: 0 | U26: =SUMIFS(DATA!J:J,DATA!A:A,Table1[[#This Row],[Name]],DATA!F:F,"Pre") -> 51 | V26: =SUMIFS(DATA!K:K,DATA!A:A,Table1[[#This Row],[Name]],DATA!F:F,"Pre") -> 19 | W26: 0.7285714286 | X26: =SUMIFS(DATA!J:J,DATA!A:A,Table1[[#This Row],[Name]],DATA!F:F,"Semi") -> 0 | Y26: =SUMIFS(DATA!K:K,DATA!A:A,Table1[[#This Row],[Name]],DATA!F:F,"Semi") -> 0 | AA26: =SUMIFS(DATA!J:J,DATA!A:A,Table1[[#This Row],[Name]],DATA!F:F,"COnA") -> 9 | AB26: =SUMIFS(DATA!K:K,DATA!A:A,Table1[[#This Row],[Name]],DATA!F:F,"ConA") -> 5 | AC26: 0.6428571429 | AD26: =SUMIFS(DATA!J:J,DATA!A:A,Table1[[#This Row],[Name]],DATA!F:F,"ConB") -> 9 | AE26: =SUMIFS(DATA!K:K,DATA!A:A,Table1[[#This Row],[Name]],DATA!F:F,"ConB") -> 2 | AF26: 0.8181818182
A27: 27 | B27: James Taw | C27: ABC | D27: =COUNTIF(DATA!$A$2:$A$9731,B27) -> 46 | E27: =SUMIF(DATA!$A$2:$A$9077,B27,DATA!$J$2:$J$9077) -> 86 | F27: =SUMIF(DATA!$A$2:$A$9077,B27,DATA!$K$2:$K$9077) -> 42 | G27: 128 | H27: 0.671875 | I27: 1.02173913 | J27: =Table1[[#This Row],[Correct]]/Table1[[#This Row],['#Quizzes]] -> 1.869565217 | K27: =SUMIF(DATA!$A$2:$A$9077,B27,DATA!$L$2:$L$9077) -> 3 | L27: =SUMIF(DATA!$A$2:$A$9077,B27,DATA!$M$2:$M$79077) -> 6 | M27: =SUMIF(DATA!$A$2:$A$9077,B27,DATA!$N$2:$N$9077) -> 0 | N27: =SUMIF(DATA!$A$2:$A$9101,B27,DATA!$O$2:$O$9101) -> 8 | O27: =SUMIF(DATA!$A$2:$A$9101,B27,DATA!$P$2:$P$9101) -> 0 | P27: =SUMIF(DATA!$A$2:$A$9101,B27,DATA!$Q$2:$Q$9101) -> 0 | Q27: =SUMIF(DATA!$A$2:$A$9078,B27,DATA!$R$2:$R$9078) -> 8 | R27: 0.1739130435 | S27: =SUMIF(DATA!$A$2:$A$9078,B27,DATA!$S$2:$S$9078) -> 1 | T27: 0.02173913043 | U27: =SUMIFS(DATA!J:J,DATA!A:A,Table1[[#This Row],[Name]],DATA!F:F,"Pre") -> 68 | V27: =SUMIFS(DATA!K:K,DATA!A:A,Table1[[#This Row],[Name]],DATA!F:F,"Pre") -> 32 | W27: 0.68 | X27: =SUMIFS(DATA!J:J,DATA!A:A,Table1[[#This Row],[Name]],DATA!F:F,"Semi") -> 18 | Y27: =SUMIFS(DATA!K:K,DATA!A:A,Table1[[#This Row],[Name]],DATA!F:F,"Semi") -> 10 | Z27: 0.6428571429 | AA27: =SUMIFS(DATA!J:J,DATA!A:A,Table1[[#This Row],[Name]],DATA!F:F,"COnA") -> 0 | AB27: =SUMIFS(DATA!K:K,DATA!A:A,Table1[[#This Row],[Name]],DATA!F:F,"ConA") -> 0 | AD27: =SUMIFS(DATA!J:J,DATA!A:A,Table1[[#This Row],[Name]],DATA!F:F,"ConB") -> 0 | AE27: =SUMIFS(DATA!K:K,DATA!A:A,Table1[[#This Row],[Name]],DATA!F:F,"ConB") -> 0
A28: 28 | B28: Ashly Barrios | C28: EBC | D28: =COUNTIF(DATA!$A$2:$A$9731,B28) -> 43 | E28: =SUMIF(DATA!$A$2:$A$9077,B28,DATA!$J$2:$J$9077) -> 74 | F28: =SUMIF(DATA!$A$2:$A$9077,B28,DATA!$K$2:$K$9077) -> 31 | G28: 105 | H28: 0.7047619048 | I28: 0.9534883721 | J28: =Table1[[#This Row],[Correct]]/Table1[[#This Row],['#Quizzes]] -> 1.720930233 | K28: =SUMIF(DATA!$A$2:$A$9077,B28,DATA!$L$2:$L$9077) -> 2 | L28: =SUMIF(DATA!$A$2:$A$9077,B28,DATA!$M$2:$M$79077) -> 2 | M28: =SUMIF(DATA!$A$2:$A$9077,B28,DATA!$N$2:$N$9077) -> 2 | N28: =SUMIF(DATA!$A$2:$A$9101,B28,DATA!$O$2:$O$9101) -> 4 | O28: =SUMIF(DATA!$A$2:$A$9101,B28,DATA!$P$2:$P$9101) -> 0 | P28: =SUMIF(DATA!$A$2:$A$9101,B28,DATA!$Q$2:$Q$9101) -> 0 | Q28: =SUMIF(DATA!$A$2:$A$9078,B28,DATA!$R$2:$R$9078) -> 10 | R28: 0.2325581395 | S28: =SUMIF(DATA!$A$2:$A$9078,B28,DATA!$S$2:$S$9078) -> 2 | T28: 0.04651162791 | U28: =SUMIFS(DATA!J:J,DATA!A:A,Table1[[#This Row],[Name]],DATA!F:F,"Pre") -> 59 | V28: =SUMIFS(DATA!K:K,DATA!A:A,Table1[[#This Row],[Name]],DATA!F:F,"Pre") -> 24 | W28: 0.7108433735 | X28: =SUMIFS(DATA!J:J,DATA!A:A,Table1[[#This Row],[Name]],DATA!F:F,"Semi") -> 7 | Y28: =SUMIFS(DATA!K:K,DATA!A:A,Table1[[#This Row],[Name]],DATA!F:F,"Semi") -> 4 | Z28: 0.6363636364 | AA28: =SUMIFS(DATA!J:J,DATA!A:A,Table1[[#This Row],[Name]],DATA!F:F,"COnA") -> 8 | AB28: =SUMIFS(DATA!K:K,DATA!A:A,Table1[[#This Row],[Name]],DATA!F:F,"ConA") -> 3 | AC28: 0.7272727273 | AD28: =SUMIFS(DATA!J:J,DATA!A:A,Table1[[#This Row],[Name]],DATA!F:F,"ConB") -> 0 | AE28: =SUMIFS(DATA!K:K,DATA!A:A,Table1[[#This Row],[Name]],DATA!F:F,"ConB") -> 0
A29: 26 | B29: Sam Ashcraft | C29: Lighthouse | D29: =COUNTIF(DATA!$A$2:$A$9731,B29) -> 47 | E29: =SUMIF(DATA!$A$2:$A$9077,B29,DATA!$J$2:$J$9077) -> 75 | F29: =SUMIF(DATA!$A$2:$A$9077,B29,DATA!$K$2:$K$9077) -> 31 | G29: 106 | H29: 0.7075471698 | I29: 0.914893617 | J29: =Table1[[#This Row],[Correct]]/Table1[[#This Row],['#Quizzes]] -> 1.595744681 | K29: =SUMIF(DATA!$A$2:$A$9077,B29,DATA!$L$2:$L$9077) -> 2 | L29: =SUMIF(DATA!$A$2:$A$9077,B29,DATA!$M$2:$M$79077) -> 3 | M29: =SUMIF(DATA!$A$2:$A$9077,B29,DATA!$N$2:$N$9077) -> 2 | N29: =SUMIF(DATA!$A$2:$A$9101,B29,DATA!$O$2:$O$9101) -> 5 | O29: =SUMIF(DATA!$A$2:$A$9101,B29,DATA!$P$2:$P$9101) -> 0 | P29: =SUMIF(DATA!$A$2:$A$9101,B29,DATA!$Q$2:$Q$9101) -> 0 | Q29: =SUMIF(DATA!$A$2:$A$9078,B29,DATA!$R$2:$R$9078) -> 6 | R29: 0.1276595745 | S29: =SUMIF(DATA!$A$2:$A$9078,B29,DATA!$S$2:$S$9078) -> 1 | T29: 0.02127659574 | U29: =SUMIFS(DATA!J:J,DATA!A:A,Table1[[#This Row],[Name]],DATA!F:F,"Pre") -> 39 | V29: =SUMIFS(DATA!K:K,DATA!A:A,Table1[[#This Row],[Name]],DATA!F:F,"Pre") -> 18 | W29: 0.6842105263 | X29: =SUMIFS(DATA!J:J,DATA!A:A,Table1[[#This Row],[Name]],DATA!F:F,"Semi") -> 1 | Y29: =SUMIFS(DATA!K:K,DATA!A:A,Table1[[#This Row],[Name]],DATA!F:F,"Semi") -> 0 | Z29: 1 | AA29: =SUMIFS(DATA!J:J,DATA!A:A,Table1[[#This Row],[Name]],DATA!F:F,"COnA") -> 9 | AB29: =SUMIFS(DATA!K:K,DATA!A:A,Table1[[#This Row],[Name]],DATA!F:F,"ConA") -> 8 | AC29: 0.5294117647 | AD29: =SUMIFS(DATA!J:J,DATA!A:A,Table1[[#This Row],[Name]],DATA!F:F,"ConB") -> 26 | AE29: =SUMIFS(DATA!K:K,DATA!A:A,Table1[[#This Row],[Name]],DATA!F:F,"ConB") -> 5 | AF29: 0.8387096774
A30: 30 | B30: Daniel Do | C30: ABC | D30: =COUNTIF(DATA!$A$2:$A$9731,B30) -> 56 | E30: =SUMIF(DATA!$A$2:$A$9077,B30,DATA!$J$2:$J$9077) -> 108 | F30: =SUMIF(DATA!$A$2:$A$9077,B30,DATA!$K$2:$K$9077) -> 60 | G30: 168 | H30: 0.6428571429 | I30: 0.8392857143 | J30: =Table1[[#This Row],[Correct]]/Table1[[#This Row],['#Quizzes]] -> 1.928571429 | K30: =SUMIF(DATA!$A$2:$A$9077,B30,DATA!$L$2:$L$9077) -> 0 | L30: =SUMIF(DATA!$A$2:$A$9077,B30,DATA!$M$2:$M$79077) -> 2 | M30: =SUMIF(DATA!$A$2:$A$9077,B30,DATA!$N$2:$N$9077) -> 3 | N30: =SUMIF(DATA!$A$2:$A$9101,B30,DATA!$O$2:$O$9101) -> 16 | O30: =SUMIF(DATA!$A$2:$A$9101,B30,DATA!$P$2:$P$9101) -> 0 | P30: =SUMIF(DATA!$A$2:$A$9101,B30,DATA!$Q$2:$Q$9101) -> 0 | Q30: =SUMIF(DATA!$A$2:$A$9078,B30,DATA!$R$2:$R$9078) -> 7 | R30: 0.125 | S30: =SUMIF(DATA!$A$2:$A$9078,B30,DATA!$S$2:$S$9078) -> 4 | T30: 0.07142857143 | U30: =SUMIFS(DATA!J:J,DATA!A:A,Table1[[#This Row],[Name]],DATA!F:F,"Pre") -> 64 | V30: =SUMIFS(DATA!K:K,DATA!A:A,Table1[[#This Row],[Name]],DATA!F:F,"Pre") -> 39 | W30: 0.6213592233 | X30: =SUMIFS(DATA!J:J,DATA!A:A,Table1[[#This Row],[Name]],DATA!F:F,"Semi") -> 44 | Y30: =SUMIFS(DATA!K:K,DATA!A:A,Table1[[#This Row],[Name]],DATA!F:F,"Semi") -> 21 | Z30: 0.6769230769 | AA30: =SUMIFS(DATA!J:J,DATA!A:A,Table1[[#This Row],[Name]],DATA!F:F,"COnA") -> 0 | AB30: =SUMIFS(DATA!K:K,DATA!A:A,Table1[[#This Row],[Name]],DATA!F:F,"ConA") -> 0 | AD30: =SUMIFS(DATA!J:J,DATA!A:A,Table1[[#This Row],[Name]],DATA!F:F,"ConB") -> 0 | AE30: =SUMIFS(DATA!K:K,DATA!A:A,Table1[[#This Row],[Name]],DATA!F:F,"ConB") -> 0
A31: 31 | B31: Aidan McKee | C31: Lighthouse | D31: =COUNTIF(DATA!$A$2:$A$9731,B31) -> 47 | E31: =SUMIF(DATA!$A$2:$A$9077,B31,DATA!$J$2:$J$9077) -> 53 | F31: =SUMIF(DATA!$A$2:$A$9077,B31,DATA!$K$2:$K$9077) -> 16 | G31: 69 | H31: 0.768115942 | I31: 0.7872340426 | J31: =Table1[[#This Row],[Correct]]/Table1[[#This Row],['#Quizzes]] -> 1.127659574 | K31: =SUMIF(DATA!$A$2:$A$9077,B31,DATA!$L$2:$L$9077) -> 0 | L31: =SUMIF(DATA!$A$2:$A$9077,B31,DATA!$M$2:$M$79077) -> 3 | M31: =SUMIF(DATA!$A$2:$A$9077,B31,DATA!$N$2:$N$9077) -> 3 | N31: =SUMIF(DATA!$A$2:$A$9101,B31,DATA!$O$2:$O$9101) -> 2 | O31: =SUMIF(DATA!$A$2:$A$9101,B31,DATA!$P$2:$P$9101) -> 1 | P31: =SUMIF(DATA!$A$2:$A$9101,B31,DATA!$Q$2:$Q$9101) -> 0 | Q31: =SUMIF(DATA!$A$2:$A$9078,B31,DATA!$R$2:$R$9078) -> 2 | R31: 0.04255319149 | S31: =SUMIF(DATA!$A$2:$A$9078,B31,DATA!$S$2:$S$9078) -> 0 | T31: 0 | U31: =SUMIFS(DATA!J:J,DATA!A:A,Table1[[#This Row],[Name]],DATA!F:F,"Pre") -> 39 | V31: =SUMIFS(DATA!K:K,DATA!A:A,Table1[[#This Row],[Name]],DATA!F:F,"Pre") -> 11 | W31: 0.78 | X31: =SUMIFS(DATA!J:J,DATA!A:A,Table1[[#This Row],[Name]],DATA!F:F,"Semi") -> 3 | Y31: =SUMIFS(DATA!K:K,DATA!A:A,Table1[[#This Row],[Name]],DATA!F:F,"Semi") -> 0 | Z31: 1 | AA31: =SUMIFS(DATA!J:J,DATA!A:A,Table1[[#This Row],[Name]],DATA!F:F,"COnA") -> 5 | AB31: =SUMIFS(DATA!K:K,DATA!A:A,Table1[[#This Row],[Name]],DATA!F:F,"ConA") -> 4 | AC31: 0.5555555556 | AD31: =SUMIFS(DATA!J:J,DATA!A:A,Table1[[#This Row],[Name]],DATA!F:F,"ConB") -> 6 | AE31: =SUMIFS(DATA!K:K,DATA!A:A,Table1[[#This Row],[Name]],DATA!F:F,"ConB") -> 1 | AF31: 0.8571428571
A32: 29 | B32: Melinda Borden | C32: ABC | D32: =COUNTIF(DATA!$A$2:$A$9731,B32) -> 46 | E32: =SUMIF(DATA!$A$2:$A$9077,B32,DATA!$J$2:$J$9077) -> 54 | F32: =SUMIF(DATA!$A$2:$A$9077,B32,DATA!$K$2:$K$9077) -> 18 | G32: 72 | H32: 0.75 | I32: 0.7826086957 | J32: =Table1[[#This Row],[Correct]]/Table1[[#This Row],['#Quizzes]] -> 1.173913043 | K32: =SUMIF(DATA!$A$2:$A$9077,B32,DATA!$L$2:$L$9077) -> 0 | L32: =SUMIF(DATA!$A$2:$A$9077,B32,DATA!$M$2:$M$79077) -> 1 | M32: =SUMIF(DATA!$A$2:$A$9077,B32,DATA!$N$2:$N$9077) -> 1 | N32: =SUMIF(DATA!$A$2:$A$9101,B32,DATA!$O$2:$O$9101) -> 6 | O32: =SUMIF(DATA!$A$2:$A$9101,B32,DATA!$P$2:$P$9101) -> 0 | P32: =SUMIF(DATA!$A$2:$A$9101,B32,DATA!$Q$2:$Q$9101) -> 0 | Q32: =SUMIF(DATA!$A$2:$A$9078,B32,DATA!$R$2:$R$9078) -> 4 | R32: 0.08695652174 | S32: =SUMIF(DATA!$A$2:$A$9078,B32,DATA!$S$2:$S$9078) -> 0 | T32: 0 | U32: =SUMIFS(DATA!J:J,DATA!A:A,Table1[[#This Row],[Name]],DATA!F:F,"Pre") -> 41 | V32: =SUMIFS(DATA!K:K,DATA!A:A,Table1[[#This Row],[Name]],DATA!F:F,"Pre") -> 13 | W32: 0.7592592593 | X32: =SUMIFS(DATA!J:J,DATA!A:A,Table1[[#This Row],[Name]],DATA!F:F,"Semi") -> 13 | Y32: =SUMIFS(DATA!K:K,DATA!A:A,Table1[[#This Row],[Name]],DATA!F:F,"Semi") -> 5 | Z32: 0.7222222222 | AA32: =SUMIFS(DATA!J:J,DATA!A:A,Table1[[#This Row],[Name]],DATA!F:F,"COnA") -> 0 | AB32: =SUMIFS(DATA!K:K,DATA!A:A,Table1[[#This Row],[Name]],DATA!F:F,"ConA") -> 0 | AD32: =SUMIFS(DATA!J:J,DATA!A:A,Table1[[#This Row],[Name]],DATA!F:F,"ConB") -> 0 | AE32: =SUMIFS(DATA!K:K,DATA!A:A,Table1[[#This Row],[Name]],DATA!F:F,"ConB") -> 0
A33: 33 | B33: Ruby Borden | C33: ABC | D33: =COUNTIF(DATA!$A$2:$A$9731,B33) -> 48 | E33: =SUMIF(DATA!$A$2:$A$9077,B33,DATA!$J$2:$J$9077) -> 34 | F33: =SUMIF(DATA!$A$2:$A$9077,B33,DATA!$K$2:$K$9077) -> 5 | G33: 39 | H33: 0.8717948718 | I33: 0.625 | J33: =Table1[[#This Row],[Correct]]/Table1[[#This Row],['#Quizzes]] -> 0.7083333333 | K33: =SUMIF(DATA!$A$2:$A$9077,B33,DATA!$L$2:$L$9077) -> 0 | L33: =SUMIF(DATA!$A$2:$A$9077,B33,DATA!$M$2:$M$79077) -> 5 | M33: =SUMIF(DATA!$A$2:$A$9077,B33,DATA!$N$2:$N$9077) -> 4 | N33: =SUMIF(DATA!$A$2:$A$9101,B33,DATA!$O$2:$O$9101) -> 3 | O33: =SUMIF(DATA!$A$2:$A$9101,B33,DATA!$P$2:$P$9101) -> 0 | P33: =SUMIF(DATA!$A$2:$A$9101,B33,DATA!$Q$2:$Q$9101) -> 0 | Q33: =SUMIF(DATA!$A$2:$A$9078,B33,DATA!$R$2:$R$9078) -> 1 | R33: 0.02083333333 | S33: =SUMIF(DATA!$A$2:$A$9078,B33,DATA!$S$2:$S$9078) -> 0 | T33: 0 | U33: =SUMIFS(DATA!J:J,DATA!A:A,Table1[[#This Row],[Name]],DATA!F:F,"Pre") -> 21 | V33: =SUMIFS(DATA!K:K,DATA!A:A,Table1[[#This Row],[Name]],DATA!F:F,"Pre") -> 2 | W33: 0.9130434783 | X33: =SUMIFS(DATA!J:J,DATA!A:A,Table1[[#This Row],[Name]],DATA!F:F,"Semi") -> 0 | Y33: =SUMIFS(DATA!K:K,DATA!A:A,Table1[[#This Row],[Name]],DATA!F:F,"Semi") -> 0 | AA33: =SUMIFS(DATA!J:J,DATA!A:A,Table1[[#This Row],[Name]],DATA!F:F,"COnA") -> 5 | AB33: =SUMIFS(DATA!K:K,DATA!A:A,Table1[[#This Row],[Name]],DATA!F:F,"ConA") -> 1 | AC33: 0.8333333333 | AD33: =SUMIFS(DATA!J:J,DATA!A:A,Table1[[#This Row],[Name]],DATA!F:F,"ConB") -> 8 | AE33: =SUMIFS(DATA!K:K,DATA!A:A,Table1[[#This Row],[Name]],DATA!F:F,"ConB") -> 2 | AF33: 0.8
A34: 34 | B34: Justin Widmer | C34: Dallas | D34: =COUNTIF(DATA!$A$2:$A$9731,B34) -> 46 | E34: =SUMIF(DATA!$A$2:$A$9077,B34,DATA!$J$2:$J$9077) -> 101 | F34: =SUMIF(DATA!$A$2:$A$9077,B34,DATA!$K$2:$K$9077) -> 66 | G34: =E34+F34 -> 167 | H34: =E34/(E34+F34) -> 0.6047904192 | I34: =(E34+L34-F34-K34-M34)/D34 -> 0.7391304348 | J34: =Table1[[#This Row],[Correct]]/Table1[[#This Row],['#Quizzes]] -> 2.195652174 | K34: =SUMIF(DATA!$A$2:$A$9077,B34,DATA!$L$2:$L$9077) -> 1 | L34: =SUMIF(DATA!$A$2:$A$9077,B34,DATA!$M$2:$M$79077) -> 7 | M34: =SUMIF(DATA!$A$2:$A$9077,B34,DATA!$N$2:$N$9077) -> 7 | N34: =SUMIF(DATA!$A$2:$A$9101,B34,DATA!$O$2:$O$9101) -> 0 | O34: =SUMIF(DATA!$A$2:$A$9101,B34,DATA!$P$2:$P$9101) -> 0 | P34: =SUMIF(DATA!$A$2:$A$9101,B34,DATA!$Q$2:$Q$9101) -> 0 | Q34: =SUMIF(DATA!$A$2:$A$9078,B34,DATA!$R$2:$R$9078) -> 9 | R34: =Q34/D34 -> 0.1956521739 | S34: =SUMIF(DATA!$A$2:$A$9078,B34,DATA!$S$2:$S$9078) -> 8 | T34: =S34/D34 -> 0.1739130435 | U34: =SUMIFS(DATA!J:J,DATA!A:A,Table1[[#This Row],[Name]],DATA!F:F,"Pre") -> 51 | V34: =SUMIFS(DATA!K:K,DATA!A:A,Table1[[#This Row],[Name]],DATA!F:F,"Pre") -> 43 | W34: =U34/(U34+V34) -> 0.5425531915 | X34: =SUMIFS(DATA!J:J,DATA!A:A,Table1[[#This Row],[Name]],DATA!F:F,"Semi") -> 0 | Y34: =SUMIFS(DATA!K:K,DATA!A:A,Table1[[#This Row],[Name]],DATA!F:F,"Semi") -> 0 | Z34: =X34/(X34+Y34) ->  | AA34: =SUMIFS(DATA!J:J,DATA!A:A,Table1[[#This Row],[Name]],DATA!F:F,"COnA") -> 0 | AB34: =SUMIFS(DATA!K:K,DATA!A:A,Table1[[#This Row],[Name]],DATA!F:F,"ConA") -> 0 | AC34: =AA34/(AA34+AB34) ->  | AD34: =SUMIFS(DATA!J:J,DATA!A:A,Table1[[#This Row],[Name]],DATA!F:F,"ConB") -> 50 | AE34: =SUMIFS(DATA!K:K,DATA!A:A,Table1[[#This Row],[Name]],DATA!F:F,"ConB") -> 23 | AF34: =AD34/(AD34+AE34) -> 0.6849315068
A35: 32 | B35: Eliana Swindler | C35: Lighthouse | D35: =COUNTIF(DATA!$A$2:$A$9731,B35) -> 39 | E35: =SUMIF(DATA!$A$2:$A$9077,B35,DATA!$J$2:$J$9077) -> 29 | F35: =SUMIF(DATA!$A$2:$A$9077,B35,DATA!$K$2:$K$9077) -> 7 | G35: 36 | H35: 0.8055555556 | I35: 0.5384615385 | J35: =Table1[[#This Row],[Correct]]/Table1[[#This Row],['#Quizzes]] -> 0.7435897436 | K35: =SUMIF(DATA!$A$2:$A$9077,B35,DATA!$L$2:$L$9077) -> 1 | L35: =SUMIF(DATA!$A$2:$A$9077,B35,DATA!$M$2:$M$79077) -> 1 | M35: =SUMIF(DATA!$A$2:$A$9077,B35,DATA!$N$2:$N$9077) -> 1 | N35: =SUMIF(DATA!$A$2:$A$9101,B35,DATA!$O$2:$O$9101) -> 4 | O35: =SUMIF(DATA!$A$2:$A$9101,B35,DATA!$P$2:$P$9101) -> 0 | P35: =SUMIF(DATA!$A$2:$A$9101,B35,DATA!$Q$2:$Q$9101) -> 0 | Q35: =SUMIF(DATA!$A$2:$A$9078,B35,DATA!$R$2:$R$9078) -> 0 | R35: 0 | S35: =SUMIF(DATA!$A$2:$A$9078,B35,DATA!$S$2:$S$9078) -> 0 | T35: 0 | U35: =SUMIFS(DATA!J:J,DATA!A:A,Table1[[#This Row],[Name]],DATA!F:F,"Pre") -> 17 | V35: =SUMIFS(DATA!K:K,DATA!A:A,Table1[[#This Row],[Name]],DATA!F:F,"Pre") -> 6 | W35: 0.7391304348 | X35: =SUMIFS(DATA!J:J,DATA!A:A,Table1[[#This Row],[Name]],DATA!F:F,"Semi") -> 0 | Y35: =SUMIFS(DATA!K:K,DATA!A:A,Table1[[#This Row],[Name]],DATA!F:F,"Semi") -> 0 | AA35: =SUMIFS(DATA!J:J,DATA!A:A,Table1[[#This Row],[Name]],DATA!F:F,"COnA") -> 12 | AB35: =SUMIFS(DATA!K:K,DATA!A:A,Table1[[#This Row],[Name]],DATA!F:F,"ConA") -> 1 | AC35: 0.9230769231 | AD35: =SUMIFS(DATA!J:J,DATA!A:A,Table1[[#This Row],[Name]],DATA!F:F,"ConB") -> 0 | AE35: =SUMIFS(DATA!K:K,DATA!A:A,Table1[[#This Row],[Name]],DATA!F:F,"ConB") -> 0
A36: 41 | B36: Benjamin Malchert | C36: Grays Harbor | D36: =COUNTIF(DATA!$A$2:$A$9731,B36) -> 45 | E36: =SUMIF(DATA!$A$2:$A$9077,B36,DATA!$J$2:$J$9077) -> 84 | F36: =SUMIF(DATA!$A$2:$A$9077,B36,DATA!$K$2:$K$9077) -> 53 | G36: 137 | H36: 0.6131386861 | I36: 0.5777777778 | J36: =Table1[[#This Row],[Correct]]/Table1[[#This Row],['#Quizzes]] -> 1.866666667 | K36: =SUMIF(DATA!$A$2:$A$9077,B36,DATA!$L$2:$L$9077) -> 5 | L36: =SUMIF(DATA!$A$2:$A$9077,B36,DATA!$M$2:$M$79077) -> 0 | M36: =SUMIF(DATA!$A$2:$A$9077,B36,DATA!$N$2:$N$9077) -> 0 | N36: =SUMIF(DATA!$A$2:$A$9101,B36,DATA!$O$2:$O$9101) -> 7 | O36: =SUMIF(DATA!$A$2:$A$9101,B36,DATA!$P$2:$P$9101) -> 0 | P36: =SUMIF(DATA!$A$2:$A$9101,B36,DATA!$Q$2:$Q$9101) -> 0 | Q36: =SUMIF(DATA!$A$2:$A$9078,B36,DATA!$R$2:$R$9078) -> 7 | R36: 0.1555555556 | S36: =SUMIF(DATA!$A$2:$A$9078,B36,DATA!$S$2:$S$9078) -> 5 | T36: 0.1111111111 | U36: =SUMIFS(DATA!J:J,DATA!A:A,Table1[[#This Row],[Name]],DATA!F:F,"Pre") -> 65 | V36: =SUMIFS(DATA!K:K,DATA!A:A,Table1[[#This Row],[Name]],DATA!F:F,"Pre") -> 36 | W36: 0.6435643564 | X36: =SUMIFS(DATA!J:J,DATA!A:A,Table1[[#This Row],[Name]],DATA!F:F,"Semi") -> 8 | Y36: =SUMIFS(DATA!K:K,DATA!A:A,Table1[[#This Row],[Name]],DATA!F:F,"Semi") -> 9 | Z36: 0.4705882353 | AA36: =SUMIFS(DATA!J:J,DATA!A:A,Table1[[#This Row],[Name]],DATA!F:F,"COnA") -> 11 | AB36: =SUMIFS(DATA!K:K,DATA!A:A,Table1[[#This Row],[Name]],DATA!F:F,"ConA") -> 8 | AC36: 0.5789473684 | AD36: =SUMIFS(DATA!J:J,DATA!A:A,Table1[[#This Row],[Name]],DATA!F:F,"ConB") -> 0 | AE36: =SUMIFS(DATA!K:K,DATA!A:A,Table1[[#This Row],[Name]],DATA!F:F,"ConB") -> 0
A37: 37 | B37: Peter Stuart | C37: Lighthouse | D37: =COUNTIF(DATA!$A$2:$A$9731,B37) -> 44 | E37: =SUMIF(DATA!$A$2:$A$9077,B37,DATA!$J$2:$J$9077) -> 66 | F37: =SUMIF(DATA!$A$2:$A$9077,B37,DATA!$K$2:$K$9077) -> 49 | G37: 115 | H37: 0.5739130435 | I37: 0.4090909091 | J37: =Table1[[#This Row],[Correct]]/Table1[[#This Row],['#Quizzes]] -> 1.5 | K37: =SUMIF(DATA!$A$2:$A$9077,B37,DATA!$L$2:$L$9077) -> 3 | L37: =SUMIF(DATA!$A$2:$A$9077,B37,DATA!$M$2:$M$79077) -> 5 | M37: =SUMIF(DATA!$A$2:$A$9077,B37,DATA!$N$2:$N$9077) -> 1 | N37: =SUMIF(DATA!$A$2:$A$9101,B37,DATA!$O$2:$O$9101) -> 5 | O37: =SUMIF(DATA!$A$2:$A$9101,B37,DATA!$P$2:$P$9101) -> 1 | P37: =SUMIF(DATA!$A$2:$A$9101,B37,DATA!$Q$2:$Q$9101) -> 0 | Q37: =SUMIF(DATA!$A$2:$A$9078,B37,DATA!$R$2:$R$9078) -> 4 | R37: 0.09090909091 | S37: =SUMIF(DATA!$A$2:$A$9078,B37,DATA!$S$2:$S$9078) -> 5 | T37: 0.1136363636 | U37: =SUMIFS(DATA!J:J,DATA!A:A,Table1[[#This Row],[Name]],DATA!F:F,"Pre") -> 36 | V37: =SUMIFS(DATA!K:K,DATA!A:A,Table1[[#This Row],[Name]],DATA!F:F,"Pre") -> 26 | W37: 0.5806451613 | X37: =SUMIFS(DATA!J:J,DATA!A:A,Table1[[#This Row],[Name]],DATA!F:F,"Semi") -> 0 | Y37: =SUMIFS(DATA!K:K,DATA!A:A,Table1[[#This Row],[Name]],DATA!F:F,"Semi") -> 0 | AA37: =SUMIFS(DATA!J:J,DATA!A:A,Table1[[#This Row],[Name]],DATA!F:F,"COnA") -> 15 | AB37: =SUMIFS(DATA!K:K,DATA!A:A,Table1[[#This Row],[Name]],DATA!F:F,"ConA") -> 15 | AC37: 0.5 | AD37: =SUMIFS(DATA!J:J,DATA!A:A,Table1[[#This Row],[Name]],DATA!F:F,"ConB") -> 15 | AE37: =SUMIFS(DATA!K:K,DATA!A:A,Table1[[#This Row],[Name]],DATA!F:F,"ConB") -> 8 | AF37: 0.652173913
A38: 36 | B38: Nathan Bonar | C38: EBC | D38: =COUNTIF(DATA!$A$2:$A$9731,B38) -> 43 | E38: =SUMIF(DATA!$A$2:$A$9077,B38,DATA!$J$2:$J$9077) -> 83 | F38: =SUMIF(DATA!$A$2:$A$9077,B38,DATA!$K$2:$K$9077) -> 64 | G38: 147 | H38: 0.5646258503 | I38: 0.488372093 | J38: =Table1[[#This Row],[Correct]]/Table1[[#This Row],['#Quizzes]] -> 1.930232558 | K38: =SUMIF(DATA!$A$2:$A$9077,B38,DATA!$L$2:$L$9077) -> 1 | L38: =SUMIF(DATA!$A$2:$A$9077,B38,DATA!$M$2:$M$79077) -> 6 | M38: =SUMIF(DATA!$A$2:$A$9077,B38,DATA!$N$2:$N$9077) -> 3 | N38: =SUMIF(DATA!$A$2:$A$9101,B38,DATA!$O$2:$O$9101) -> 5 | O38: =SUMIF(DATA!$A$2:$A$9101,B38,DATA!$P$2:$P$9101) -> 0 | P38: =SUMIF(DATA!$A$2:$A$9101,B38,DATA!$Q$2:$Q$9101) -> 0 | Q38: =SUMIF(DATA!$A$2:$A$9078,B38,DATA!$R$2:$R$9078) -> 11 | R38: 0.2558139535 | S38: =SUMIF(DATA!$A$2:$A$9078,B38,DATA!$S$2:$S$9078) -> 9 | T38: 0.2093023256 | U38: =SUMIFS(DATA!J:J,DATA!A:A,Table1[[#This Row],[Name]],DATA!F:F,"Pre") -> 71 | V38: =SUMIFS(DATA!K:K,DATA!A:A,Table1[[#This Row],[Name]],DATA!F:F,"Pre") -> 45 | W38: 0.6120689655 | X38: =SUMIFS(DATA!J:J,DATA!A:A,Table1[[#This Row],[Name]],DATA!F:F,"Semi") -> 12 | Y38: =SUMIFS(DATA!K:K,DATA!A:A,Table1[[#This Row],[Name]],DATA!F:F,"Semi") -> 19 | Z38: 0.3870967742 | AA38: =SUMIFS(DATA!J:J,DATA!A:A,Table1[[#This Row],[Name]],DATA!F:F,"COnA") -> 0 | AB38: =SUMIFS(DATA!K:K,DATA!A:A,Table1[[#This Row],[Name]],DATA!F:F,"ConA") -> 0 | AD38: =SUMIFS(DATA!J:J,DATA!A:A,Table1[[#This Row],[Name]],DATA!F:F,"ConB") -> 0 | AE38: =SUMIFS(DATA!K:K,DATA!A:A,Table1[[#This Row],[Name]],DATA!F:F,"ConB") -> 0
A39: 35 | B39: Isabel Bammer | C39: ABC | D39: =COUNTIF(DATA!$A$2:$A$9731,B39) -> 56 | E39: =SUMIF(DATA!$A$2:$A$9077,B39,DATA!$J$2:$J$9077) -> 109 | F39: =SUMIF(DATA!$A$2:$A$9077,B39,DATA!$K$2:$K$9077) -> 80 | G39: 189 | H39: 0.5767195767 | I39: 0.4464285714 | J39: =Table1[[#This Row],[Correct]]/Table1[[#This Row],['#Quizzes]] -> 1.946428571 | K39: =SUMIF(DATA!$A$2:$A$9077,B39,DATA!$L$2:$L$9077) -> 3 | L39: =SUMIF(DATA!$A$2:$A$9077,B39,DATA!$M$2:$M$79077) -> 0 | M39: =SUMIF(DATA!$A$2:$A$9077,B39,DATA!$N$2:$N$9077) -> 1 | N39: =SUMIF(DATA!$A$2:$A$9101,B39,DATA!$O$2:$O$9101) -> 19 | O39: =SUMIF(DATA!$A$2:$A$9101,B39,DATA!$P$2:$P$9101) -> 0 | P39: =SUMIF(DATA!$A$2:$A$9101,B39,DATA!$Q$2:$Q$9101) -> 0 | Q39: =SUMIF(DATA!$A$2:$A$9078,B39,DATA!$R$2:$R$9078) -> 10 | R39: 0.1785714286 | S39: =SUMIF(DATA!$A$2:$A$9078,B39,DATA!$S$2:$S$9078) -> 6 | T39: 0.1071428571 | U39: =SUMIFS(DATA!J:J,DATA!A:A,Table1[[#This Row],[Name]],DATA!F:F,"Pre") -> 68 | V39: =SUMIFS(DATA!K:K,DATA!A:A,Table1[[#This Row],[Name]],DATA!F:F,"Pre") -> 44 | W39: 0.6071428571 | X39: =SUMIFS(DATA!J:J,DATA!A:A,Table1[[#This Row],[Name]],DATA!F:F,"Semi") -> 41 | Y39: =SUMIFS(DATA!K:K,DATA!A:A,Table1[[#This Row],[Name]],DATA!F:F,"Semi") -> 36 | Z39: 0.5324675325 | AA39: =SUMIFS(DATA!J:J,DATA!A:A,Table1[[#This Row],[Name]],DATA!F:F,"COnA") -> 0 | AB39: =SUMIFS(DATA!K:K,DATA!A:A,Table1[[#This Row],[Name]],DATA!F:F,"ConA") -> 0 | AD39: =SUMIFS(DATA!J:J,DATA!A:A,Table1[[#This Row],[Name]],DATA!F:F,"ConB") -> 0 | AE39: =SUMIFS(DATA!K:K,DATA!A:A,Table1[[#This Row],[Name]],DATA!F:F,"ConB") -> 0
A40: 40 | B40: Zoe Walters | C40: Lighthouse | D40: =COUNTIF(DATA!$A$2:$A$9731,B40) -> 47 | E40: =SUMIF(DATA!$A$2:$A$9077,B40,DATA!$J$2:$J$9077) -> 51 | F40: =SUMIF(DATA!$A$2:$A$9077,B40,DATA!$K$2:$K$9077) -> 20 | G40: 71 | H40: 0.7183098592 | I40: 0.5106382979 | J40: =Table1[[#This Row],[Correct]]/Table1[[#This Row],['#Quizzes]] -> 1.085106383 | K40: =SUMIF(DATA!$A$2:$A$9077,B40,DATA!$L$2:$L$9077) -> 1 | L40: =SUMIF(DATA!$A$2:$A$9077,B40,DATA!$M$2:$M$79077) -> 4 | M40: =SUMIF(DATA!$A$2:$A$9077,B40,DATA!$N$2:$N$9077) -> 10 | N40: =SUMIF(DATA!$A$2:$A$9101,B40,DATA!$O$2:$O$9101) -> 2 | O40: =SUMIF(DATA!$A$2:$A$9101,B40,DATA!$P$2:$P$9101) -> 0 | P40: =SUMIF(DATA!$A$2:$A$9101,B40,DATA!$Q$2:$Q$9101) -> 0 | Q40: =SUMIF(DATA!$A$2:$A$9078,B40,DATA!$R$2:$R$9078) -> 0 | R40: 0 | S40: =SUMIF(DATA!$A$2:$A$9078,B40,DATA!$S$2:$S$9078) -> 0 | T40: 0 | U40: =SUMIFS(DATA!J:J,DATA!A:A,Table1[[#This Row],[Name]],DATA!F:F,"Pre") -> 25 | V40: =SUMIFS(DATA!K:K,DATA!A:A,Table1[[#This Row],[Name]],DATA!F:F,"Pre") -> 13 | W40: 0.6578947368 | X40: =SUMIFS(DATA!J:J,DATA!A:A,Table1[[#This Row],[Name]],DATA!F:F,"Semi") -> 0 | Y40: =SUMIFS(DATA!K:K,DATA!A:A,Table1[[#This Row],[Name]],DATA!F:F,"Semi") -> 0 | AA40: =SUMIFS(DATA!J:J,DATA!A:A,Table1[[#This Row],[Name]],DATA!F:F,"COnA") -> 0 | AB40: =SUMIFS(DATA!K:K,DATA!A:A,Table1[[#This Row],[Name]],DATA!F:F,"ConA") -> 0 | AD40: =SUMIFS(DATA!J:J,DATA!A:A,Table1[[#This Row],[Name]],DATA!F:F,"ConB") -> 26 | AE40: =SUMIFS(DATA!K:K,DATA!A:A,Table1[[#This Row],[Name]],DATA!F:F,"ConB") -> 7 | AF40: 0.7878787879
A41: 38 | B41: Kate Sweborg | C41: Lighthouse | D41: =COUNTIF(DATA!$A$2:$A$9731,B41) -> 38 | E41: =SUMIF(DATA!$A$2:$A$9077,B41,DATA!$J$2:$J$9077) -> 28 | F41: =SUMIF(DATA!$A$2:$A$9077,B41,DATA!$K$2:$K$9077) -> 13 | G41: 41 | H41: 0.6829268293 | I41: 0.4210526316 | J41: =Table1[[#This Row],[Correct]]/Table1[[#This Row],['#Quizzes]] -> 0.7368421053 | K41: =SUMIF(DATA!$A$2:$A$9077,B41,DATA!$L$2:$L$9077) -> 1 | L41: =SUMIF(DATA!$A$2:$A$9077,B41,DATA!$M$2:$M$79077) -> 2 | M41: =SUMIF(DATA!$A$2:$A$9077,B41,DATA!$N$2:$N$9077) -> 0 | N41: =SUMIF(DATA!$A$2:$A$9101,B41,DATA!$O$2:$O$9101) -> 0 | O41: =SUMIF(DATA!$A$2:$A$9101,B41,DATA!$P$2:$P$9101) -> 1 | P41: =SUMIF(DATA!$A$2:$A$9101,B41,DATA!$Q$2:$Q$9101) -> 0 | Q41: =SUMIF(DATA!$A$2:$A$9078,B41,DATA!$R$2:$R$9078) -> 0 | R41: 0 | S41: =SUMIF(DATA!$A$2:$A$9078,B41,DATA!$S$2:$S$9078) -> 0 | T41: 0 | U41: =SUMIFS(DATA!J:J,DATA!A:A,Table1[[#This Row],[Name]],DATA!F:F,"Pre") -> 12 | V41: =SUMIFS(DATA!K:K,DATA!A:A,Table1[[#This Row],[Name]],DATA!F:F,"Pre") -> 5 | W41: 0.7058823529 | X41: =SUMIFS(DATA!J:J,DATA!A:A,Table1[[#This Row],[Name]],DATA!F:F,"Semi") -> 0 | Y41: =SUMIFS(DATA!K:K,DATA!A:A,Table1[[#This Row],[Name]],DATA!F:F,"Semi") -> 0 | AA41: =SUMIFS(DATA!J:J,DATA!A:A,Table1[[#This Row],[Name]],DATA!F:F,"COnA") -> 0 | AB41: =SUMIFS(DATA!K:K,DATA!A:A,Table1[[#This Row],[Name]],DATA!F:F,"ConA") -> 0 | AD41: =SUMIFS(DATA!J:J,DATA!A:A,Table1[[#This Row],[Name]],DATA!F:F,"ConB") -> 16 | AE41: =SUMIFS(DATA!K:K,DATA!A:A,Table1[[#This Row],[Name]],DATA!F:F,"ConB") -> 8 | AF41: 0.6666666667
A42: 43 | B42: Miriam Van Bergeyk | C42: Lighthouse | D42: =COUNTIF(DATA!$A$2:$A$9731,B42) -> 34 | E42: =SUMIF(DATA!$A$2:$A$9077,B42,DATA!$J$2:$J$9077) -> 26 | F42: =SUMIF(DATA!$A$2:$A$9077,B42,DATA!$K$2:$K$9077) -> 13 | G42: 39 | H42: 0.6666666667 | I42: 0.3823529412 | J42: =Table1[[#This Row],[Correct]]/Table1[[#This Row],['#Quizzes]] -> 0.7647058824 | K42: =SUMIF(DATA!$A$2:$A$9077,B42,DATA!$L$2:$L$9077) -> 1 | L42: =SUMIF(DATA!$A$2:$A$9077,B42,DATA!$M$2:$M$79077) -> 1 | M42: =SUMIF(DATA!$A$2:$A$9077,B42,DATA!$N$2:$N$9077) -> 0 | N42: =SUMIF(DATA!$A$2:$A$9101,B42,DATA!$O$2:$O$9101) -> 2 | O42: =SUMIF(DATA!$A$2:$A$9101,B42,DATA!$P$2:$P$9101) -> 1 | P42: =SUMIF(DATA!$A$2:$A$9101,B42,DATA!$Q$2:$Q$9101) -> 0 | Q42: =SUMIF(DATA!$A$2:$A$9078,B42,DATA!$R$2:$R$9078) -> 0 | R42: 0 | S42: =SUMIF(DATA!$A$2:$A$9078,B42,DATA!$S$2:$S$9078) -> 0 | T42: 0 | U42: =SUMIFS(DATA!J:J,DATA!A:A,Table1[[#This Row],[Name]],DATA!F:F,"Pre") -> 16 | V42: =SUMIFS(DATA!K:K,DATA!A:A,Table1[[#This Row],[Name]],DATA!F:F,"Pre") -> 7 | W42: 0.6956521739 | X42: =SUMIFS(DATA!J:J,DATA!A:A,Table1[[#This Row],[Name]],DATA!F:F,"Semi") -> 0 | Y42: =SUMIFS(DATA!K:K,DATA!A:A,Table1[[#This Row],[Name]],DATA!F:F,"Semi") -> 0 | AA42: =SUMIFS(DATA!J:J,DATA!A:A,Table1[[#This Row],[Name]],DATA!F:F,"COnA") -> 5 | AB42: =SUMIFS(DATA!K:K,DATA!A:A,Table1[[#This Row],[Name]],DATA!F:F,"ConA") -> 3 | AC42: 0.625 | AD42: =SUMIFS(DATA!J:J,DATA!A:A,Table1[[#This Row],[Name]],DATA!F:F,"ConB") -> 5 | AE42: =SUMIFS(DATA!K:K,DATA!A:A,Table1[[#This Row],[Name]],DATA!F:F,"ConB") -> 3 | AF42: 0.625
A43: 39 | B43: Daniel Newman | C43: NSA | D43: =COUNTIF(DATA!$A$2:$A$9731,B43) -> 46 | E43: =SUMIF(DATA!$A$2:$A$9077,B43,DATA!$J$2:$J$9077) -> 72 | F43: =SUMIF(DATA!$A$2:$A$9077,B43,DATA!$K$2:$K$9077) -> 44 | G43: 116 | H43: 0.6206896552 | I43: 0.4130434783 | J43: =Table1[[#This Row],[Correct]]/Table1[[#This Row],['#Quizzes]] -> 1.565217391 | K43: =SUMIF(DATA!$A$2:$A$9077,B43,DATA!$L$2:$L$9077) -> 0 | L43: =SUMIF(DATA!$A$2:$A$9077,B43,DATA!$M$2:$M$79077) -> 6 | M43: =SUMIF(DATA!$A$2:$A$9077,B43,DATA!$N$2:$N$9077) -> 15 | N43: =SUMIF(DATA!$A$2:$A$9101,B43,DATA!$O$2:$O$9101) -> 0 | O43: =SUMIF(DATA!$A$2:$A$9101,B43,DATA!$P$2:$P$9101) -> 0 | P43: =SUMIF(DATA!$A$2:$A$9101,B43,DATA!$Q$2:$Q$9101) -> 0 | Q43: =SUMIF(DATA!$A$2:$A$9078,B43,DATA!$R$2:$R$9078) -> 2 | R43: 0.04347826087 | S43: =SUMIF(DATA!$A$2:$A$9078,B43,DATA!$S$2:$S$9078) -> 2 | T43: 0.04347826087 | U43: =SUMIFS(DATA!J:J,DATA!A:A,Table1[[#This Row],[Name]],DATA!F:F,"Pre") -> 34 | V43: =SUMIFS(DATA!K:K,DATA!A:A,Table1[[#This Row],[Name]],DATA!F:F,"Pre") -> 32 | W43: 0.5151515152 | X43: =SUMIFS(DATA!J:J,DATA!A:A,Table1[[#This Row],[Name]],DATA!F:F,"Semi") -> 0 | Y43: =SUMIFS(DATA!K:K,DATA!A:A,Table1[[#This Row],[Name]],DATA!F:F,"Semi") -> 0 | AA43: =SUMIFS(DATA!J:J,DATA!A:A,Table1[[#This Row],[Name]],DATA!F:F,"COnA") -> 0 | AB43: =SUMIFS(DATA!K:K,DATA!A:A,Table1[[#This Row],[Name]],DATA!F:F,"ConA") -> 0 | AD43: =SUMIFS(DATA!J:J,DATA!A:A,Table1[[#This Row],[Name]],DATA!F:F,"ConB") -> 38 | AE43: =SUMIFS(DATA!K:K,DATA!A:A,Table1[[#This Row],[Name]],DATA!F:F,"ConB") -> 12 | AF43: 0.76
A44: 42 | B44: JoePaul Appockal | C44: Tacoma | D44: =COUNTIF(DATA!$A$2:$A$9731,B44) -> 45 | E44: =SUMIF(DATA!$A$2:$A$9077,B44,DATA!$J$2:$J$9077) -> 27 | F44: =SUMIF(DATA!$A$2:$A$9077,B44,DATA!$K$2:$K$9077) -> 11 | G44: 38 | H44: 0.7105263158 | I44: 0.3333333333 | J44: =Table1[[#This Row],[Correct]]/Table1[[#This Row],['#Quizzes]] -> 0.6 | K44: =SUMIF(DATA!$A$2:$A$9077,B44,DATA!$L$2:$L$9077) -> 1 | L44: =SUMIF(DATA!$A$2:$A$9077,B44,DATA!$M$2:$M$79077) -> 0 | M44: =SUMIF(DATA!$A$2:$A$9077,B44,DATA!$N$2:$N$9077) -> 0 | N44: =SUMIF(DATA!$A$2:$A$9101,B44,DATA!$O$2:$O$9101) -> 4 | O44: =SUMIF(DATA!$A$2:$A$9101,B44,DATA!$P$2:$P$9101) -> 0 | P44: =SUMIF(DATA!$A$2:$A$9101,B44,DATA!$Q$2:$Q$9101) -> 0 | Q44: =SUMIF(DATA!$A$2:$A$9078,B44,DATA!$R$2:$R$9078) -> 1 | R44: 0.02222222222 | S44: =SUMIF(DATA!$A$2:$A$9078,B44,DATA!$S$2:$S$9078) -> 0 | T44: 0 | U44: =SUMIFS(DATA!J:J,DATA!A:A,Table1[[#This Row],[Name]],DATA!F:F,"Pre") -> 19 | V44: =SUMIFS(DATA!K:K,DATA!A:A,Table1[[#This Row],[Name]],DATA!F:F,"Pre") -> 7 | W44: 0.7307692308 | X44: =SUMIFS(DATA!J:J,DATA!A:A,Table1[[#This Row],[Name]],DATA!F:F,"Semi") -> 0 | Y44: =SUMIFS(DATA!K:K,DATA!A:A,Table1[[#This Row],[Name]],DATA!F:F,"Semi") -> 0 | AA44: =SUMIFS(DATA!J:J,DATA!A:A,Table1[[#This Row],[Name]],DATA!F:F,"COnA") -> 8 | AB44: =SUMIFS(DATA!K:K,DATA!A:A,Table1[[#This Row],[Name]],DATA!F:F,"ConA") -> 4 | AC44: 0.6666666667 | AD44: =SUMIFS(DATA!J:J,DATA!A:A,Table1[[#This Row],[Name]],DATA!F:F,"ConB") -> 0 | AE44: =SUMIFS(DATA!K:K,DATA!A:A,Table1[[#This Row],[Name]],DATA!F:F,"ConB") -> 0
A45: 45 | B45: Skotland Hammerstrom | C45: ABC | D45: =COUNTIF(DATA!$A$2:$A$9731,B45) -> 49 | E45: =SUMIF(DATA!$A$2:$A$9077,B45,DATA!$J$2:$J$9077) -> 46 | F45: =SUMIF(DATA!$A$2:$A$9077,B45,DATA!$K$2:$K$9077) -> 35 | G45: 81 | H45: 0.5679012346 | I45: 0.2040816327 | J45: =Table1[[#This Row],[Correct]]/Table1[[#This Row],['#Quizzes]] -> 0.9387755102 | K45: =SUMIF(DATA!$A$2:$A$9077,B45,DATA!$L$2:$L$9077) -> 0 | L45: =SUMIF(DATA!$A$2:$A$9077,B45,DATA!$M$2:$M$79077) -> 2 | M45: =SUMIF(DATA!$A$2:$A$9077,B45,DATA!$N$2:$N$9077) -> 3 | N45: =SUMIF(DATA!$A$2:$A$9101,B45,DATA!$O$2:$O$9101) -> 3 | O45: =SUMIF(DATA!$A$2:$A$9101,B45,DATA!$P$2:$P$9101) -> 0 | P45: =SUMIF(DATA!$A$2:$A$9101,B45,DATA!$Q$2:$Q$9101) -> 0 | Q45: =SUMIF(DATA!$A$2:$A$9078,B45,DATA!$R$2:$R$9078) -> 1 | R45: 0.02040816327 | S45: =SUMIF(DATA!$A$2:$A$9078,B45,DATA!$S$2:$S$9078) -> 2 | T45: 0.04081632653 | U45: =SUMIFS(DATA!J:J,DATA!A:A,Table1[[#This Row],[Name]],DATA!F:F,"Pre") -> 22 | V45: =SUMIFS(DATA!K:K,DATA!A:A,Table1[[#This Row],[Name]],DATA!F:F,"Pre") -> 18 | W45: 0.55 | X45: =SUMIFS(DATA!J:J,DATA!A:A,Table1[[#This Row],[Name]],DATA!F:F,"Semi") -> 0 | Y45: =SUMIFS(DATA!K:K,DATA!A:A,Table1[[#This Row],[Name]],DATA!F:F,"Semi") -> 0 | AA45: =SUMIFS(DATA!J:J,DATA!A:A,Table1[[#This Row],[Name]],DATA!F:F,"COnA") -> 10 | AB45: =SUMIFS(DATA!K:K,DATA!A:A,Table1[[#This Row],[Name]],DATA!F:F,"ConA") -> 5 | AC45: 0.6666666667 | AD45: =SUMIFS(DATA!J:J,DATA!A:A,Table1[[#This Row],[Name]],DATA!F:F,"ConB") -> 14 | AE45: =SUMIFS(DATA!K:K,DATA!A:A,Table1[[#This Row],[Name]],DATA!F:F,"ConB") -> 12 | AF45: 0.5384615385
A46: 44 | B46: Micah Magnuson | C46: Tacoma | D46: =COUNTIF(DATA!$A$2:$A$9731,B46) -> 45 | E46: =SUMIF(DATA!$A$2:$A$9077,B46,DATA!$J$2:$J$9077) -> 26 | F46: =SUMIF(DATA!$A$2:$A$9077,B46,DATA!$K$2:$K$9077) -> 13 | G46: 39 | H46: 0.6666666667 | I46: 0.2666666667 | J46: =Table1[[#This Row],[Correct]]/Table1[[#This Row],['#Quizzes]] -> 0.5777777778 | K46: =SUMIF(DATA!$A$2:$A$9077,B46,DATA!$L$2:$L$9077) -> 1 | L46: =SUMIF(DATA!$A$2:$A$9077,B46,DATA!$M$2:$M$79077) -> 1 | M46: =SUMIF(DATA!$A$2:$A$9077,B46,DATA!$N$2:$N$9077) -> 1 | N46: =SUMIF(DATA!$A$2:$A$9101,B46,DATA!$O$2:$O$9101) -> 3 | O46: =SUMIF(DATA!$A$2:$A$9101,B46,DATA!$P$2:$P$9101) -> 0 | P46: =SUMIF(DATA!$A$2:$A$9101,B46,DATA!$Q$2:$Q$9101) -> 0 | Q46: =SUMIF(DATA!$A$2:$A$9078,B46,DATA!$R$2:$R$9078) -> 1 | R46: 0.02222222222 | S46: =SUMIF(DATA!$A$2:$A$9078,B46,DATA!$S$2:$S$9078) -> 0 | T46: 0 | U46: =SUMIFS(DATA!J:J,DATA!A:A,Table1[[#This Row],[Name]],DATA!F:F,"Pre") -> 11 | V46: =SUMIFS(DATA!K:K,DATA!A:A,Table1[[#This Row],[Name]],DATA!F:F,"Pre") -> 5 | W46: 0.6875 | X46: =SUMIFS(DATA!J:J,DATA!A:A,Table1[[#This Row],[Name]],DATA!F:F,"Semi") -> 0 | Y46: =SUMIFS(DATA!K:K,DATA!A:A,Table1[[#This Row],[Name]],DATA!F:F,"Semi") -> 0 | AA46: =SUMIFS(DATA!J:J,DATA!A:A,Table1[[#This Row],[Name]],DATA!F:F,"COnA") -> 15 | AB46: =SUMIFS(DATA!K:K,DATA!A:A,Table1[[#This Row],[Name]],DATA!F:F,"ConA") -> 8 | AC46: 0.652173913 | AD46: =SUMIFS(DATA!J:J,DATA!A:A,Table1[[#This Row],[Name]],DATA!F:F,"ConB") -> 0 | AE46: =SUMIFS(DATA!K:K,DATA!A:A,Table1[[#This Row],[Name]],DATA!F:F,"ConB") -> 0
A47: 52 | B47: Makya Warren | C47: ABC | D47: =COUNTIF(DATA!$A$2:$A$9731,B47) -> 46 | E47: =SUMIF(DATA!$A$2:$A$9077,B47,DATA!$J$2:$J$9077) -> 23 | F47: =SUMIF(DATA!$A$2:$A$9077,B47,DATA!$K$2:$K$9077) -> 14 | G47: 37 | H47: 0.6216216216 | I47: 0.2391304348 | J47: =Table1[[#This Row],[Correct]]/Table1[[#This Row],['#Quizzes]] -> 0.5 | K47: =SUMIF(DATA!$A$2:$A$9077,B47,DATA!$L$2:$L$9077) -> 0 | L47: =SUMIF(DATA!$A$2:$A$9077,B47,DATA!$M$2:$M$79077) -> 2 | M47: =SUMIF(DATA!$A$2:$A$9077,B47,DATA!$N$2:$N$9077) -> 0 | N47: =SUMIF(DATA!$A$2:$A$9101,B47,DATA!$O$2:$O$9101) -> 0 | O47: =SUMIF(DATA!$A$2:$A$9101,B47,DATA!$P$2:$P$9101) -> 0 | P47: =SUMIF(DATA!$A$2:$A$9101,B47,DATA!$Q$2:$Q$9101) -> 0 | Q47: =SUMIF(DATA!$A$2:$A$9078,B47,DATA!$R$2:$R$9078) -> 1 | R47: 0.02173913043 | S47: =SUMIF(DATA!$A$2:$A$9078,B47,DATA!$S$2:$S$9078) -> 0 | T47: 0 | U47: =SUMIFS(DATA!J:J,DATA!A:A,Table1[[#This Row],[Name]],DATA!F:F,"Pre") -> 11 | V47: =SUMIFS(DATA!K:K,DATA!A:A,Table1[[#This Row],[Name]],DATA!F:F,"Pre") -> 6 | W47: 0.6470588235 | X47: =SUMIFS(DATA!J:J,DATA!A:A,Table1[[#This Row],[Name]],DATA!F:F,"Semi") -> 0 | Y47: =SUMIFS(DATA!K:K,DATA!A:A,Table1[[#This Row],[Name]],DATA!F:F,"Semi") -> 1 | Z47: 0 | AA47: =SUMIFS(DATA!J:J,DATA!A:A,Table1[[#This Row],[Name]],DATA!F:F,"COnA") -> 4 | AB47: =SUMIFS(DATA!K:K,DATA!A:A,Table1[[#This Row],[Name]],DATA!F:F,"ConA") -> 3 | AC47: 0.5714285714 | AD47: =SUMIFS(DATA!J:J,DATA!A:A,Table1[[#This Row],[Name]],DATA!F:F,"ConB") -> 8 | AE47: =SUMIFS(DATA!K:K,DATA!A:A,Table1[[#This Row],[Name]],DATA!F:F,"ConB") -> 4 | AF47: 0.6666666667
A48: 55 | B48: Jason Small | C48: Fox Island | D48: =COUNTIF(DATA!$A$2:$A$9731,B48) -> 48 | E48: =SUMIF(DATA!$A$2:$A$9077,B48,DATA!$J$2:$J$9077) -> 27 | F48: =SUMIF(DATA!$A$2:$A$9077,B48,DATA!$K$2:$K$9077) -> 16 | G48: 43 | H48: 0.6279069767 | I48: 0.2083333333 | J48: =Table1[[#This Row],[Correct]]/Table1[[#This Row],['#Quizzes]] -> 0.5625 | K48: =SUMIF(DATA!$A$2:$A$9077,B48,DATA!$L$2:$L$9077) -> 1 | L48: =SUMIF(DATA!$A$2:$A$9077,B48,DATA!$M$2:$M$79077) -> 1 | M48: =SUMIF(DATA!$A$2:$A$9077,B48,DATA!$N$2:$N$9077) -> 1 | N48: =SUMIF(DATA!$A$2:$A$9101,B48,DATA!$O$2:$O$9101) -> 4 | O48: =SUMIF(DATA!$A$2:$A$9101,B48,DATA!$P$2:$P$9101) -> 0 | P48: =SUMIF(DATA!$A$2:$A$9101,B48,DATA!$Q$2:$Q$9101) -> 0 | Q48: =SUMIF(DATA!$A$2:$A$9078,B48,DATA!$R$2:$R$9078) -> 0 | R48: 0 | S48: =SUMIF(DATA!$A$2:$A$9078,B48,DATA!$S$2:$S$9078) -> 0 | T48: 0 | U48: =SUMIFS(DATA!J:J,DATA!A:A,Table1[[#This Row],[Name]],DATA!F:F,"Pre") -> 19 | V48: =SUMIFS(DATA!K:K,DATA!A:A,Table1[[#This Row],[Name]],DATA!F:F,"Pre") -> 12 | W48: 0.6129032258 | X48: =SUMIFS(DATA!J:J,DATA!A:A,Table1[[#This Row],[Name]],DATA!F:F,"Semi") -> 0 | Y48: =SUMIFS(DATA!K:K,DATA!A:A,Table1[[#This Row],[Name]],DATA!F:F,"Semi") -> 0 | AA48: =SUMIFS(DATA!J:J,DATA!A:A,Table1[[#This Row],[Name]],DATA!F:F,"COnA") -> 6 | AB48: =SUMIFS(DATA!K:K,DATA!A:A,Table1[[#This Row],[Name]],DATA!F:F,"ConA") -> 3 | AC48: 0.6666666667 | AD48: =SUMIFS(DATA!J:J,DATA!A:A,Table1[[#This Row],[Name]],DATA!F:F,"ConB") -> 2 | AE48: =SUMIFS(DATA!K:K,DATA!A:A,Table1[[#This Row],[Name]],DATA!F:F,"ConB") -> 1 | AF48: 0.6666666667
A49: 46 | B49: Isaiah Magnuson | C49: Tacoma | D49: =COUNTIF(DATA!$A$2:$A$9731,B49) -> 49 | E49: =SUMIF(DATA!$A$2:$A$9077,B49,DATA!$J$2:$J$9077) -> 45 | F49: =SUMIF(DATA!$A$2:$A$9077,B49,DATA!$K$2:$K$9077) -> 38 | G49: 83 | H49: 0.5421686747 | I49: 0.08163265306 | J49: =Table1[[#This Row],[Correct]]/Table1[[#This Row],['#Quizzes]] -> 0.9183673469 | K49: =SUMIF(DATA!$A$2:$A$9077,B49,DATA!$L$2:$L$9077) -> 0 | L49: =SUMIF(DATA!$A$2:$A$9077,B49,DATA!$M$2:$M$79077) -> 1 | M49: =SUMIF(DATA!$A$2:$A$9077,B49,DATA!$N$2:$N$9077) -> 4 | N49: =SUMIF(DATA!$A$2:$A$9101,B49,DATA!$O$2:$O$9101) -> 3 | O49: =SUMIF(DATA!$A$2:$A$9101,B49,DATA!$P$2:$P$9101) -> 0 | P49: =SUMIF(DATA!$A$2:$A$9101,B49,DATA!$Q$2:$Q$9101) -> 0 | Q49: =SUMIF(DATA!$A$2:$A$9078,B49,DATA!$R$2:$R$9078) -> 2 | R49: 0.04081632653 | S49: =SUMIF(DATA!$A$2:$A$9078,B49,DATA!$S$2:$S$9078) -> 1 | T49: 0.02040816327 | U49: =SUMIFS(DATA!J:J,DATA!A:A,Table1[[#This Row],[Name]],DATA!F:F,"Pre") -> 22 | V49: =SUMIFS(DATA!K:K,DATA!A:A,Table1[[#This Row],[Name]],DATA!F:F,"Pre") -> 18 | W49: 0.55 | X49: =SUMIFS(DATA!J:J,DATA!A:A,Table1[[#This Row],[Name]],DATA!F:F,"Semi") -> 0 | Y49: =SUMIFS(DATA!K:K,DATA!A:A,Table1[[#This Row],[Name]],DATA!F:F,"Semi") -> 0 | AA49: =SUMIFS(DATA!J:J,DATA!A:A,Table1[[#This Row],[Name]],DATA!F:F,"COnA") -> 15 | AB49: =SUMIFS(DATA!K:K,DATA!A:A,Table1[[#This Row],[Name]],DATA!F:F,"ConA") -> 9 | AC49: 0.625 | AD49: =SUMIFS(DATA!J:J,DATA!A:A,Table1[[#This Row],[Name]],DATA!F:F,"ConB") -> 8 | AE49: =SUMIFS(DATA!K:K,DATA!A:A,Table1[[#This Row],[Name]],DATA!F:F,"ConB") -> 11 | AF49: 0.4210526316
A50: 47 | B50: Kaden Meredith | C50: Lighthouse | D50: =COUNTIF(DATA!$A$2:$A$9731,B50) -> 37 | E50: =SUMIF(DATA!$A$2:$A$9077,B50,DATA!$J$2:$J$9077) -> 11 | F50: =SUMIF(DATA!$A$2:$A$9077,B50,DATA!$K$2:$K$9077) -> 5 | G50: 16 | H50: 0.6875 | I50: 0.1891891892 | J50: =Table1[[#This Row],[Correct]]/Table1[[#This Row],['#Quizzes]] -> 0.2972972973 | K50: =SUMIF(DATA!$A$2:$A$9077,B50,DATA!$L$2:$L$9077) -> 1 | L50: =SUMIF(DATA!$A$2:$A$9077,B50,DATA!$M$2:$M$79077) -> 3 | M50: =SUMIF(DATA!$A$2:$A$9077,B50,DATA!$N$2:$N$9077) -> 1 | N50: =SUMIF(DATA!$A$2:$A$9101,B50,DATA!$O$2:$O$9101) -> 0 | O50: =SUMIF(DATA!$A$2:$A$9101,B50,DATA!$P$2:$P$9101) -> 0 | P50: =SUMIF(DATA!$A$2:$A$9101,B50,DATA!$Q$2:$Q$9101) -> 0 | Q50: =SUMIF(DATA!$A$2:$A$9078,B50,DATA!$R$2:$R$9078) -> 0 | R50: 0 | S50: =SUMIF(DATA!$A$2:$A$9078,B50,DATA!$S$2:$S$9078) -> 0 | T50: 0 | U50: =SUMIFS(DATA!J:J,DATA!A:A,Table1[[#This Row],[Name]],DATA!F:F,"Pre") -> 3 | V50: =SUMIFS(DATA!K:K,DATA!A:A,Table1[[#This Row],[Name]],DATA!F:F,"Pre") -> 4 | W50: 0.4285714286 | X50: =SUMIFS(DATA!J:J,DATA!A:A,Table1[[#This Row],[Name]],DATA!F:F,"Semi") -> 1 | Y50: =SUMIFS(DATA!K:K,DATA!A:A,Table1[[#This Row],[Name]],DATA!F:F,"Semi") -> 0 | Z50: 1 | AA50: =SUMIFS(DATA!J:J,DATA!A:A,Table1[[#This Row],[Name]],DATA!F:F,"COnA") -> 0 | AB50: =SUMIFS(DATA!K:K,DATA!A:A,Table1[[#This Row],[Name]],DATA!F:F,"ConA") -> 0 | AD50: =SUMIFS(DATA!J:J,DATA!A:A,Table1[[#This Row],[Name]],DATA!F:F,"ConB") -> 7 | AE50: =SUMIFS(DATA!K:K,DATA!A:A,Table1[[#This Row],[Name]],DATA!F:F,"ConB") -> 1 | AF50: 0.875
A51: 51 | B51: Joshua Miller | C51: Dallas | D51: =COUNTIF(DATA!$A$2:$A$9731,B51) -> 46 | E51: =SUMIF(DATA!$A$2:$A$9077,B51,DATA!$J$2:$J$9077) -> 8 | F51: =SUMIF(DATA!$A$2:$A$9077,B51,DATA!$K$2:$K$9077) -> 2 | G51: 10 | H51: 0.8 | I51: 0.152173913 | J51: =Table1[[#This Row],[Correct]]/Table1[[#This Row],['#Quizzes]] -> 0.1739130435 | K51: =SUMIF(DATA!$A$2:$A$9077,B51,DATA!$L$2:$L$9077) -> 0 | L51: =SUMIF(DATA!$A$2:$A$9077,B51,DATA!$M$2:$M$79077) -> 1 | M51: =SUMIF(DATA!$A$2:$A$9077,B51,DATA!$N$2:$N$9077) -> 0 | N51: =SUMIF(DATA!$A$2:$A$9101,B51,DATA!$O$2:$O$9101) -> 0 | O51: =SUMIF(DATA!$A$2:$A$9101,B51,DATA!$P$2:$P$9101) -> 0 | P51: =SUMIF(DATA!$A$2:$A$9101,B51,DATA!$Q$2:$Q$9101) -> 0 | Q51: =SUMIF(DATA!$A$2:$A$9078,B51,DATA!$R$2:$R$9078) -> 0 | R51: 0 | S51: =SUMIF(DATA!$A$2:$A$9078,B51,DATA!$S$2:$S$9078) -> 0 | T51: 0 | U51: =SUMIFS(DATA!J:J,DATA!A:A,Table1[[#This Row],[Name]],DATA!F:F,"Pre") -> 5 | V51: =SUMIFS(DATA!K:K,DATA!A:A,Table1[[#This Row],[Name]],DATA!F:F,"Pre") -> 1 | W51: 0.8333333333 | X51: =SUMIFS(DATA!J:J,DATA!A:A,Table1[[#This Row],[Name]],DATA!F:F,"Semi") -> 0 | Y51: =SUMIFS(DATA!K:K,DATA!A:A,Table1[[#This Row],[Name]],DATA!F:F,"Semi") -> 0 | AA51: =SUMIFS(DATA!J:J,DATA!A:A,Table1[[#This Row],[Name]],DATA!F:F,"COnA") -> 0 | AB51: =SUMIFS(DATA!K:K,DATA!A:A,Table1[[#This Row],[Name]],DATA!F:F,"ConA") -> 0 | AD51: =SUMIFS(DATA!J:J,DATA!A:A,Table1[[#This Row],[Name]],DATA!F:F,"ConB") -> 3 | AE51: =SUMIFS(DATA!K:K,DATA!A:A,Table1[[#This Row],[Name]],DATA!F:F,"ConB") -> 1 | AF51: 0.75
A52: 54 | B52: Rachel Wallace | C52: EBC | D52: =COUNTIF(DATA!$A$2:$A$9731,B52) -> 45 | E52: =SUMIF(DATA!$A$2:$A$9077,B52,DATA!$J$2:$J$9077) -> 17 | F52: =SUMIF(DATA!$A$2:$A$9077,B52,DATA!$K$2:$K$9077) -> 9 | G52: 26 | H52: 0.6538461538 | I52: 0.1777777778 | J52: =Table1[[#This Row],[Correct]]/Table1[[#This Row],['#Quizzes]] -> 0.3777777778 | K52: =SUMIF(DATA!$A$2:$A$9077,B52,DATA!$L$2:$L$9077) -> 0 | L52: =SUMIF(DATA!$A$2:$A$9077,B52,DATA!$M$2:$M$79077) -> 1 | M52: =SUMIF(DATA!$A$2:$A$9077,B52,DATA!$N$2:$N$9077) -> 1 | N52: =SUMIF(DATA!$A$2:$A$9101,B52,DATA!$O$2:$O$9101) -> 0 | O52: =SUMIF(DATA!$A$2:$A$9101,B52,DATA!$P$2:$P$9101) -> 0 | P52: =SUMIF(DATA!$A$2:$A$9101,B52,DATA!$Q$2:$Q$9101) -> 0 | Q52: =SUMIF(DATA!$A$2:$A$9078,B52,DATA!$R$2:$R$9078) -> 0 | R52: 0 | S52: =SUMIF(DATA!$A$2:$A$9078,B52,DATA!$S$2:$S$9078) -> 0 | T52: 0 | U52: =SUMIFS(DATA!J:J,DATA!A:A,Table1[[#This Row],[Name]],DATA!F:F,"Pre") -> 9 | V52: =SUMIFS(DATA!K:K,DATA!A:A,Table1[[#This Row],[Name]],DATA!F:F,"Pre") -> 5 | W52: 0.6428571429 | X52: =SUMIFS(DATA!J:J,DATA!A:A,Table1[[#This Row],[Name]],DATA!F:F,"Semi") -> 0 | Y52: =SUMIFS(DATA!K:K,DATA!A:A,Table1[[#This Row],[Name]],DATA!F:F,"Semi") -> 0 | AA52: =SUMIFS(DATA!J:J,DATA!A:A,Table1[[#This Row],[Name]],DATA!F:F,"COnA") -> 3 | AB52: =SUMIFS(DATA!K:K,DATA!A:A,Table1[[#This Row],[Name]],DATA!F:F,"ConA") -> 2 | AC52: 0.6 | AD52: =SUMIFS(DATA!J:J,DATA!A:A,Table1[[#This Row],[Name]],DATA!F:F,"ConB") -> 5 | AE52: =SUMIFS(DATA!K:K,DATA!A:A,Table1[[#This Row],[Name]],DATA!F:F,"ConB") -> 2 | AF52: 0.7142857143
A53: 50 | B53: Emily Van Bergeyk | C53: Lighthouse | D53: =COUNTIF(DATA!$A$2:$A$9731,B53) -> 49 | E53: =SUMIF(DATA!$A$2:$A$9077,B53,DATA!$J$2:$J$9077) -> 41 | F53: =SUMIF(DATA!$A$2:$A$9077,B53,DATA!$K$2:$K$9077) -> 26 | G53: 67 | H53: 0.6119402985 | I53: 0.1632653061 | J53: =Table1[[#This Row],[Correct]]/Table1[[#This Row],['#Quizzes]] -> 0.8367346939 | K53: =SUMIF(DATA!$A$2:$A$9077,B53,DATA!$L$2:$L$9077) -> 6 | L53: =SUMIF(DATA!$A$2:$A$9077,B53,DATA!$M$2:$M$79077) -> 0 | M53: =SUMIF(DATA!$A$2:$A$9077,B53,DATA!$N$2:$N$9077) -> 1 | N53: =SUMIF(DATA!$A$2:$A$9101,B53,DATA!$O$2:$O$9101) -> 5 | O53: =SUMIF(DATA!$A$2:$A$9101,B53,DATA!$P$2:$P$9101) -> 1 | P53: =SUMIF(DATA!$A$2:$A$9101,B53,DATA!$Q$2:$Q$9101) -> 0 | Q53: =SUMIF(DATA!$A$2:$A$9078,B53,DATA!$R$2:$R$9078) -> 1 | R53: 0.02040816327 | S53: =SUMIF(DATA!$A$2:$A$9078,B53,DATA!$S$2:$S$9078) -> 1 | T53: 0.02040816327 | U53: =SUMIFS(DATA!J:J,DATA!A:A,Table1[[#This Row],[Name]],DATA!F:F,"Pre") -> 19 | V53: =SUMIFS(DATA!K:K,DATA!A:A,Table1[[#This Row],[Name]],DATA!F:F,"Pre") -> 15 | W53: 0.5588235294 | X53: =SUMIFS(DATA!J:J,DATA!A:A,Table1[[#This Row],[Name]],DATA!F:F,"Semi") -> 0 | Y53: =SUMIFS(DATA!K:K,DATA!A:A,Table1[[#This Row],[Name]],DATA!F:F,"Semi") -> 0 | AA53: =SUMIFS(DATA!J:J,DATA!A:A,Table1[[#This Row],[Name]],DATA!F:F,"COnA") -> 14 | AB53: =SUMIFS(DATA!K:K,DATA!A:A,Table1[[#This Row],[Name]],DATA!F:F,"ConA") -> 6 | AC53: 0.7 | AD53: =SUMIFS(DATA!J:J,DATA!A:A,Table1[[#This Row],[Name]],DATA!F:F,"ConB") -> 8 | AE53: =SUMIFS(DATA!K:K,DATA!A:A,Table1[[#This Row],[Name]],DATA!F:F,"ConB") -> 5 | AF53: 0.6153846154
A54: 62 | B54: Camden Kositzky | C54: Lighthouse | D54: =COUNTIF(DATA!$A$2:$A$9731,B54) -> 46 | E54: =SUMIF(DATA!$A$2:$A$9077,B54,DATA!$J$2:$J$9077) -> 24 | F54: =SUMIF(DATA!$A$2:$A$9077,B54,DATA!$K$2:$K$9077) -> 18 | G54: 42 | H54: 0.5714285714 | I54: 0.1304347826 | J54: =Table1[[#This Row],[Correct]]/Table1[[#This Row],['#Quizzes]] -> 0.5217391304 | K54: =SUMIF(DATA!$A$2:$A$9077,B54,DATA!$L$2:$L$9077) -> 1 | L54: =SUMIF(DATA!$A$2:$A$9077,B54,DATA!$M$2:$M$79077) -> 2 | M54: =SUMIF(DATA!$A$2:$A$9077,B54,DATA!$N$2:$N$9077) -> 1 | N54: =SUMIF(DATA!$A$2:$A$9101,B54,DATA!$O$2:$O$9101) -> 5 | O54: =SUMIF(DATA!$A$2:$A$9101,B54,DATA!$P$2:$P$9101) -> 0 | P54: =SUMIF(DATA!$A$2:$A$9101,B54,DATA!$Q$2:$Q$9101) -> 0 | Q54: =SUMIF(DATA!$A$2:$A$9078,B54,DATA!$R$2:$R$9078) -> 0 | R54: 0 | S54: =SUMIF(DATA!$A$2:$A$9078,B54,DATA!$S$2:$S$9078) -> 0 | T54: 0 | U54: =SUMIFS(DATA!J:J,DATA!A:A,Table1[[#This Row],[Name]],DATA!F:F,"Pre") -> 15 | V54: =SUMIFS(DATA!K:K,DATA!A:A,Table1[[#This Row],[Name]],DATA!F:F,"Pre") -> 12 | W54: 0.5555555556 | X54: =SUMIFS(DATA!J:J,DATA!A:A,Table1[[#This Row],[Name]],DATA!F:F,"Semi") -> 0 | Y54: =SUMIFS(DATA!K:K,DATA!A:A,Table1[[#This Row],[Name]],DATA!F:F,"Semi") -> 0 | AA54: =SUMIFS(DATA!J:J,DATA!A:A,Table1[[#This Row],[Name]],DATA!F:F,"COnA") -> 4 | AB54: =SUMIFS(DATA!K:K,DATA!A:A,Table1[[#This Row],[Name]],DATA!F:F,"ConA") -> 4 | AC54: 0.5 | AD54: =SUMIFS(DATA!J:J,DATA!A:A,Table1[[#This Row],[Name]],DATA!F:F,"ConB") -> 5 | AE54: =SUMIFS(DATA!K:K,DATA!A:A,Table1[[#This Row],[Name]],DATA!F:F,"ConB") -> 2 | AF54: 0.7142857143
A55: 59 | B55: Lexi Swanson | C55: Lighthouse | D55: =COUNTIF(DATA!$A$2:$A$9731,B55) -> 28 | E55: =SUMIF(DATA!$A$2:$A$9077,B55,DATA!$J$2:$J$9077) -> 27 | F55: =SUMIF(DATA!$A$2:$A$9077,B55,DATA!$K$2:$K$9077) -> 20 | G55: 47 | H55: 0.5744680851 | I55: 0.2142857143 | J55: =Table1[[#This Row],[Correct]]/Table1[[#This Row],['#Quizzes]] -> 0.9642857143 | K55: =SUMIF(DATA!$A$2:$A$9077,B55,DATA!$L$2:$L$9077) -> 0 | L55: =SUMIF(DATA!$A$2:$A$9077,B55,DATA!$M$2:$M$79077) -> 1 | M55: =SUMIF(DATA!$A$2:$A$9077,B55,DATA!$N$2:$N$9077) -> 2 | N55: =SUMIF(DATA!$A$2:$A$9101,B55,DATA!$O$2:$O$9101) -> 3 | O55: =SUMIF(DATA!$A$2:$A$9101,B55,DATA!$P$2:$P$9101) -> 0 | P55: =SUMIF(DATA!$A$2:$A$9101,B55,DATA!$Q$2:$Q$9101) -> 0 | Q55: =SUMIF(DATA!$A$2:$A$9078,B55,DATA!$R$2:$R$9078) -> 0 | R55: 0 | S55: =SUMIF(DATA!$A$2:$A$9078,B55,DATA!$S$2:$S$9078) -> 0 | T55: 0 | U55: =SUMIFS(DATA!J:J,DATA!A:A,Table1[[#This Row],[Name]],DATA!F:F,"Pre") -> 17 | V55: =SUMIFS(DATA!K:K,DATA!A:A,Table1[[#This Row],[Name]],DATA!F:F,"Pre") -> 10 | W55: 0.6296296296 | X55: =SUMIFS(DATA!J:J,DATA!A:A,Table1[[#This Row],[Name]],DATA!F:F,"Semi") -> 0 | Y55: =SUMIFS(DATA!K:K,DATA!A:A,Table1[[#This Row],[Name]],DATA!F:F,"Semi") -> 0 | AA55: =SUMIFS(DATA!J:J,DATA!A:A,Table1[[#This Row],[Name]],DATA!F:F,"COnA") -> 0 | AB55: =SUMIFS(DATA!K:K,DATA!A:A,Table1[[#This Row],[Name]],DATA!F:F,"ConA") -> 0 | AD55: =SUMIFS(DATA!J:J,DATA!A:A,Table1[[#This Row],[Name]],DATA!F:F,"ConB") -> 10 | AE55: =SUMIFS(DATA!K:K,DATA!A:A,Table1[[#This Row],[Name]],DATA!F:F,"ConB") -> 10 | AF55: 0.5
A56: 56 | B56: Maddy Foster | C56: Lighthouse | D56: =COUNTIF(DATA!$A$2:$A$9731,B56) -> 19 | E56: =SUMIF(DATA!$A$2:$A$9077,B56,DATA!$J$2:$J$9077) -> 2 | F56: =SUMIF(DATA!$A$2:$A$9077,B56,DATA!$K$2:$K$9077) -> 0 | G56: 2 | H56: 1 | I56: 0.1052631579 | J56: =Table1[[#This Row],[Correct]]/Table1[[#This Row],['#Quizzes]] -> 0.1052631579 | K56: =SUMIF(DATA!$A$2:$A$9077,B56,DATA!$L$2:$L$9077) -> 0 | L56: =SUMIF(DATA!$A$2:$A$9077,B56,DATA!$M$2:$M$79077) -> 0 | M56: =SUMIF(DATA!$A$2:$A$9077,B56,DATA!$N$2:$N$9077) -> 0 | N56: =SUMIF(DATA!$A$2:$A$9101,B56,DATA!$O$2:$O$9101) -> 1 | O56: =SUMIF(DATA!$A$2:$A$9101,B56,DATA!$P$2:$P$9101) -> 0 | P56: =SUMIF(DATA!$A$2:$A$9101,B56,DATA!$Q$2:$Q$9101) -> 0 | Q56: =SUMIF(DATA!$A$2:$A$9078,B56,DATA!$R$2:$R$9078) -> 0 | R56: 0 | S56: =SUMIF(DATA!$A$2:$A$9078,B56,DATA!$S$2:$S$9078) -> 0 | T56: 0 | U56: =SUMIFS(DATA!J:J,DATA!A:A,Table1[[#This Row],[Name]],DATA!F:F,"Pre") -> 0 | V56: =SUMIFS(DATA!K:K,DATA!A:A,Table1[[#This Row],[Name]],DATA!F:F,"Pre") -> 0 | X56: =SUMIFS(DATA!J:J,DATA!A:A,Table1[[#This Row],[Name]],DATA!F:F,"Semi") -> 0 | Y56: =SUMIFS(DATA!K:K,DATA!A:A,Table1[[#This Row],[Name]],DATA!F:F,"Semi") -> 0 | AA56: =SUMIFS(DATA!J:J,DATA!A:A,Table1[[#This Row],[Name]],DATA!F:F,"COnA") -> 0 | AB56: =SUMIFS(DATA!K:K,DATA!A:A,Table1[[#This Row],[Name]],DATA!F:F,"ConA") -> 0 | AD56: =SUMIFS(DATA!J:J,DATA!A:A,Table1[[#This Row],[Name]],DATA!F:F,"ConB") -> 2 | AE56: =SUMIFS(DATA!K:K,DATA!A:A,Table1[[#This Row],[Name]],DATA!F:F,"ConB") -> 0 | AF56: 1
A57: 58 | B57: Zak Swanson | C57: Lighthouse | D57: =COUNTIF(DATA!$A$2:$A$9731,B57) -> 10 | E57: =SUMIF(DATA!$A$2:$A$9077,B57,DATA!$J$2:$J$9077) -> 3 | F57: =SUMIF(DATA!$A$2:$A$9077,B57,DATA!$K$2:$K$9077) -> 4 | G57: 7 | H57: 0.4285714286 | I57: 0.1 | J57: =Table1[[#This Row],[Correct]]/Table1[[#This Row],['#Quizzes]] -> 0.3 | K57: =SUMIF(DATA!$A$2:$A$9077,B57,DATA!$L$2:$L$9077) -> 0 | L57: =SUMIF(DATA!$A$2:$A$9077,B57,DATA!$M$2:$M$79077) -> 3 | M57: =SUMIF(DATA!$A$2:$A$9077,B57,DATA!$N$2:$N$9077) -> 1 | N57: =SUMIF(DATA!$A$2:$A$9101,B57,DATA!$O$2:$O$9101) -> 2 | O57: =SUMIF(DATA!$A$2:$A$9101,B57,DATA!$P$2:$P$9101) -> 1 | P57: =SUMIF(DATA!$A$2:$A$9101,B57,DATA!$Q$2:$Q$9101) -> 0 | Q57: =SUMIF(DATA!$A$2:$A$9078,B57,DATA!$R$2:$R$9078) -> 0 | R57: 0 | S57: =SUMIF(DATA!$A$2:$A$9078,B57,DATA!$S$2:$S$9078) -> 0 | T57: 0 | U57: =SUMIFS(DATA!J:J,DATA!A:A,Table1[[#This Row],[Name]],DATA!F:F,"Pre") -> 2 | V57: =SUMIFS(DATA!K:K,DATA!A:A,Table1[[#This Row],[Name]],DATA!F:F,"Pre") -> 4 | W57: 0.3333333333 | X57: =SUMIFS(DATA!J:J,DATA!A:A,Table1[[#This Row],[Name]],DATA!F:F,"Semi") -> 0 | Y57: =SUMIFS(DATA!K:K,DATA!A:A,Table1[[#This Row],[Name]],DATA!F:F,"Semi") -> 0 | AA57: =SUMIFS(DATA!J:J,DATA!A:A,Table1[[#This Row],[Name]],DATA!F:F,"COnA") -> 1 | AB57: =SUMIFS(DATA!K:K,DATA!A:A,Table1[[#This Row],[Name]],DATA!F:F,"ConA") -> 0 | AC57: 1 | AD57: =SUMIFS(DATA!J:J,DATA!A:A,Table1[[#This Row],[Name]],DATA!F:F,"ConB") -> 0 | AE57: =SUMIFS(DATA!K:K,DATA!A:A,Table1[[#This Row],[Name]],DATA!F:F,"ConB") -> 0
A58: 48 | B58: Jonathon Derr | C58: Chapel Hill | D58: =COUNTIF(DATA!$A$2:$A$9731,B58) -> 42 | E58: =SUMIF(DATA!$A$2:$A$9077,B58,DATA!$J$2:$J$9077) -> 45 | F58: =SUMIF(DATA!$A$2:$A$9077,B58,DATA!$K$2:$K$9077) -> 42 | G58: 87 | H58: 0.5172413793 | I58: 0.07142857143 | J58: =Table1[[#This Row],[Correct]]/Table1[[#This Row],['#Quizzes]] -> 1.071428571 | K58: =SUMIF(DATA!$A$2:$A$9077,B58,DATA!$L$2:$L$9077) -> 2 | L58: =SUMIF(DATA!$A$2:$A$9077,B58,DATA!$M$2:$M$79077) -> 2 | M58: =SUMIF(DATA!$A$2:$A$9077,B58,DATA!$N$2:$N$9077) -> 0 | N58: =SUMIF(DATA!$A$2:$A$9101,B58,DATA!$O$2:$O$9101) -> 3 | O58: =SUMIF(DATA!$A$2:$A$9101,B58,DATA!$P$2:$P$9101) -> 0 | P58: =SUMIF(DATA!$A$2:$A$9101,B58,DATA!$Q$2:$Q$9101) -> 0 | Q58: =SUMIF(DATA!$A$2:$A$9078,B58,DATA!$R$2:$R$9078) -> 2 | R58: 0.04761904762 | S58: =SUMIF(DATA!$A$2:$A$9078,B58,DATA!$S$2:$S$9078) -> 4 | T58: 0.09523809524 | U58: =SUMIFS(DATA!J:J,DATA!A:A,Table1[[#This Row],[Name]],DATA!F:F,"Pre") -> 32 | V58: =SUMIFS(DATA!K:K,DATA!A:A,Table1[[#This Row],[Name]],DATA!F:F,"Pre") -> 31 | W58: 0.5079365079 | X58: =SUMIFS(DATA!J:J,DATA!A:A,Table1[[#This Row],[Name]],DATA!F:F,"Semi") -> 0 | Y58: =SUMIFS(DATA!K:K,DATA!A:A,Table1[[#This Row],[Name]],DATA!F:F,"Semi") -> 0 | AA58: =SUMIFS(DATA!J:J,DATA!A:A,Table1[[#This Row],[Name]],DATA!F:F,"COnA") -> 13 | AB58: =SUMIFS(DATA!K:K,DATA!A:A,Table1[[#This Row],[Name]],DATA!F:F,"ConA") -> 11 | AC58: 0.5416666667 | AD58: =SUMIFS(DATA!J:J,DATA!A:A,Table1[[#This Row],[Name]],DATA!F:F,"ConB") -> 0 | AE58: =SUMIFS(DATA!K:K,DATA!A:A,Table1[[#This Row],[Name]],DATA!F:F,"ConB") -> 0
A59: 53 | B59: Aaron Maier | C59: Lighthouse | D59: =COUNTIF(DATA!$A$2:$A$9731,B59) -> 46 | E59: =SUMIF(DATA!$A$2:$A$9077,B59,DATA!$J$2:$J$9077) -> 42 | F59: =SUMIF(DATA!$A$2:$A$9077,B59,DATA!$K$2:$K$9077) -> 30 | G59: 72 | H59: 0.5833333333 | I59: 0.1304347826 | J59: =Table1[[#This Row],[Correct]]/Table1[[#This Row],['#Quizzes]] -> 0.9130434783 | K59: =SUMIF(DATA!$A$2:$A$9077,B59,DATA!$L$2:$L$9077) -> 0 | L59: =SUMIF(DATA!$A$2:$A$9077,B59,DATA!$M$2:$M$79077) -> 3 | M59: =SUMIF(DATA!$A$2:$A$9077,B59,DATA!$N$2:$N$9077) -> 9 | N59: =SUMIF(DATA!$A$2:$A$9101,B59,DATA!$O$2:$O$9101) -> 2 | O59: =SUMIF(DATA!$A$2:$A$9101,B59,DATA!$P$2:$P$9101) -> 0 | P59: =SUMIF(DATA!$A$2:$A$9101,B59,DATA!$Q$2:$Q$9101) -> 0 | Q59: =SUMIF(DATA!$A$2:$A$9078,B59,DATA!$R$2:$R$9078) -> 1 | R59: 0.02173913043 | S59: =SUMIF(DATA!$A$2:$A$9078,B59,DATA!$S$2:$S$9078) -> 2 | T59: 0.04347826087 | U59: =SUMIFS(DATA!J:J,DATA!A:A,Table1[[#This Row],[Name]],DATA!F:F,"Pre") -> 24 | V59: =SUMIFS(DATA!K:K,DATA!A:A,Table1[[#This Row],[Name]],DATA!F:F,"Pre") -> 12 | W59: 0.6666666667 | X59: =SUMIFS(DATA!J:J,DATA!A:A,Table1[[#This Row],[Name]],DATA!F:F,"Semi") -> 0 | Y59: =SUMIFS(DATA!K:K,DATA!A:A,Table1[[#This Row],[Name]],DATA!F:F,"Semi") -> 0 | AA59: =SUMIFS(DATA!J:J,DATA!A:A,Table1[[#This Row],[Name]],DATA!F:F,"COnA") -> 11 | AB59: =SUMIFS(DATA!K:K,DATA!A:A,Table1[[#This Row],[Name]],DATA!F:F,"ConA") -> 9 | AC59: 0.55 | AD59: =SUMIFS(DATA!J:J,DATA!A:A,Table1[[#This Row],[Name]],DATA!F:F,"ConB") -> 7 | AE59: =SUMIFS(DATA!K:K,DATA!A:A,Table1[[#This Row],[Name]],DATA!F:F,"ConB") -> 9 | AF59: 0.4375
A60: 61 | B60: Lam Dang | C60: ABC | D60: =COUNTIF(DATA!$A$2:$A$9731,B60) -> 45 | E60: =SUMIF(DATA!$A$2:$A$9077,B60,DATA!$J$2:$J$9077) -> 9 | F60: =SUMIF(DATA!$A$2:$A$9077,B60,DATA!$K$2:$K$9077) -> 5 | G60: 14 | H60: 0.6428571429 | I60: 0.08888888889 | J60: =Table1[[#This Row],[Correct]]/Table1[[#This Row],['#Quizzes]] -> 0.2 | K60: =SUMIF(DATA!$A$2:$A$9077,B60,DATA!$L$2:$L$9077) -> 0 | L60: =SUMIF(DATA!$A$2:$A$9077,B60,DATA!$M$2:$M$79077) -> 2 | M60: =SUMIF(DATA!$A$2:$A$9077,B60,DATA!$N$2:$N$9077) -> 2 | N60: =SUMIF(DATA!$A$2:$A$9101,B60,DATA!$O$2:$O$9101) -> 2 | O60: =SUMIF(DATA!$A$2:$A$9101,B60,DATA!$P$2:$P$9101) -> 0 | P60: =SUMIF(DATA!$A$2:$A$9101,B60,DATA!$Q$2:$Q$9101) -> 0 | Q60: =SUMIF(DATA!$A$2:$A$9078,B60,DATA!$R$2:$R$9078) -> 0 | R60: 0 | S60: =SUMIF(DATA!$A$2:$A$9078,B60,DATA!$S$2:$S$9078) -> 0 | T60: 0 | U60: =SUMIFS(DATA!J:J,DATA!A:A,Table1[[#This Row],[Name]],DATA!F:F,"Pre") -> 4 | V60: =SUMIFS(DATA!K:K,DATA!A:A,Table1[[#This Row],[Name]],DATA!F:F,"Pre") -> 1 | W60: 0.8 | X60: =SUMIFS(DATA!J:J,DATA!A:A,Table1[[#This Row],[Name]],DATA!F:F,"Semi") -> 0 | Y60: =SUMIFS(DATA!K:K,DATA!A:A,Table1[[#This Row],[Name]],DATA!F:F,"Semi") -> 0 | AA60: =SUMIFS(DATA!J:J,DATA!A:A,Table1[[#This Row],[Name]],DATA!F:F,"COnA") -> 0 | AB60: =SUMIFS(DATA!K:K,DATA!A:A,Table1[[#This Row],[Name]],DATA!F:F,"ConA") -> 0 | AD60: =SUMIFS(DATA!J:J,DATA!A:A,Table1[[#This Row],[Name]],DATA!F:F,"ConB") -> 5 | AE60: =SUMIFS(DATA!K:K,DATA!A:A,Table1[[#This Row],[Name]],DATA!F:F,"ConB") -> 4 | AF60: 0.5555555556
A61: 49 | B61: Tyler Marchese | C61: Grays Harbor | D61: =COUNTIF(DATA!$A$2:$A$9731,B61) -> 45 | E61: =SUMIF(DATA!$A$2:$A$9077,B61,DATA!$J$2:$J$9077) -> 18 | F61: =SUMIF(DATA!$A$2:$A$9077,B61,DATA!$K$2:$K$9077) -> 14 | G61: 32 | H61: 0.5625 | I61: 0.08888888889 | J61: =Table1[[#This Row],[Correct]]/Table1[[#This Row],['#Quizzes]] -> 0.4 | K61: =SUMIF(DATA!$A$2:$A$9077,B61,DATA!$L$2:$L$9077) -> 0 | L61: =SUMIF(DATA!$A$2:$A$9077,B61,DATA!$M$2:$M$79077) -> 2 | M61: =SUMIF(DATA!$A$2:$A$9077,B61,DATA!$N$2:$N$9077) -> 2 | N61: =SUMIF(DATA!$A$2:$A$9101,B61,DATA!$O$2:$O$9101) -> 8 | O61: =SUMIF(DATA!$A$2:$A$9101,B61,DATA!$P$2:$P$9101) -> 0 | P61: =SUMIF(DATA!$A$2:$A$9101,B61,DATA!$Q$2:$Q$9101) -> 0 | Q61: =SUMIF(DATA!$A$2:$A$9078,B61,DATA!$R$2:$R$9078) -> 0 | R61: 0 | S61: =SUMIF(DATA!$A$2:$A$9078,B61,DATA!$S$2:$S$9078) -> 0 | T61: 0 | U61: =SUMIFS(DATA!J:J,DATA!A:A,Table1[[#This Row],[Name]],DATA!F:F,"Pre") -> 15 | V61: =SUMIFS(DATA!K:K,DATA!A:A,Table1[[#This Row],[Name]],DATA!F:F,"Pre") -> 12 | W61: 0.5555555556 | X61: =SUMIFS(DATA!J:J,DATA!A:A,Table1[[#This Row],[Name]],DATA!F:F,"Semi") -> 0 | Y61: =SUMIFS(DATA!K:K,DATA!A:A,Table1[[#This Row],[Name]],DATA!F:F,"Semi") -> 1 | Z61: 0 | AA61: =SUMIFS(DATA!J:J,DATA!A:A,Table1[[#This Row],[Name]],DATA!F:F,"COnA") -> 3 | AB61: =SUMIFS(DATA!K:K,DATA!A:A,Table1[[#This Row],[Name]],DATA!F:F,"ConA") -> 1 | AC61: 0.75 | AD61: =SUMIFS(DATA!J:J,DATA!A:A,Table1[[#This Row],[Name]],DATA!F:F,"ConB") -> 0 | AE61: =SUMIFS(DATA!K:K,DATA!A:A,Table1[[#This Row],[Name]],DATA!F:F,"ConB") -> 0
A62: 57 | B62: Roshan Truax | C62: NSA | D62: =COUNTIF(DATA!$A$2:$A$9731,B62) -> 45 | E62: =SUMIF(DATA!$A$2:$A$9077,B62,DATA!$J$2:$J$9077) -> 12 | F62: =SUMIF(DATA!$A$2:$A$9077,B62,DATA!$K$2:$K$9077) -> 11 | G62: 23 | H62: 0.5217391304 | I62: 0.02222222222 | J62: =Table1[[#This Row],[Correct]]/Table1[[#This Row],['#Quizzes]] -> 0.2666666667 | K62: =SUMIF(DATA!$A$2:$A$9077,B62,DATA!$L$2:$L$9077) -> 0 | L62: =SUMIF(DATA!$A$2:$A$9077,B62,DATA!$M$2:$M$79077) -> 1 | M62: =SUMIF(DATA!$A$2:$A$9077,B62,DATA!$N$2:$N$9077) -> 1 | N62: =SUMIF(DATA!$A$2:$A$9101,B62,DATA!$O$2:$O$9101) -> 0 | O62: =SUMIF(DATA!$A$2:$A$9101,B62,DATA!$P$2:$P$9101) -> 0 | P62: =SUMIF(DATA!$A$2:$A$9101,B62,DATA!$Q$2:$Q$9101) -> 0 | Q62: =SUMIF(DATA!$A$2:$A$9078,B62,DATA!$R$2:$R$9078) -> 0 | R62: 0 | S62: =SUMIF(DATA!$A$2:$A$9078,B62,DATA!$S$2:$S$9078) -> 0 | T62: 0 | U62: =SUMIFS(DATA!J:J,DATA!A:A,Table1[[#This Row],[Name]],DATA!F:F,"Pre") -> 7 | V62: =SUMIFS(DATA!K:K,DATA!A:A,Table1[[#This Row],[Name]],DATA!F:F,"Pre") -> 3 | W62: 0.7 | X62: =SUMIFS(DATA!J:J,DATA!A:A,Table1[[#This Row],[Name]],DATA!F:F,"Semi") -> 0 | Y62: =SUMIFS(DATA!K:K,DATA!A:A,Table1[[#This Row],[Name]],DATA!F:F,"Semi") -> 0 | AA62: =SUMIFS(DATA!J:J,DATA!A:A,Table1[[#This Row],[Name]],DATA!F:F,"COnA") -> 0 | AB62: =SUMIFS(DATA!K:K,DATA!A:A,Table1[[#This Row],[Name]],DATA!F:F,"ConA") -> 0 | AD62: =SUMIFS(DATA!J:J,DATA!A:A,Table1[[#This Row],[Name]],DATA!F:F,"ConB") -> 5 | AE62: =SUMIFS(DATA!K:K,DATA!A:A,Table1[[#This Row],[Name]],DATA!F:F,"ConB") -> 8 | AF62: 0.3846153846
A63: 65 | B63: Jacob Pope | C63: Dallas | D63: =COUNTIF(DATA!$A$2:$A$9731,B63) -> 46 | E63: =SUMIF(DATA!$A$2:$A$9077,B63,DATA!$J$2:$J$9077) -> 7 | F63: =SUMIF(DATA!$A$2:$A$9077,B63,DATA!$K$2:$K$9077) -> 5 | G63: 12 | H63: 0.5833333333 | I63: 0.04347826087 | J63: =Table1[[#This Row],[Correct]]/Table1[[#This Row],['#Quizzes]] -> 0.152173913 | K63: =SUMIF(DATA!$A$2:$A$9077,B63,DATA!$L$2:$L$9077) -> 0 | L63: =SUMIF(DATA!$A$2:$A$9077,B63,DATA!$M$2:$M$79077) -> 1 | M63: =SUMIF(DATA!$A$2:$A$9077,B63,DATA!$N$2:$N$9077) -> 1 | N63: =SUMIF(DATA!$A$2:$A$9101,B63,DATA!$O$2:$O$9101) -> 0 | O63: =SUMIF(DATA!$A$2:$A$9101,B63,DATA!$P$2:$P$9101) -> 0 | P63: =SUMIF(DATA!$A$2:$A$9101,B63,DATA!$Q$2:$Q$9101) -> 0 | Q63: =SUMIF(DATA!$A$2:$A$9078,B63,DATA!$R$2:$R$9078) -> 0 | R63: 0 | S63: =SUMIF(DATA!$A$2:$A$9078,B63,DATA!$S$2:$S$9078) -> 0 | T63: 0 | U63: =SUMIFS(DATA!J:J,DATA!A:A,Table1[[#This Row],[Name]],DATA!F:F,"Pre") -> 4 | V63: =SUMIFS(DATA!K:K,DATA!A:A,Table1[[#This Row],[Name]],DATA!F:F,"Pre") -> 3 | W63: 0.5714285714 | X63: =SUMIFS(DATA!J:J,DATA!A:A,Table1[[#This Row],[Name]],DATA!F:F,"Semi") -> 0 | Y63: =SUMIFS(DATA!K:K,DATA!A:A,Table1[[#This Row],[Name]],DATA!F:F,"Semi") -> 0 | AA63: =SUMIFS(DATA!J:J,DATA!A:A,Table1[[#This Row],[Name]],DATA!F:F,"COnA") -> 0 | AB63: =SUMIFS(DATA!K:K,DATA!A:A,Table1[[#This Row],[Name]],DATA!F:F,"ConA") -> 0 | AD63: =SUMIFS(DATA!J:J,DATA!A:A,Table1[[#This Row],[Name]],DATA!F:F,"ConB") -> 3 | AE63: =SUMIFS(DATA!K:K,DATA!A:A,Table1[[#This Row],[Name]],DATA!F:F,"ConB") -> 2 | AF63: 0.6
A64: 60 | B64: Ethan Shipps | C64: Woodinville | D64: =COUNTIF(DATA!$A$2:$A$9731,B64) -> 44 | E64: =SUMIF(DATA!$A$2:$A$9077,B64,DATA!$J$2:$J$9077) -> 1 | F64: =SUMIF(DATA!$A$2:$A$9077,B64,DATA!$K$2:$K$9077) -> 0 | G64: 1 | H64: 1 | I64: 0.04545454545 | J64: =Table1[[#This Row],[Correct]]/Table1[[#This Row],['#Quizzes]] -> 0.02272727273 | K64: =SUMIF(DATA!$A$2:$A$9077,B64,DATA!$L$2:$L$9077) -> 0 | L64: =SUMIF(DATA!$A$2:$A$9077,B64,DATA!$M$2:$M$79077) -> 1 | M64: =SUMIF(DATA!$A$2:$A$9077,B64,DATA!$N$2:$N$9077) -> 0 | N64: =SUMIF(DATA!$A$2:$A$9101,B64,DATA!$O$2:$O$9101) -> 0 | O64: =SUMIF(DATA!$A$2:$A$9101,B64,DATA!$P$2:$P$9101) -> 0 | P64: =SUMIF(DATA!$A$2:$A$9101,B64,DATA!$Q$2:$Q$9101) -> 0 | Q64: =SUMIF(DATA!$A$2:$A$9078,B64,DATA!$R$2:$R$9078) -> 0 | R64: 0 | S64: =SUMIF(DATA!$A$2:$A$9078,B64,DATA!$S$2:$S$9078) -> 0 | T64: 0 | U64: =SUMIFS(DATA!J:J,DATA!A:A,Table1[[#This Row],[Name]],DATA!F:F,"Pre") -> 1 | V64: =SUMIFS(DATA!K:K,DATA!A:A,Table1[[#This Row],[Name]],DATA!F:F,"Pre") -> 0 | W64: 1 | X64: =SUMIFS(DATA!J:J,DATA!A:A,Table1[[#This Row],[Name]],DATA!F:F,"Semi") -> 0 | Y64: =SUMIFS(DATA!K:K,DATA!A:A,Table1[[#This Row],[Name]],DATA!F:F,"Semi") -> 0 | AA64: =SUMIFS(DATA!J:J,DATA!A:A,Table1[[#This Row],[Name]],DATA!F:F,"COnA") -> 0 | AB64: =SUMIFS(DATA!K:K,DATA!A:A,Table1[[#This Row],[Name]],DATA!F:F,"ConA") -> 0 | AD64: =SUMIFS(DATA!J:J,DATA!A:A,Table1[[#This Row],[Name]],DATA!F:F,"ConB") -> 0 | AE64: =SUMIFS(DATA!K:K,DATA!A:A,Table1[[#This Row],[Name]],DATA!F:F,"ConB") -> 0
A65: 66 | B65: Blake Camacho | C65: Lighthouse | D65: =COUNTIF(DATA!$A$2:$A$9731,B65) -> 39 | E65: =SUMIF(DATA!$A$2:$A$9077,B65,DATA!$J$2:$J$9077) -> 16 | F65: =SUMIF(DATA!$A$2:$A$9077,B65,DATA!$K$2:$K$9077) -> 18 | G65: 34 | H65: 0.4705882353 | I65: 0.02564102564 | J65: =Table1[[#This Row],[Correct]]/Table1[[#This Row],['#Quizzes]] -> 0.4102564103 | K65: =SUMIF(DATA!$A$2:$A$9077,B65,DATA!$L$2:$L$9077) -> 0 | L65: =SUMIF(DATA!$A$2:$A$9077,B65,DATA!$M$2:$M$79077) -> 4 | M65: =SUMIF(DATA!$A$2:$A$9077,B65,DATA!$N$2:$N$9077) -> 1 | N65: =SUMIF(DATA!$A$2:$A$9101,B65,DATA!$O$2:$O$9101) -> 3 | O65: =SUMIF(DATA!$A$2:$A$9101,B65,DATA!$P$2:$P$9101) -> 1 | P65: =SUMIF(DATA!$A$2:$A$9101,B65,DATA!$Q$2:$Q$9101) -> 0 | Q65: =SUMIF(DATA!$A$2:$A$9078,B65,DATA!$R$2:$R$9078) -> 0 | R65: 0 | S65: =SUMIF(DATA!$A$2:$A$9078,B65,DATA!$S$2:$S$9078) -> 0 | T65: 0 | U65: =SUMIFS(DATA!J:J,DATA!A:A,Table1[[#This Row],[Name]],DATA!F:F,"Pre") -> 4 | V65: =SUMIFS(DATA!K:K,DATA!A:A,Table1[[#This Row],[Name]],DATA!F:F,"Pre") -> 9 | W65: 0.3076923077 | X65: =SUMIFS(DATA!J:J,DATA!A:A,Table1[[#This Row],[Name]],DATA!F:F,"Semi") -> 3 | Y65: =SUMIFS(DATA!K:K,DATA!A:A,Table1[[#This Row],[Name]],DATA!F:F,"Semi") -> 1 | Z65: 0.75 | AA65: =SUMIFS(DATA!J:J,DATA!A:A,Table1[[#This Row],[Name]],DATA!F:F,"COnA") -> 1 | AB65: =SUMIFS(DATA!K:K,DATA!A:A,Table1[[#This Row],[Name]],DATA!F:F,"ConA") -> 3 | AC65: 0.25 | AD65: =SUMIFS(DATA!J:J,DATA!A:A,Table1[[#This Row],[Name]],DATA!F:F,"ConB") -> 8 | AE65: =SUMIFS(DATA!K:K,DATA!A:A,Table1[[#This Row],[Name]],DATA!F:F,"ConB") -> 5 | AF65: 0.6153846154
A66: 63 | B66: David Swindler | C66: Lighthouse | D66: =COUNTIF(DATA!$A$2:$A$9731,B66) -> 47 | E66: =SUMIF(DATA!$A$2:$A$9077,B66,DATA!$J$2:$J$9077) -> 15 | F66: =SUMIF(DATA!$A$2:$A$9077,B66,DATA!$K$2:$K$9077) -> 11 | G66: =E66+F66 -> 26 | H66: =E66/(E66+F66) -> 0.5769230769 | I66: =(E66+L66-F66-K66-M66)/D66 -> 0.06382978723 | J66: =Table1[[#This Row],[Correct]]/Table1[[#This Row],['#Quizzes]] -> 0.3191489362 | K66: =SUMIF(DATA!$A$2:$A$9077,B66,DATA!$L$2:$L$9077) -> 1 | L66: =SUMIF(DATA!$A$2:$A$9077,B66,DATA!$M$2:$M$79077) -> 1 | M66: =SUMIF(DATA!$A$2:$A$9077,B66,DATA!$N$2:$N$9077) -> 1 | N66: =SUMIF(DATA!$A$2:$A$9101,B66,DATA!$O$2:$O$9101) -> 4 | O66: =SUMIF(DATA!$A$2:$A$9101,B66,DATA!$P$2:$P$9101) -> 1 | P66: =SUMIF(DATA!$A$2:$A$9101,B66,DATA!$Q$2:$Q$9101) -> 0 | Q66: =SUMIF(DATA!$A$2:$A$9078,B66,DATA!$R$2:$R$9078) -> 0 | R66: =Q66/D66 -> 0 | S66: =SUMIF(DATA!$A$2:$A$9078,B66,DATA!$S$2:$S$9078) -> 0 | T66: =S66/D66 -> 0 | U66: =SUMIFS(DATA!J:J,DATA!A:A,Table1[[#This Row],[Name]],DATA!F:F,"Pre") -> 7 | V66: =SUMIFS(DATA!K:K,DATA!A:A,Table1[[#This Row],[Name]],DATA!F:F,"Pre") -> 6 | W66: =U66/(U66+V66) -> 0.5384615385 | X66: =SUMIFS(DATA!J:J,DATA!A:A,Table1[[#This Row],[Name]],DATA!F:F,"Semi") -> 0 | Y66: =SUMIFS(DATA!K:K,DATA!A:A,Table1[[#This Row],[Name]],DATA!F:F,"Semi") -> 0 | Z66: =X66/(X66+Y66) ->  | AA66: =SUMIFS(DATA!J:J,DATA!A:A,Table1[[#This Row],[Name]],DATA!F:F,"COnA") -> 5 | AB66: =SUMIFS(DATA!K:K,DATA!A:A,Table1[[#This Row],[Name]],DATA!F:F,"ConA") -> 2 | AC66: =AA66/(AA66+AB66) -> 0.7142857143 | AD66: =SUMIFS(DATA!J:J,DATA!A:A,Table1[[#This Row],[Name]],DATA!F:F,"ConB") -> 3 | AE66: =SUMIFS(DATA!K:K,DATA!A:A,Table1[[#This Row],[Name]],DATA!F:F,"ConB") -> 3 | AF66: =AD66/(AD66+AE66) -> 0.5
A67: 67 | B67: Jonathan Steinke | C67: Dallas | D67: =COUNTIF(DATA!$A$2:$A$9731,B67) -> 48 | E67: =SUMIF(DATA!$A$2:$A$9077,B67,DATA!$J$2:$J$9077) -> 13 | F67: =SUMIF(DATA!$A$2:$A$9077,B67,DATA!$K$2:$K$9077) -> 17 | G67: 30 | H67: 0.4333333333 | I67: 0 | J67: =Table1[[#This Row],[Correct]]/Table1[[#This Row],['#Quizzes]] -> 0.2708333333 | K67: =SUMIF(DATA!$A$2:$A$9077,B67,DATA!$L$2:$L$9077) -> 0 | L67: =SUMIF(DATA!$A$2:$A$9077,B67,DATA!$M$2:$M$79077) -> 4 | M67: =SUMIF(DATA!$A$2:$A$9077,B67,DATA!$N$2:$N$9077) -> 0 | N67: =SUMIF(DATA!$A$2:$A$9101,B67,DATA!$O$2:$O$9101) -> 6 | O67: =SUMIF(DATA!$A$2:$A$9101,B67,DATA!$P$2:$P$9101) -> 0 | P67: =SUMIF(DATA!$A$2:$A$9101,B67,DATA!$Q$2:$Q$9101) -> 0 | Q67: =SUMIF(DATA!$A$2:$A$9078,B67,DATA!$R$2:$R$9078) -> 0 | R67: 0 | S67: =SUMIF(DATA!$A$2:$A$9078,B67,DATA!$S$2:$S$9078) -> 0 | T67: 0 | U67: =SUMIFS(DATA!J:J,DATA!A:A,Table1[[#This Row],[Name]],DATA!F:F,"Pre") -> 12 | V67: =SUMIFS(DATA!K:K,DATA!A:A,Table1[[#This Row],[Name]],DATA!F:F,"Pre") -> 13 | W67: 0.48 | X67: =SUMIFS(DATA!J:J,DATA!A:A,Table1[[#This Row],[Name]],DATA!F:F,"Semi") -> 1 | Y67: =SUMIFS(DATA!K:K,DATA!A:A,Table1[[#This Row],[Name]],DATA!F:F,"Semi") -> 4 | Z67: 0.2 | AA67: =SUMIFS(DATA!J:J,DATA!A:A,Table1[[#This Row],[Name]],DATA!F:F,"COnA") -> 0 | AB67: =SUMIFS(DATA!K:K,DATA!A:A,Table1[[#This Row],[Name]],DATA!F:F,"ConA") -> 0 | AD67: =SUMIFS(DATA!J:J,DATA!A:A,Table1[[#This Row],[Name]],DATA!F:F,"ConB") -> 0 | AE67: =SUMIFS(DATA!K:K,DATA!A:A,Table1[[#This Row],[Name]],DATA!F:F,"ConB") -> 0
A68: 73 | B68: Iliana Hammerstrom | C68: ABC | D68: =COUNTIF(DATA!$A$2:$A$9731,B68) -> 48 | E68: =SUMIF(DATA!$A$2:$A$9077,B68,DATA!$J$2:$J$9077) -> 7 | F68: =SUMIF(DATA!$A$2:$A$9077,B68,DATA!$K$2:$K$9077) -> 5 | G68: 12 | H68: 0.5833333333 | I68: -0.02083333333 | J68: =Table1[[#This Row],[Correct]]/Table1[[#This Row],['#Quizzes]] -> 0.1458333333 | K68: =SUMIF(DATA!$A$2:$A$9077,B68,DATA!$L$2:$L$9077) -> 0 | L68: =SUMIF(DATA!$A$2:$A$9077,B68,DATA!$M$2:$M$79077) -> 0 | M68: =SUMIF(DATA!$A$2:$A$9077,B68,DATA!$N$2:$N$9077) -> 3 | N68: =SUMIF(DATA!$A$2:$A$9101,B68,DATA!$O$2:$O$9101) -> 2 | O68: =SUMIF(DATA!$A$2:$A$9101,B68,DATA!$P$2:$P$9101) -> 0 | P68: =SUMIF(DATA!$A$2:$A$9101,B68,DATA!$Q$2:$Q$9101) -> 0 | Q68: =SUMIF(DATA!$A$2:$A$9078,B68,DATA!$R$2:$R$9078) -> 0 | R68: 0 | S68: =SUMIF(DATA!$A$2:$A$9078,B68,DATA!$S$2:$S$9078) -> 0 | T68: 0 | U68: =SUMIFS(DATA!J:J,DATA!A:A,Table1[[#This Row],[Name]],DATA!F:F,"Pre") -> 5 | V68: =SUMIFS(DATA!K:K,DATA!A:A,Table1[[#This Row],[Name]],DATA!F:F,"Pre") -> 2 | W68: 0.7142857143 | X68: =SUMIFS(DATA!J:J,DATA!A:A,Table1[[#This Row],[Name]],DATA!F:F,"Semi") -> 0 | Y68: =SUMIFS(DATA!K:K,DATA!A:A,Table1[[#This Row],[Name]],DATA!F:F,"Semi") -> 0 | AA68: =SUMIFS(DATA!J:J,DATA!A:A,Table1[[#This Row],[Name]],DATA!F:F,"COnA") -> 0 | AB68: =SUMIFS(DATA!K:K,DATA!A:A,Table1[[#This Row],[Name]],DATA!F:F,"ConA") -> 2 | AC68: 0 | AD68: =SUMIFS(DATA!J:J,DATA!A:A,Table1[[#This Row],[Name]],DATA!F:F,"ConB") -> 2 | AE68: =SUMIFS(DATA!K:K,DATA!A:A,Table1[[#This Row],[Name]],DATA!F:F,"ConB") -> 1 | AF68: 0.6666666667
A69: 70 | B69: Marcus Pettersen | C69: Lighthouse | D69: =COUNTIF(DATA!$A$2:$A$9731,B69) -> 9 | E69: =SUMIF(DATA!$A$2:$A$9077,B69,DATA!$J$2:$J$9077) -> 2 | F69: =SUMIF(DATA!$A$2:$A$9077,B69,DATA!$K$2:$K$9077) -> 2 | G69: 4 | H69: 0.5 | I69: 0 | J69: =Table1[[#This Row],[Correct]]/Table1[[#This Row],['#Quizzes]] -> 0.2222222222 | K69: =SUMIF(DATA!$A$2:$A$9077,B69,DATA!$L$2:$L$9077) -> 0 | L69: =SUMIF(DATA!$A$2:$A$9077,B69,DATA!$M$2:$M$79077) -> 0 | M69: =SUMIF(DATA!$A$2:$A$9077,B69,DATA!$N$2:$N$9077) -> 0 | N69: =SUMIF(DATA!$A$2:$A$9101,B69,DATA!$O$2:$O$9101) -> 0 | O69: =SUMIF(DATA!$A$2:$A$9101,B69,DATA!$P$2:$P$9101) -> 0 | P69: =SUMIF(DATA!$A$2:$A$9101,B69,DATA!$Q$2:$Q$9101) -> 0 | Q69: =SUMIF(DATA!$A$2:$A$9078,B69,DATA!$R$2:$R$9078) -> 0 | R69: 0 | S69: =SUMIF(DATA!$A$2:$A$9078,B69,DATA!$S$2:$S$9078) -> 0 | T69: 0 | U69: =SUMIFS(DATA!J:J,DATA!A:A,Table1[[#This Row],[Name]],DATA!F:F,"Pre") -> 1 | V69: =SUMIFS(DATA!K:K,DATA!A:A,Table1[[#This Row],[Name]],DATA!F:F,"Pre") -> 0 | W69: 1 | X69: =SUMIFS(DATA!J:J,DATA!A:A,Table1[[#This Row],[Name]],DATA!F:F,"Semi") -> 0 | Y69: =SUMIFS(DATA!K:K,DATA!A:A,Table1[[#This Row],[Name]],DATA!F:F,"Semi") -> 0 | AA69: =SUMIFS(DATA!J:J,DATA!A:A,Table1[[#This Row],[Name]],DATA!F:F,"COnA") -> 0 | AB69: =SUMIFS(DATA!K:K,DATA!A:A,Table1[[#This Row],[Name]],DATA!F:F,"ConA") -> 0 | AD69: =SUMIFS(DATA!J:J,DATA!A:A,Table1[[#This Row],[Name]],DATA!F:F,"ConB") -> 1 | AE69: =SUMIFS(DATA!K:K,DATA!A:A,Table1[[#This Row],[Name]],DATA!F:F,"ConB") -> 2 | AF69: 0.3333333333
A70: 72 | B70: Ruby McClung | C70: Tacoma | D70: =COUNTIF(DATA!$A$2:$A$9731,B70) -> 38 | E70: =SUMIF(DATA!$A$2:$A$9077,B70,DATA!$J$2:$J$9077) -> 1 | F70: =SUMIF(DATA!$A$2:$A$9077,B70,DATA!$K$2:$K$9077) -> 0 | G70: 1 | H70: 1 | I70: 0 | J70: =Table1[[#This Row],[Correct]]/Table1[[#This Row],['#Quizzes]] -> 0.02631578947 | K70: =SUMIF(DATA!$A$2:$A$9077,B70,DATA!$L$2:$L$9077) -> 0 | L70: =SUMIF(DATA!$A$2:$A$9077,B70,DATA!$M$2:$M$79077) -> 0 | M70: =SUMIF(DATA!$A$2:$A$9077,B70,DATA!$N$2:$N$9077) -> 1 | N70: =SUMIF(DATA!$A$2:$A$9101,B70,DATA!$O$2:$O$9101) -> 0 | O70: =SUMIF(DATA!$A$2:$A$9101,B70,DATA!$P$2:$P$9101) -> 0 | P70: =SUMIF(DATA!$A$2:$A$9101,B70,DATA!$Q$2:$Q$9101) -> 0 | Q70: =SUMIF(DATA!$A$2:$A$9078,B70,DATA!$R$2:$R$9078) -> 0 | R70: 0 | S70: =SUMIF(DATA!$A$2:$A$9078,B70,DATA!$S$2:$S$9078) -> 0 | T70: 0 | U70: =SUMIFS(DATA!J:J,DATA!A:A,Table1[[#This Row],[Name]],DATA!F:F,"Pre") -> 0 | V70: =SUMIFS(DATA!K:K,DATA!A:A,Table1[[#This Row],[Name]],DATA!F:F,"Pre") -> 0 | X70: =SUMIFS(DATA!J:J,DATA!A:A,Table1[[#This Row],[Name]],DATA!F:F,"Semi") -> 0 | Y70: =SUMIFS(DATA!K:K,DATA!A:A,Table1[[#This Row],[Name]],DATA!F:F,"Semi") -> 0 | AA70: =SUMIFS(DATA!J:J,DATA!A:A,Table1[[#This Row],[Name]],DATA!F:F,"COnA") -> 1 | AB70: =SUMIFS(DATA!K:K,DATA!A:A,Table1[[#This Row],[Name]],DATA!F:F,"ConA") -> 0 | AC70: 1 | AD70: =SUMIFS(DATA!J:J,DATA!A:A,Table1[[#This Row],[Name]],DATA!F:F,"ConB") -> 0 | AE70: =SUMIFS(DATA!K:K,DATA!A:A,Table1[[#This Row],[Name]],DATA!F:F,"ConB") -> 0
A71: 69 | B71: Joseph Winters | C71: Dallas | D71: =COUNTIF(DATA!$A$2:$A$9731,B71) -> 37 | E71: =SUMIF(DATA!$A$2:$A$9077,B71,DATA!$J$2:$J$9077) -> 7 | F71: =SUMIF(DATA!$A$2:$A$9077,B71,DATA!$K$2:$K$9077) -> 7 | G71: 14 | H71: 0.5 | I71: 0 | J71: =Table1[[#This Row],[Correct]]/Table1[[#This Row],['#Quizzes]] -> 0.1891891892 | K71: =SUMIF(DATA!$A$2:$A$9077,B71,DATA!$L$2:$L$9077) -> 0 | L71: =SUMIF(DATA!$A$2:$A$9077,B71,DATA!$M$2:$M$79077) -> 0 | M71: =SUMIF(DATA!$A$2:$A$9077,B71,DATA!$N$2:$N$9077) -> 0 | N71: =SUMIF(DATA!$A$2:$A$9101,B71,DATA!$O$2:$O$9101) -> 5 | O71: =SUMIF(DATA!$A$2:$A$9101,B71,DATA!$P$2:$P$9101) -> 1 | P71: =SUMIF(DATA!$A$2:$A$9101,B71,DATA!$Q$2:$Q$9101) -> 0 | Q71: =SUMIF(DATA!$A$2:$A$9078,B71,DATA!$R$2:$R$9078) -> 0 | R71: 0 | S71: =SUMIF(DATA!$A$2:$A$9078,B71,DATA!$S$2:$S$9078) -> 1 | T71: 0.02702702703 | U71: =SUMIFS(DATA!J:J,DATA!A:A,Table1[[#This Row],[Name]],DATA!F:F,"Pre") -> 6 | V71: =SUMIFS(DATA!K:K,DATA!A:A,Table1[[#This Row],[Name]],DATA!F:F,"Pre") -> 6 | W71: 0.5 | X71: =SUMIFS(DATA!J:J,DATA!A:A,Table1[[#This Row],[Name]],DATA!F:F,"Semi") -> 1 | Y71: =SUMIFS(DATA!K:K,DATA!A:A,Table1[[#This Row],[Name]],DATA!F:F,"Semi") -> 1 | Z71: 0.5 | AA71: =SUMIFS(DATA!J:J,DATA!A:A,Table1[[#This Row],[Name]],DATA!F:F,"COnA") -> 0 | AB71: =SUMIFS(DATA!K:K,DATA!A:A,Table1[[#This Row],[Name]],DATA!F:F,"ConA") -> 0 | AD71: =SUMIFS(DATA!J:J,DATA!A:A,Table1[[#This Row],[Name]],DATA!F:F,"ConB") -> 0 | AE71: =SUMIFS(DATA!K:K,DATA!A:A,Table1[[#This Row],[Name]],DATA!F:F,"ConB") -> 0
A72: 71 | B72: Kyndal Holcomb | C72: Grays Harbor | D72: =COUNTIF(DATA!$A$2:$A$9731,B72) -> 9 | E72: =SUMIF(DATA!$A$2:$A$9077,B72,DATA!$J$2:$J$9077) -> 0 | F72: =SUMIF(DATA!$A$2:$A$9077,B72,DATA!$K$2:$K$9077) -> 0 | G72: 0 | I72: 0 | J72: =Table1[[#This Row],[Correct]]/Table1[[#This Row],['#Quizzes]] -> 0 | K72: =SUMIF(DATA!$A$2:$A$9077,B72,DATA!$L$2:$L$9077) -> 0 | L72: =SUMIF(DATA!$A$2:$A$9077,B72,DATA!$M$2:$M$79077) -> 0 | M72: =SUMIF(DATA!$A$2:$A$9077,B72,DATA!$N$2:$N$9077) -> 0 | N72: =SUMIF(DATA!$A$2:$A$9101,B72,DATA!$O$2:$O$9101) -> 0 | O72: =SUMIF(DATA!$A$2:$A$9101,B72,DATA!$P$2:$P$9101) -> 0 | P72: =SUMIF(DATA!$A$2:$A$9101,B72,DATA!$Q$2:$Q$9101) -> 0 | Q72: =SUMIF(DATA!$A$2:$A$9078,B72,DATA!$R$2:$R$9078) -> 0 | R72: 0 | S72: =SUMIF(DATA!$A$2:$A$9078,B72,DATA!$S$2:$S$9078) -> 0 | T72: 0 | U72: =SUMIFS(DATA!J:J,DATA!A:A,Table1[[#This Row],[Name]],DATA!F:F,"Pre") -> 0 | V72: =SUMIFS(DATA!K:K,DATA!A:A,Table1[[#This Row],[Name]],DATA!F:F,"Pre") -> 0 | X72: =SUMIFS(DATA!J:J,DATA!A:A,Table1[[#This Row],[Name]],DATA!F:F,"Semi") -> 0 | Y72: =SUMIFS(DATA!K:K,DATA!A:A,Table1[[#This Row],[Name]],DATA!F:F,"Semi") -> 0 | AA72: =SUMIFS(DATA!J:J,DATA!A:A,Table1[[#This Row],[Name]],DATA!F:F,"COnA") -> 0 | AB72: =SUMIFS(DATA!K:K,DATA!A:A,Table1[[#This Row],[Name]],DATA!F:F,"ConA") -> 0 | AD72: =SUMIFS(DATA!J:J,DATA!A:A,Table1[[#This Row],[Name]],DATA!F:F,"ConB") -> 0 | AE72: =SUMIFS(DATA!K:K,DATA!A:A,Table1[[#This Row],[Name]],DATA!F:F,"ConB") -> 0
A73: 76 | B73: Natalie Crabtree | C73: Dallas | D73: =COUNTIF(DATA!$A$2:$A$9731,B73) -> 44 | E73: =SUMIF(DATA!$A$2:$A$9077,B73,DATA!$J$2:$J$9077) -> 7 | F73: =SUMIF(DATA!$A$2:$A$9077,B73,DATA!$K$2:$K$9077) -> 9 | G73: 16 | H73: 0.4375 | I73: 0 | J73: =Table1[[#This Row],[Correct]]/Table1[[#This Row],['#Quizzes]] -> 0.1590909091 | K73: =SUMIF(DATA!$A$2:$A$9077,B73,DATA!$L$2:$L$9077) -> 0 | L73: =SUMIF(DATA!$A$2:$A$9077,B73,DATA!$M$2:$M$79077) -> 3 | M73: =SUMIF(DATA!$A$2:$A$9077,B73,DATA!$N$2:$N$9077) -> 1 | N73: =SUMIF(DATA!$A$2:$A$9101,B73,DATA!$O$2:$O$9101) -> 4 | O73: =SUMIF(DATA!$A$2:$A$9101,B73,DATA!$P$2:$P$9101) -> 1 | P73: =SUMIF(DATA!$A$2:$A$9101,B73,DATA!$Q$2:$Q$9101) -> 0 | Q73: =SUMIF(DATA!$A$2:$A$9078,B73,DATA!$R$2:$R$9078) -> 0 | R73: 0 | S73: =SUMIF(DATA!$A$2:$A$9078,B73,DATA!$S$2:$S$9078) -> 0 | T73: 0 | U73: =SUMIFS(DATA!J:J,DATA!A:A,Table1[[#This Row],[Name]],DATA!F:F,"Pre") -> 6 | V73: =SUMIFS(DATA!K:K,DATA!A:A,Table1[[#This Row],[Name]],DATA!F:F,"Pre") -> 6 | W73: 0.5 | X73: =SUMIFS(DATA!J:J,DATA!A:A,Table1[[#This Row],[Name]],DATA!F:F,"Semi") -> 0 | Y73: =SUMIFS(DATA!K:K,DATA!A:A,Table1[[#This Row],[Name]],DATA!F:F,"Semi") -> 0 | AA73: =SUMIFS(DATA!J:J,DATA!A:A,Table1[[#This Row],[Name]],DATA!F:F,"COnA") -> 1 | AB73: =SUMIFS(DATA!K:K,DATA!A:A,Table1[[#This Row],[Name]],DATA!F:F,"ConA") -> 3 | AC73: 0.25 | AD73: =SUMIFS(DATA!J:J,DATA!A:A,Table1[[#This Row],[Name]],DATA!F:F,"ConB") -> 0 | AE73: =SUMIFS(DATA!K:K,DATA!A:A,Table1[[#This Row],[Name]],DATA!F:F,"ConB") -> 0
A74: 75 | B74: Abigail Van Doorne | C74: Chapel Hill | D74: =COUNTIF(DATA!$A$2:$A$9731,B74) -> 47 | E74: =SUMIF(DATA!$A$2:$A$9077,B74,DATA!$J$2:$J$9077) -> 13 | F74: =SUMIF(DATA!$A$2:$A$9077,B74,DATA!$K$2:$K$9077) -> 9 | G74: 22 | H74: 0.5909090909 | I74: 0 | J74: =Table1[[#This Row],[Correct]]/Table1[[#This Row],['#Quizzes]] -> 0.2765957447 | K74: =SUMIF(DATA!$A$2:$A$9077,B74,DATA!$L$2:$L$9077) -> 7 | L74: =SUMIF(DATA!$A$2:$A$9077,B74,DATA!$M$2:$M$79077) -> 3 | M74: =SUMIF(DATA!$A$2:$A$9077,B74,DATA!$N$2:$N$9077) -> 0 | N74: =SUMIF(DATA!$A$2:$A$9101,B74,DATA!$O$2:$O$9101) -> 2 | O74: =SUMIF(DATA!$A$2:$A$9101,B74,DATA!$P$2:$P$9101) -> 0 | P74: =SUMIF(DATA!$A$2:$A$9101,B74,DATA!$Q$2:$Q$9101) -> 0 | Q74: =SUMIF(DATA!$A$2:$A$9078,B74,DATA!$R$2:$R$9078) -> 0 | R74: 0 | S74: =SUMIF(DATA!$A$2:$A$9078,B74,DATA!$S$2:$S$9078) -> 0 | T74: 0 | U74: =SUMIFS(DATA!J:J,DATA!A:A,Table1[[#This Row],[Name]],DATA!F:F,"Pre") -> 6 | V74: =SUMIFS(DATA!K:K,DATA!A:A,Table1[[#This Row],[Name]],DATA!F:F,"Pre") -> 6 | W74: 0.5 | X74: =SUMIFS(DATA!J:J,DATA!A:A,Table1[[#This Row],[Name]],DATA!F:F,"Semi") -> 0 | Y74: =SUMIFS(DATA!K:K,DATA!A:A,Table1[[#This Row],[Name]],DATA!F:F,"Semi") -> 0 | AA74: =SUMIFS(DATA!J:J,DATA!A:A,Table1[[#This Row],[Name]],DATA!F:F,"COnA") -> 4 | AB74: =SUMIFS(DATA!K:K,DATA!A:A,Table1[[#This Row],[Name]],DATA!F:F,"ConA") -> 2 | AC74: 0.6666666667 | AD74: =SUMIFS(DATA!J:J,DATA!A:A,Table1[[#This Row],[Name]],DATA!F:F,"ConB") -> 3 | AE74: =SUMIFS(DATA!K:K,DATA!A:A,Table1[[#This Row],[Name]],DATA!F:F,"ConB") -> 1 | AF74: 0.75
A75: 64 | B75: Emily Ashcraft | C75: Lighthouse | D75: =COUNTIF(DATA!$A$2:$A$9731,B75) -> 42 | E75: =SUMIF(DATA!$A$2:$A$9077,B75,DATA!$J$2:$J$9077) -> 15 | F75: =SUMIF(DATA!$A$2:$A$9077,B75,DATA!$K$2:$K$9077) -> 16 | G75: 31 | H75: 0.4838709677 | I75: -0.02380952381 | J75: =Table1[[#This Row],[Correct]]/Table1[[#This Row],['#Quizzes]] -> 0.3571428571 | K75: =SUMIF(DATA!$A$2:$A$9077,B75,DATA!$L$2:$L$9077) -> 0 | L75: =SUMIF(DATA!$A$2:$A$9077,B75,DATA!$M$2:$M$79077) -> 4 | M75: =SUMIF(DATA!$A$2:$A$9077,B75,DATA!$N$2:$N$9077) -> 4 | N75: =SUMIF(DATA!$A$2:$A$9101,B75,DATA!$O$2:$O$9101) -> 3 | O75: =SUMIF(DATA!$A$2:$A$9101,B75,DATA!$P$2:$P$9101) -> 0 | P75: =SUMIF(DATA!$A$2:$A$9101,B75,DATA!$Q$2:$Q$9101) -> 0 | Q75: =SUMIF(DATA!$A$2:$A$9078,B75,DATA!$R$2:$R$9078) -> 0 | R75: 0 | S75: =SUMIF(DATA!$A$2:$A$9078,B75,DATA!$S$2:$S$9078) -> 0 | T75: 0 | U75: =SUMIFS(DATA!J:J,DATA!A:A,Table1[[#This Row],[Name]],DATA!F:F,"Pre") -> 10 | V75: =SUMIFS(DATA!K:K,DATA!A:A,Table1[[#This Row],[Name]],DATA!F:F,"Pre") -> 10 | W75: 0.5 | X75: =SUMIFS(DATA!J:J,DATA!A:A,Table1[[#This Row],[Name]],DATA!F:F,"Semi") -> 0 | Y75: =SUMIFS(DATA!K:K,DATA!A:A,Table1[[#This Row],[Name]],DATA!F:F,"Semi") -> 0 | AA75: =SUMIFS(DATA!J:J,DATA!A:A,Table1[[#This Row],[Name]],DATA!F:F,"COnA") -> 1 | AB75: =SUMIFS(DATA!K:K,DATA!A:A,Table1[[#This Row],[Name]],DATA!F:F,"ConA") -> 3 | AC75: 0.25 | AD75: =SUMIFS(DATA!J:J,DATA!A:A,Table1[[#This Row],[Name]],DATA!F:F,"ConB") -> 4 | AE75: =SUMIFS(DATA!K:K,DATA!A:A,Table1[[#This Row],[Name]],DATA!F:F,"ConB") -> 3 | AF75: 0.5714285714
A76: 78 | B76: Deborah Dvorak | C76: Chapel Hill | D76: =COUNTIF(DATA!$A$2:$A$9731,B76) -> 49 | E76: =SUMIF(DATA!$A$2:$A$9077,B76,DATA!$J$2:$J$9077) -> 2 | F76: =SUMIF(DATA!$A$2:$A$9077,B76,DATA!$K$2:$K$9077) -> 4 | G76: 6 | H76: 0.3333333333 | I76: -0.04081632653 | J76: =Table1[[#This Row],[Correct]]/Table1[[#This Row],['#Quizzes]] -> 0.04081632653 | K76: =SUMIF(DATA!$A$2:$A$9077,B76,DATA!$L$2:$L$9077) -> 1 | L76: =SUMIF(DATA!$A$2:$A$9077,B76,DATA!$M$2:$M$79077) -> 1 | M76: =SUMIF(DATA!$A$2:$A$9077,B76,DATA!$N$2:$N$9077) -> 0 | N76: =SUMIF(DATA!$A$2:$A$9101,B76,DATA!$O$2:$O$9101) -> 1 | O76: =SUMIF(DATA!$A$2:$A$9101,B76,DATA!$P$2:$P$9101) -> 1 | P76: =SUMIF(DATA!$A$2:$A$9101,B76,DATA!$Q$2:$Q$9101) -> 0 | Q76: =SUMIF(DATA!$A$2:$A$9078,B76,DATA!$R$2:$R$9078) -> 0 | R76: 0 | S76: =SUMIF(DATA!$A$2:$A$9078,B76,DATA!$S$2:$S$9078) -> 0 | T76: 0 | U76: =SUMIFS(DATA!J:J,DATA!A:A,Table1[[#This Row],[Name]],DATA!F:F,"Pre") -> 1 | V76: =SUMIFS(DATA!K:K,DATA!A:A,Table1[[#This Row],[Name]],DATA!F:F,"Pre") -> 3 | W76: 0.25 | X76: =SUMIFS(DATA!J:J,DATA!A:A,Table1[[#This Row],[Name]],DATA!F:F,"Semi") -> 0 | Y76: =SUMIFS(DATA!K:K,DATA!A:A,Table1[[#This Row],[Name]],DATA!F:F,"Semi") -> 0 | AA76: =SUMIFS(DATA!J:J,DATA!A:A,Table1[[#This Row],[Name]],DATA!F:F,"COnA") -> 1 | AB76: =SUMIFS(DATA!K:K,DATA!A:A,Table1[[#This Row],[Name]],DATA!F:F,"ConA") -> 1 | AC76: 0.5 | AD76: =SUMIFS(DATA!J:J,DATA!A:A,Table1[[#This Row],[Name]],DATA!F:F,"ConB") -> 0 | AE76: =SUMIFS(DATA!K:K,DATA!A:A,Table1[[#This Row],[Name]],DATA!F:F,"ConB") -> 0
A77: 79 | B77: Bryanna Hurd | C77: ABC | D77: =COUNTIF(DATA!$A$2:$A$9731,B77) -> 45 | E77: =SUMIF(DATA!$A$2:$A$9077,B77,DATA!$J$2:$J$9077) -> 3 | F77: =SUMIF(DATA!$A$2:$A$9077,B77,DATA!$K$2:$K$9077) -> 0 | G77: 3 | H77: 1 | I77: -0.04444444444 | J77: =Table1[[#This Row],[Correct]]/Table1[[#This Row],['#Quizzes]] -> 0.06666666667 | K77: =SUMIF(DATA!$A$2:$A$9077,B77,DATA!$L$2:$L$9077) -> 0 | L77: =SUMIF(DATA!$A$2:$A$9077,B77,DATA!$M$2:$M$79077) -> 1 | M77: =SUMIF(DATA!$A$2:$A$9077,B77,DATA!$N$2:$N$9077) -> 6 | N77: =SUMIF(DATA!$A$2:$A$9101,B77,DATA!$O$2:$O$9101) -> 0 | O77: =SUMIF(DATA!$A$2:$A$9101,B77,DATA!$P$2:$P$9101) -> 0 | P77: =SUMIF(DATA!$A$2:$A$9101,B77,DATA!$Q$2:$Q$9101) -> 0 | Q77: =SUMIF(DATA!$A$2:$A$9078,B77,DATA!$R$2:$R$9078) -> 0 | R77: 0 | S77: =SUMIF(DATA!$A$2:$A$9078,B77,DATA!$S$2:$S$9078) -> 0 | T77: 0 | U77: =SUMIFS(DATA!J:J,DATA!A:A,Table1[[#This Row],[Name]],DATA!F:F,"Pre") -> 1 | V77: =SUMIFS(DATA!K:K,DATA!A:A,Table1[[#This Row],[Name]],DATA!F:F,"Pre") -> 0 | W77: 1 | X77: =SUMIFS(DATA!J:J,DATA!A:A,Table1[[#This Row],[Name]],DATA!F:F,"Semi") -> 0 | Y77: =SUMIFS(DATA!K:K,DATA!A:A,Table1[[#This Row],[Name]],DATA!F:F,"Semi") -> 0 | AA77: =SUMIFS(DATA!J:J,DATA!A:A,Table1[[#This Row],[Name]],DATA!F:F,"COnA") -> 1 | AB77: =SUMIFS(DATA!K:K,DATA!A:A,Table1[[#This Row],[Name]],DATA!F:F,"ConA") -> 0 | AC77: 1 | AD77: =SUMIFS(DATA!J:J,DATA!A:A,Table1[[#This Row],[Name]],DATA!F:F,"ConB") -> 1 | AE77: =SUMIFS(DATA!K:K,DATA!A:A,Table1[[#This Row],[Name]],DATA!F:F,"ConB") -> 0 | AF77: 1
A78: 80 | B78: Sabrina Kelsey | C78: EBC | D78: =COUNTIF(DATA!$A$2:$A$9731,B78) -> 45 | E78: =SUMIF(DATA!$A$2:$A$9077,B78,DATA!$J$2:$J$9077) -> 1 | F78: =SUMIF(DATA!$A$2:$A$9077,B78,DATA!$K$2:$K$9077) -> 3 | G78: 4 | H78: 0.25 | I78: -0.06666666667 | J78: =Table1[[#This Row],[Correct]]/Table1[[#This Row],['#Quizzes]] -> 0.02222222222 | K78: =SUMIF(DATA!$A$2:$A$9077,B78,DATA!$L$2:$L$9077) -> 1 | L78: =SUMIF(DATA!$A$2:$A$9077,B78,DATA!$M$2:$M$79077) -> 0 | M78: =SUMIF(DATA!$A$2:$A$9077,B78,DATA!$N$2:$N$9077) -> 0 | N78: =SUMIF(DATA!$A$2:$A$9101,B78,DATA!$O$2:$O$9101) -> 0 | O78: =SUMIF(DATA!$A$2:$A$9101,B78,DATA!$P$2:$P$9101) -> 0 | P78: =SUMIF(DATA!$A$2:$A$9101,B78,DATA!$Q$2:$Q$9101) -> 0 | Q78: =SUMIF(DATA!$A$2:$A$9078,B78,DATA!$R$2:$R$9078) -> 0 | R78: 0 | S78: =SUMIF(DATA!$A$2:$A$9078,B78,DATA!$S$2:$S$9078) -> 0 | T78: 0 | U78: =SUMIFS(DATA!J:J,DATA!A:A,Table1[[#This Row],[Name]],DATA!F:F,"Pre") -> 0 | V78: =SUMIFS(DATA!K:K,DATA!A:A,Table1[[#This Row],[Name]],DATA!F:F,"Pre") -> 2 | W78: 0 | X78: =SUMIFS(DATA!J:J,DATA!A:A,Table1[[#This Row],[Name]],DATA!F:F,"Semi") -> 0 | Y78: =SUMIFS(DATA!K:K,DATA!A:A,Table1[[#This Row],[Name]],DATA!F:F,"Semi") -> 0 | AA78: =SUMIFS(DATA!J:J,DATA!A:A,Table1[[#This Row],[Name]],DATA!F:F,"COnA") -> 0 | AB78: =SUMIFS(DATA!K:K,DATA!A:A,Table1[[#This Row],[Name]],DATA!F:F,"ConA") -> 0 | AD78: =SUMIFS(DATA!J:J,DATA!A:A,Table1[[#This Row],[Name]],DATA!F:F,"ConB") -> 1 | AE78: =SUMIFS(DATA!K:K,DATA!A:A,Table1[[#This Row],[Name]],DATA!F:F,"ConB") -> 1 | AF78: 0.5
A79: 68 | B79: Becca Derr | C79: Chapel Hill | D79: =COUNTIF(DATA!$A$2:$A$9731,B79) -> 44 | E79: =SUMIF(DATA!$A$2:$A$9077,B79,DATA!$J$2:$J$9077) -> 53 | F79: =SUMIF(DATA!$A$2:$A$9077,B79,DATA!$K$2:$K$9077) -> 50 | G79: 103 | H79: 0.5145631068 | I79: 0.04545454545 | J79: =Table1[[#This Row],[Correct]]/Table1[[#This Row],['#Quizzes]] -> 1.204545455 | K79: =SUMIF(DATA!$A$2:$A$9077,B79,DATA!$L$2:$L$9077) -> 2 | L79: =SUMIF(DATA!$A$2:$A$9077,B79,DATA!$M$2:$M$79077) -> 2 | M79: =SUMIF(DATA!$A$2:$A$9077,B79,DATA!$N$2:$N$9077) -> 1 | N79: =SUMIF(DATA!$A$2:$A$9101,B79,DATA!$O$2:$O$9101) -> 2 | O79: =SUMIF(DATA!$A$2:$A$9101,B79,DATA!$P$2:$P$9101) -> 0 | P79: =SUMIF(DATA!$A$2:$A$9101,B79,DATA!$Q$2:$Q$9101) -> 0 | Q79: =SUMIF(DATA!$A$2:$A$9078,B79,DATA!$R$2:$R$9078) -> 2 | R79: 0.04545454545 | S79: =SUMIF(DATA!$A$2:$A$9078,B79,DATA!$S$2:$S$9078) -> 5 | T79: 0.1136363636 | U79: =SUMIFS(DATA!J:J,DATA!A:A,Table1[[#This Row],[Name]],DATA!F:F,"Pre") -> 25 | V79: =SUMIFS(DATA!K:K,DATA!A:A,Table1[[#This Row],[Name]],DATA!F:F,"Pre") -> 34 | W79: 0.4237288136 | X79: =SUMIFS(DATA!J:J,DATA!A:A,Table1[[#This Row],[Name]],DATA!F:F,"Semi") -> 0 | Y79: =SUMIFS(DATA!K:K,DATA!A:A,Table1[[#This Row],[Name]],DATA!F:F,"Semi") -> 0 | AA79: =SUMIFS(DATA!J:J,DATA!A:A,Table1[[#This Row],[Name]],DATA!F:F,"COnA") -> 19 | AB79: =SUMIFS(DATA!K:K,DATA!A:A,Table1[[#This Row],[Name]],DATA!F:F,"ConA") -> 12 | AC79: 0.6129032258 | AD79: =SUMIFS(DATA!J:J,DATA!A:A,Table1[[#This Row],[Name]],DATA!F:F,"ConB") -> 9 | AE79: =SUMIFS(DATA!K:K,DATA!A:A,Table1[[#This Row],[Name]],DATA!F:F,"ConB") -> 4 | AF79: 0.6923076923
A80: 77 | B80: Danny Herzog | C80: Woodinville | D80: =COUNTIF(DATA!$A$2:$A$9731,B80) -> 57 | E80: =SUMIF(DATA!$A$2:$A$9077,B80,DATA!$J$2:$J$9077) -> 0 | F80: =SUMIF(DATA!$A$2:$A$9077,B80,DATA!$K$2:$K$9077) -> 3 | G80: 3 | H80: 0 | I80: -0.05263157895 | J80: =Table1[[#This Row],[Correct]]/Table1[[#This Row],['#Quizzes]] -> 0 | K80: =SUMIF(DATA!$A$2:$A$9077,B80,DATA!$L$2:$L$9077) -> 0 | L80: =SUMIF(DATA!$A$2:$A$9077,B80,DATA!$M$2:$M$79077) -> 1 | M80: =SUMIF(DATA!$A$2:$A$9077,B80,DATA!$N$2:$N$9077) -> 1 | N80: =SUMIF(DATA!$A$2:$A$9101,B80,DATA!$O$2:$O$9101) -> 0 | O80: =SUMIF(DATA!$A$2:$A$9101,B80,DATA!$P$2:$P$9101) -> 0 | P80: =SUMIF(DATA!$A$2:$A$9101,B80,DATA!$Q$2:$Q$9101) -> 0 | Q80: =SUMIF(DATA!$A$2:$A$9078,B80,DATA!$R$2:$R$9078) -> 0 | R80: 0 | S80: =SUMIF(DATA!$A$2:$A$9078,B80,DATA!$S$2:$S$9078) -> 0 | T80: 0 | U80: =SUMIFS(DATA!J:J,DATA!A:A,Table1[[#This Row],[Name]],DATA!F:F,"Pre") -> 0 | V80: =SUMIFS(DATA!K:K,DATA!A:A,Table1[[#This Row],[Name]],DATA!F:F,"Pre") -> 3 | W80: 0 | X80: =SUMIFS(DATA!J:J,DATA!A:A,Table1[[#This Row],[Name]],DATA!F:F,"Semi") -> 0 | Y80: =SUMIFS(DATA!K:K,DATA!A:A,Table1[[#This Row],[Name]],DATA!F:F,"Semi") -> 0 | AA80: =SUMIFS(DATA!J:J,DATA!A:A,Table1[[#This Row],[Name]],DATA!F:F,"COnA") -> 0 | AB80: =SUMIFS(DATA!K:K,DATA!A:A,Table1[[#This Row],[Name]],DATA!F:F,"ConA") -> 0 | AD80: =SUMIFS(DATA!J:J,DATA!A:A,Table1[[#This Row],[Name]],DATA!F:F,"ConB") -> 0 | AE80: =SUMIFS(DATA!K:K,DATA!A:A,Table1[[#This Row],[Name]],DATA!F:F,"ConB") -> 0
A81: 82 | B81: Annie McKee | C81: Lighthouse | D81: =COUNTIF(DATA!$A$2:$A$9731,B81) -> 49 | E81: =SUMIF(DATA!$A$2:$A$9077,B81,DATA!$J$2:$J$9077) -> 21 | F81: =SUMIF(DATA!$A$2:$A$9077,B81,DATA!$K$2:$K$9077) -> 19 | G81: 40 | H81: 0.525 | I81: -0.04081632653 | J81: =Table1[[#This Row],[Correct]]/Table1[[#This Row],['#Quizzes]] -> 0.4285714286 | K81: =SUMIF(DATA!$A$2:$A$9077,B81,DATA!$L$2:$L$9077) -> 2 | L81: =SUMIF(DATA!$A$2:$A$9077,B81,DATA!$M$2:$M$79077) -> 2 | M81: =SUMIF(DATA!$A$2:$A$9077,B81,DATA!$N$2:$N$9077) -> 4 | N81: =SUMIF(DATA!$A$2:$A$9101,B81,DATA!$O$2:$O$9101) -> 1 | O81: =SUMIF(DATA!$A$2:$A$9101,B81,DATA!$P$2:$P$9101) -> 3 | P81: =SUMIF(DATA!$A$2:$A$9101,B81,DATA!$Q$2:$Q$9101) -> 0 | Q81: =SUMIF(DATA!$A$2:$A$9078,B81,DATA!$R$2:$R$9078) -> 0 | R81: 0 | S81: =SUMIF(DATA!$A$2:$A$9078,B81,DATA!$S$2:$S$9078) -> 1 | T81: 0.02040816327 | U81: =SUMIFS(DATA!J:J,DATA!A:A,Table1[[#This Row],[Name]],DATA!F:F,"Pre") -> 9 | V81: =SUMIFS(DATA!K:K,DATA!A:A,Table1[[#This Row],[Name]],DATA!F:F,"Pre") -> 12 | W81: 0.4285714286 | X81: =SUMIFS(DATA!J:J,DATA!A:A,Table1[[#This Row],[Name]],DATA!F:F,"Semi") -> 0 | Y81: =SUMIFS(DATA!K:K,DATA!A:A,Table1[[#This Row],[Name]],DATA!F:F,"Semi") -> 0 | AA81: =SUMIFS(DATA!J:J,DATA!A:A,Table1[[#This Row],[Name]],DATA!F:F,"COnA") -> 6 | AB81: =SUMIFS(DATA!K:K,DATA!A:A,Table1[[#This Row],[Name]],DATA!F:F,"ConA") -> 4 | AC81: 0.6 | AD81: =SUMIFS(DATA!J:J,DATA!A:A,Table1[[#This Row],[Name]],DATA!F:F,"ConB") -> 6 | AE81: =SUMIFS(DATA!K:K,DATA!A:A,Table1[[#This Row],[Name]],DATA!F:F,"ConB") -> 3 | AF81: 0.6666666667
A82: 74 | B82: Emma Madsen | C82: Fox Island | D82: =COUNTIF(DATA!$A$2:$A$9731,B82) -> 48 | E82: =SUMIF(DATA!$A$2:$A$9077,B82,DATA!$J$2:$J$9077) -> 36 | F82: =SUMIF(DATA!$A$2:$A$9077,B82,DATA!$K$2:$K$9077) -> 40 | G82: 76 | H82: 0.4736842105 | I82: -0.1041666667 | J82: =Table1[[#This Row],[Correct]]/Table1[[#This Row],['#Quizzes]] -> 0.75 | K82: =SUMIF(DATA!$A$2:$A$9077,B82,DATA!$L$2:$L$9077) -> 0 | L82: =SUMIF(DATA!$A$2:$A$9077,B82,DATA!$M$2:$M$79077) -> 1 | M82: =SUMIF(DATA!$A$2:$A$9077,B82,DATA!$N$2:$N$9077) -> 2 | N82: =SUMIF(DATA!$A$2:$A$9101,B82,DATA!$O$2:$O$9101) -> 6 | O82: =SUMIF(DATA!$A$2:$A$9101,B82,DATA!$P$2:$P$9101) -> 0 | P82: =SUMIF(DATA!$A$2:$A$9101,B82,DATA!$Q$2:$Q$9101) -> 0 | Q82: =SUMIF(DATA!$A$2:$A$9078,B82,DATA!$R$2:$R$9078) -> 3 | R82: 0.0625 | S82: =SUMIF(DATA!$A$2:$A$9078,B82,DATA!$S$2:$S$9078) -> 0 | T82: 0 | U82: =SUMIFS(DATA!J:J,DATA!A:A,Table1[[#This Row],[Name]],DATA!F:F,"Pre") -> 23 | V82: =SUMIFS(DATA!K:K,DATA!A:A,Table1[[#This Row],[Name]],DATA!F:F,"Pre") -> 26 | W82: 0.4693877551 | X82: =SUMIFS(DATA!J:J,DATA!A:A,Table1[[#This Row],[Name]],DATA!F:F,"Semi") -> 2 | Y82: =SUMIFS(DATA!K:K,DATA!A:A,Table1[[#This Row],[Name]],DATA!F:F,"Semi") -> 1 | Z82: 0.6666666667 | AA82: =SUMIFS(DATA!J:J,DATA!A:A,Table1[[#This Row],[Name]],DATA!F:F,"COnA") -> 5 | AB82: =SUMIFS(DATA!K:K,DATA!A:A,Table1[[#This Row],[Name]],DATA!F:F,"ConA") -> 10 | AC82: 0.3333333333 | AD82: =SUMIFS(DATA!J:J,DATA!A:A,Table1[[#This Row],[Name]],DATA!F:F,"ConB") -> 6 | AE82: =SUMIFS(DATA!K:K,DATA!A:A,Table1[[#This Row],[Name]],DATA!F:F,"ConB") -> 3 | AF82: 0.6666666667
A83: 84 | B83: Maddy Cliffe | C83: Lighthouse | D83: =COUNTIF(DATA!$A$2:$A$9731,B83) -> 42 | E83: =SUMIF(DATA!$A$2:$A$9077,B83,DATA!$J$2:$J$9077) -> 7 | F83: =SUMIF(DATA!$A$2:$A$9077,B83,DATA!$K$2:$K$9077) -> 10 | G83: 17 | H83: 0.4117647059 | I83: -0.09523809524 | J83: =Table1[[#This Row],[Correct]]/Table1[[#This Row],['#Quizzes]] -> 0.1666666667 | K83: =SUMIF(DATA!$A$2:$A$9077,B83,DATA!$L$2:$L$9077) -> 1 | L83: =SUMIF(DATA!$A$2:$A$9077,B83,DATA!$M$2:$M$79077) -> 2 | M83: =SUMIF(DATA!$A$2:$A$9077,B83,DATA!$N$2:$N$9077) -> 2 | N83: =SUMIF(DATA!$A$2:$A$9101,B83,DATA!$O$2:$O$9101) -> 0 | O83: =SUMIF(DATA!$A$2:$A$9101,B83,DATA!$P$2:$P$9101) -> 0 | P83: =SUMIF(DATA!$A$2:$A$9101,B83,DATA!$Q$2:$Q$9101) -> 0 | Q83: =SUMIF(DATA!$A$2:$A$9078,B83,DATA!$R$2:$R$9078) -> 0 | R83: 0 | S83: =SUMIF(DATA!$A$2:$A$9078,B83,DATA!$S$2:$S$9078) -> 0 | T83: 0 | U83: =SUMIFS(DATA!J:J,DATA!A:A,Table1[[#This Row],[Name]],DATA!F:F,"Pre") -> 5 | V83: =SUMIFS(DATA!K:K,DATA!A:A,Table1[[#This Row],[Name]],DATA!F:F,"Pre") -> 8 | W83: 0.3846153846 | X83: =SUMIFS(DATA!J:J,DATA!A:A,Table1[[#This Row],[Name]],DATA!F:F,"Semi") -> 0 | Y83: =SUMIFS(DATA!K:K,DATA!A:A,Table1[[#This Row],[Name]],DATA!F:F,"Semi") -> 0 | AA83: =SUMIFS(DATA!J:J,DATA!A:A,Table1[[#This Row],[Name]],DATA!F:F,"COnA") -> 1 | AB83: =SUMIFS(DATA!K:K,DATA!A:A,Table1[[#This Row],[Name]],DATA!F:F,"ConA") -> 1 | AC83: 0.5 | AD83: =SUMIFS(DATA!J:J,DATA!A:A,Table1[[#This Row],[Name]],DATA!F:F,"ConB") -> 1 | AE83: =SUMIFS(DATA!K:K,DATA!A:A,Table1[[#This Row],[Name]],DATA!F:F,"ConB") -> 1 | AF83: 0.5
A84: 81 | B84: Anna Magnuson | C84: Tacoma | D84: =COUNTIF(DATA!$A$2:$A$9731,B84) -> 49 | E84: =SUMIF(DATA!$A$2:$A$9077,B84,DATA!$J$2:$J$9077) -> 7 | F84: =SUMIF(DATA!$A$2:$A$9077,B84,DATA!$K$2:$K$9077) -> 8 | G84: 15 | H84: 0.4666666667 | I84: -0.08163265306 | J84: =Table1[[#This Row],[Correct]]/Table1[[#This Row],['#Quizzes]] -> 0.1428571429 | K84: =SUMIF(DATA!$A$2:$A$9077,B84,DATA!$L$2:$L$9077) -> 2 | L84: =SUMIF(DATA!$A$2:$A$9077,B84,DATA!$M$2:$M$79077) -> 1 | M84: =SUMIF(DATA!$A$2:$A$9077,B84,DATA!$N$2:$N$9077) -> 2 | N84: =SUMIF(DATA!$A$2:$A$9101,B84,DATA!$O$2:$O$9101) -> 1 | O84: =SUMIF(DATA!$A$2:$A$9101,B84,DATA!$P$2:$P$9101) -> 2 | P84: =SUMIF(DATA!$A$2:$A$9101,B84,DATA!$Q$2:$Q$9101) -> 0 | Q84: =SUMIF(DATA!$A$2:$A$9078,B84,DATA!$R$2:$R$9078) -> 0 | R84: 0 | S84: =SUMIF(DATA!$A$2:$A$9078,B84,DATA!$S$2:$S$9078) -> 0 | T84: 0 | U84: =SUMIFS(DATA!J:J,DATA!A:A,Table1[[#This Row],[Name]],DATA!F:F,"Pre") -> 1 | V84: =SUMIFS(DATA!K:K,DATA!A:A,Table1[[#This Row],[Name]],DATA!F:F,"Pre") -> 4 | W84: 0.2 | X84: =SUMIFS(DATA!J:J,DATA!A:A,Table1[[#This Row],[Name]],DATA!F:F,"Semi") -> 0 | Y84: =SUMIFS(DATA!K:K,DATA!A:A,Table1[[#This Row],[Name]],DATA!F:F,"Semi") -> 0 | AA84: =SUMIFS(DATA!J:J,DATA!A:A,Table1[[#This Row],[Name]],DATA!F:F,"COnA") -> 1 | AB84: =SUMIFS(DATA!K:K,DATA!A:A,Table1[[#This Row],[Name]],DATA!F:F,"ConA") -> 0 | AC84: 1 | AD84: =SUMIFS(DATA!J:J,DATA!A:A,Table1[[#This Row],[Name]],DATA!F:F,"ConB") -> 5 | AE84: =SUMIFS(DATA!K:K,DATA!A:A,Table1[[#This Row],[Name]],DATA!F:F,"ConB") -> 4 | AF84: 0.5555555556
A85: 83 | B85: Calvin Baker | C85: Dallas | D85: =COUNTIF(DATA!$A$2:$A$9731,B85) -> 26 | E85: =SUMIF(DATA!$A$2:$A$9077,B85,DATA!$J$2:$J$9077) -> 1 | F85: =SUMIF(DATA!$A$2:$A$9077,B85,DATA!$K$2:$K$9077) -> 4 | G85: 5 | H85: 0.2 | I85: -0.1153846154 | J85: =Table1[[#This Row],[Correct]]/Table1[[#This Row],['#Quizzes]] -> 0.03846153846 | K85: =SUMIF(DATA!$A$2:$A$9077,B85,DATA!$L$2:$L$9077) -> 0 | L85: =SUMIF(DATA!$A$2:$A$9077,B85,DATA!$M$2:$M$79077) -> 0 | M85: =SUMIF(DATA!$A$2:$A$9077,B85,DATA!$N$2:$N$9077) -> 0 | N85: =SUMIF(DATA!$A$2:$A$9101,B85,DATA!$O$2:$O$9101) -> 1 | O85: =SUMIF(DATA!$A$2:$A$9101,B85,DATA!$P$2:$P$9101) -> 0 | P85: =SUMIF(DATA!$A$2:$A$9101,B85,DATA!$Q$2:$Q$9101) -> 0 | Q85: =SUMIF(DATA!$A$2:$A$9078,B85,DATA!$R$2:$R$9078) -> 0 | R85: 0 | S85: =SUMIF(DATA!$A$2:$A$9078,B85,DATA!$S$2:$S$9078) -> 0 | T85: 0 | U85: =SUMIFS(DATA!J:J,DATA!A:A,Table1[[#This Row],[Name]],DATA!F:F,"Pre") -> 1 | V85: =SUMIFS(DATA!K:K,DATA!A:A,Table1[[#This Row],[Name]],DATA!F:F,"Pre") -> 2 | W85: 0.3333333333 | X85: =SUMIFS(DATA!J:J,DATA!A:A,Table1[[#This Row],[Name]],DATA!F:F,"Semi") -> 0 | Y85: =SUMIFS(DATA!K:K,DATA!A:A,Table1[[#This Row],[Name]],DATA!F:F,"Semi") -> 2 | Z85: 0 | AA85: =SUMIFS(DATA!J:J,DATA!A:A,Table1[[#This Row],[Name]],DATA!F:F,"COnA") -> 0 | AB85: =SUMIFS(DATA!K:K,DATA!A:A,Table1[[#This Row],[Name]],DATA!F:F,"ConA") -> 0 | AD85: =SUMIFS(DATA!J:J,DATA!A:A,Table1[[#This Row],[Name]],DATA!F:F,"ConB") -> 0 | AE85: =SUMIFS(DATA!K:K,DATA!A:A,Table1[[#This Row],[Name]],DATA!F:F,"ConB") -> 0
A86: 86 | B86: Colton Berge | C86: Tacoma | D86: =COUNTIF(DATA!$A$2:$A$9731,B86) -> 49 | E86: =SUMIF(DATA!$A$2:$A$9077,B86,DATA!$J$2:$J$9077) -> 6 | F86: =SUMIF(DATA!$A$2:$A$9077,B86,DATA!$K$2:$K$9077) -> 11 | G86: 17 | H86: 0.3529411765 | I86: -0.2040816327 | J86: =Table1[[#This Row],[Correct]]/Table1[[#This Row],['#Quizzes]] -> 0.1224489796 | K86: =SUMIF(DATA!$A$2:$A$9077,B86,DATA!$L$2:$L$9077) -> 4 | L86: =SUMIF(DATA!$A$2:$A$9077,B86,DATA!$M$2:$M$79077) -> 0 | M86: =SUMIF(DATA!$A$2:$A$9077,B86,DATA!$N$2:$N$9077) -> 1 | N86: =SUMIF(DATA!$A$2:$A$9101,B86,DATA!$O$2:$O$9101) -> 2 | O86: =SUMIF(DATA!$A$2:$A$9101,B86,DATA!$P$2:$P$9101) -> 0 | P86: =SUMIF(DATA!$A$2:$A$9101,B86,DATA!$Q$2:$Q$9101) -> 0 | Q86: =SUMIF(DATA!$A$2:$A$9078,B86,DATA!$R$2:$R$9078) -> 0 | R86: 0 | S86: =SUMIF(DATA!$A$2:$A$9078,B86,DATA!$S$2:$S$9078) -> 0 | T86: 0 | U86: =SUMIFS(DATA!J:J,DATA!A:A,Table1[[#This Row],[Name]],DATA!F:F,"Pre") -> 2 | V86: =SUMIFS(DATA!K:K,DATA!A:A,Table1[[#This Row],[Name]],DATA!F:F,"Pre") -> 8 | W86: 0.2 | X86: =SUMIFS(DATA!J:J,DATA!A:A,Table1[[#This Row],[Name]],DATA!F:F,"Semi") -> 0 | Y86: =SUMIFS(DATA!K:K,DATA!A:A,Table1[[#This Row],[Name]],DATA!F:F,"Semi") -> 0 | AA86: =SUMIFS(DATA!J:J,DATA!A:A,Table1[[#This Row],[Name]],DATA!F:F,"COnA") -> 1 | AB86: =SUMIFS(DATA!K:K,DATA!A:A,Table1[[#This Row],[Name]],DATA!F:F,"ConA") -> 2 | AC86: 0.3333333333 | AD86: =SUMIFS(DATA!J:J,DATA!A:A,Table1[[#This Row],[Name]],DATA!F:F,"ConB") -> 3 | AE86: =SUMIFS(DATA!K:K,DATA!A:A,Table1[[#This Row],[Name]],DATA!F:F,"ConB") -> 1 | AF86: 0.75
A87: 88 | B87: Johnathan Lehrkind | C87: Grays Harbor | D87: =COUNTIF(DATA!$A$2:$A$9731,B87) -> 37 | E87: =SUMIF(DATA!$A$2:$A$9077,B87,DATA!$J$2:$J$9077) -> 1 | F87: =SUMIF(DATA!$A$2:$A$9077,B87,DATA!$K$2:$K$9077) -> 9 | G87: 10 | H87: 0.1 | I87: -0.2432432432 | J87: =Table1[[#This Row],[Correct]]/Table1[[#This Row],['#Quizzes]] -> 0.02702702703 | K87: =SUMIF(DATA!$A$2:$A$9077,B87,DATA!$L$2:$L$9077) -> 1 | L87: =SUMIF(DATA!$A$2:$A$9077,B87,DATA!$M$2:$M$79077) -> 0 | M87: =SUMIF(DATA!$A$2:$A$9077,B87,DATA!$N$2:$N$9077) -> 0 | N87: =SUMIF(DATA!$A$2:$A$9101,B87,DATA!$O$2:$O$9101) -> 0 | O87: =SUMIF(DATA!$A$2:$A$9101,B87,DATA!$P$2:$P$9101) -> 0 | P87: =SUMIF(DATA!$A$2:$A$9101,B87,DATA!$Q$2:$Q$9101) -> 0 | Q87: =SUMIF(DATA!$A$2:$A$9078,B87,DATA!$R$2:$R$9078) -> 0 | R87: 0 | S87: =SUMIF(DATA!$A$2:$A$9078,B87,DATA!$S$2:$S$9078) -> 0 | T87: 0 | U87: =SUMIFS(DATA!J:J,DATA!A:A,Table1[[#This Row],[Name]],DATA!F:F,"Pre") -> 1 | V87: =SUMIFS(DATA!K:K,DATA!A:A,Table1[[#This Row],[Name]],DATA!F:F,"Pre") -> 7 | W87: 0.125 | X87: =SUMIFS(DATA!J:J,DATA!A:A,Table1[[#This Row],[Name]],DATA!F:F,"Semi") -> 0 | Y87: =SUMIFS(DATA!K:K,DATA!A:A,Table1[[#This Row],[Name]],DATA!F:F,"Semi") -> 0 | AA87: =SUMIFS(DATA!J:J,DATA!A:A,Table1[[#This Row],[Name]],DATA!F:F,"COnA") -> 0 | AB87: =SUMIFS(DATA!K:K,DATA!A:A,Table1[[#This Row],[Name]],DATA!F:F,"ConA") -> 2 | AC87: 0 | AD87: =SUMIFS(DATA!J:J,DATA!A:A,Table1[[#This Row],[Name]],DATA!F:F,"ConB") -> 0 | AE87: =SUMIFS(DATA!K:K,DATA!A:A,Table1[[#This Row],[Name]],DATA!F:F,"ConB") -> 0
A88: 87 | B88: Ivan Derr | C88: Chapel Hill | D88: =COUNTIF(DATA!$A$2:$A$9731,B88) -> 40 | E88: =SUMIF(DATA!$A$2:$A$9077,B88,DATA!$J$2:$J$9077) -> 14 | F88: =SUMIF(DATA!$A$2:$A$9077,B88,DATA!$K$2:$K$9077) -> 24 | G88: 38 | H88: 0.3684210526 | I88: -0.25 | J88: =Table1[[#This Row],[Correct]]/Table1[[#This Row],['#Quizzes]] -> 0.35 | K88: =SUMIF(DATA!$A$2:$A$9077,B88,DATA!$L$2:$L$9077) -> 1 | L88: =SUMIF(DATA!$A$2:$A$9077,B88,DATA!$M$2:$M$79077) -> 1 | M88: =SUMIF(DATA!$A$2:$A$9077,B88,DATA!$N$2:$N$9077) -> 0 | N88: =SUMIF(DATA!$A$2:$A$9101,B88,DATA!$O$2:$O$9101) -> 2 | O88: =SUMIF(DATA!$A$2:$A$9101,B88,DATA!$P$2:$P$9101) -> 1 | P88: =SUMIF(DATA!$A$2:$A$9101,B88,DATA!$Q$2:$Q$9101) -> 0 | Q88: =SUMIF(DATA!$A$2:$A$9078,B88,DATA!$R$2:$R$9078) -> 0 | R88: 0 | S88: =SUMIF(DATA!$A$2:$A$9078,B88,DATA!$S$2:$S$9078) -> 0 | T88: 0 | U88: =SUMIFS(DATA!J:J,DATA!A:A,Table1[[#This Row],[Name]],DATA!F:F,"Pre") -> 4 | V88: =SUMIFS(DATA!K:K,DATA!A:A,Table1[[#This Row],[Name]],DATA!F:F,"Pre") -> 12 | W88: 0.25 | X88: =SUMIFS(DATA!J:J,DATA!A:A,Table1[[#This Row],[Name]],DATA!F:F,"Semi") -> 0 | Y88: =SUMIFS(DATA!K:K,DATA!A:A,Table1[[#This Row],[Name]],DATA!F:F,"Semi") -> 0 | AA88: =SUMIFS(DATA!J:J,DATA!A:A,Table1[[#This Row],[Name]],DATA!F:F,"COnA") -> 10 | AB88: =SUMIFS(DATA!K:K,DATA!A:A,Table1[[#This Row],[Name]],DATA!F:F,"ConA") -> 12 | AC88: 0.4545454545 | AD88: =SUMIFS(DATA!J:J,DATA!A:A,Table1[[#This Row],[Name]],DATA!F:F,"ConB") -> 0 | AE88: =SUMIFS(DATA!K:K,DATA!A:A,Table1[[#This Row],[Name]],DATA!F:F,"ConB") -> 0
A89: 85 | B89: Tyler Slothower | C89: Chapel Hill | D89: =COUNTIF(DATA!$A$2:$A$9731,B89) -> 47 | E89: =SUMIF(DATA!$A$2:$A$9077,B89,DATA!$J$2:$J$9077) -> 10 | F89: =SUMIF(DATA!$A$2:$A$9077,B89,DATA!$K$2:$K$9077) -> 20 | G89: 30 | H89: 0.3333333333 | I89: -0.2553191489 | J89: =Table1[[#This Row],[Correct]]/Table1[[#This Row],['#Quizzes]] -> 0.2127659574 | K89: =SUMIF(DATA!$A$2:$A$9077,B89,DATA!$L$2:$L$9077) -> 2 | L89: =SUMIF(DATA!$A$2:$A$9077,B89,DATA!$M$2:$M$79077) -> 0 | M89: =SUMIF(DATA!$A$2:$A$9077,B89,DATA!$N$2:$N$9077) -> 0 | N89: =SUMIF(DATA!$A$2:$A$9101,B89,DATA!$O$2:$O$9101) -> 3 | O89: =SUMIF(DATA!$A$2:$A$9101,B89,DATA!$P$2:$P$9101) -> 0 | P89: =SUMIF(DATA!$A$2:$A$9101,B89,DATA!$Q$2:$Q$9101) -> 0 | Q89: =SUMIF(DATA!$A$2:$A$9078,B89,DATA!$R$2:$R$9078) -> 0 | R89: 0 | S89: =SUMIF(DATA!$A$2:$A$9078,B89,DATA!$S$2:$S$9078) -> 0 | T89: 0 | U89: =SUMIFS(DATA!J:J,DATA!A:A,Table1[[#This Row],[Name]],DATA!F:F,"Pre") -> 6 | V89: =SUMIFS(DATA!K:K,DATA!A:A,Table1[[#This Row],[Name]],DATA!F:F,"Pre") -> 13 | W89: 0.3157894737 | X89: =SUMIFS(DATA!J:J,DATA!A:A,Table1[[#This Row],[Name]],DATA!F:F,"Semi") -> 0 | Y89: =SUMIFS(DATA!K:K,DATA!A:A,Table1[[#This Row],[Name]],DATA!F:F,"Semi") -> 0 | AA89: =SUMIFS(DATA!J:J,DATA!A:A,Table1[[#This Row],[Name]],DATA!F:F,"COnA") -> 1 | AB89: =SUMIFS(DATA!K:K,DATA!A:A,Table1[[#This Row],[Name]],DATA!F:F,"ConA") -> 4 | AC89: 0.2 | AD89: =SUMIFS(DATA!J:J,DATA!A:A,Table1[[#This Row],[Name]],DATA!F:F,"ConB") -> 3 | AE89: =SUMIFS(DATA!K:K,DATA!A:A,Table1[[#This Row],[Name]],DATA!F:F,"ConB") -> 3 | AF89: 0.5
A90: 89 | B90: Ha Tien Nguyen | C90: ABC | D90: =COUNTIF(DATA!$A$2:$A$9731,B90) -> 48 | E90: =SUMIF(DATA!$A$2:$A$9077,B90,DATA!$J$2:$J$9077) -> 34 | F90: =SUMIF(DATA!$A$2:$A$9077,B90,DATA!$K$2:$K$9077) -> 54 | G90: 88 | H90: 0.3863636364 | I90: -0.375 | J90: =Table1[[#This Row],[Correct]]/Table1[[#This Row],['#Quizzes]] -> 0.7083333333 | K90: =SUMIF(DATA!$A$2:$A$9077,B90,DATA!$L$2:$L$9077) -> 1 | L90: =SUMIF(DATA!$A$2:$A$9077,B90,DATA!$M$2:$M$79077) -> 7 | M90: =SUMIF(DATA!$A$2:$A$9077,B90,DATA!$N$2:$N$9077) -> 4 | N90: =SUMIF(DATA!$A$2:$A$9101,B90,DATA!$O$2:$O$9101) -> 3 | O90: =SUMIF(DATA!$A$2:$A$9101,B90,DATA!$P$2:$P$9101) -> 0 | P90: =SUMIF(DATA!$A$2:$A$9101,B90,DATA!$Q$2:$Q$9101) -> 0 | Q90: =SUMIF(DATA!$A$2:$A$9078,B90,DATA!$R$2:$R$9078) -> 0 | R90: 0 | S90: =SUMIF(DATA!$A$2:$A$9078,B90,DATA!$S$2:$S$9078) -> 6 | T90: 0.125 | U90: =SUMIFS(DATA!J:J,DATA!A:A,Table1[[#This Row],[Name]],DATA!F:F,"Pre") -> 14 | V90: =SUMIFS(DATA!K:K,DATA!A:A,Table1[[#This Row],[Name]],DATA!F:F,"Pre") -> 32 | W90: 0.3043478261 | X90: =SUMIFS(DATA!J:J,DATA!A:A,Table1[[#This Row],[Name]],DATA!F:F,"Semi") -> 0 | Y90: =SUMIFS(DATA!K:K,DATA!A:A,Table1[[#This Row],[Name]],DATA!F:F,"Semi") -> 0 | AA90: =SUMIFS(DATA!J:J,DATA!A:A,Table1[[#This Row],[Name]],DATA!F:F,"COnA") -> 11 | AB90: =SUMIFS(DATA!K:K,DATA!A:A,Table1[[#This Row],[Name]],DATA!F:F,"ConA") -> 14 | AC90: 0.44 | AD90: =SUMIFS(DATA!J:J,DATA!A:A,Table1[[#This Row],[Name]],DATA!F:F,"ConB") -> 9 | AE90: =SUMIFS(DATA!K:K,DATA!A:A,Table1[[#This Row],[Name]],DATA!F:F,"ConB") -> 8 | AF90: 0.5294117647
A91: 90 | B91: Austin Watkins | C91: Dallas | D91: =COUNTIF(DATA!$A$2:$A$9731,B91) -> 22 | E91: =SUMIF(DATA!$A$2:$A$9077,B91,DATA!$J$2:$J$9077) -> 1 | F91: =SUMIF(DATA!$A$2:$A$9077,B91,DATA!$K$2:$K$9077) -> 8 | G91: 9 | H91: 0.1111111111 | I91: -0.3636363636 | J91: =Table1[[#This Row],[Correct]]/Table1[[#This Row],['#Quizzes]] -> 0.04545454545 | K91: =SUMIF(DATA!$A$2:$A$9077,B91,DATA!$L$2:$L$9077) -> 0 | L91: =SUMIF(DATA!$A$2:$A$9077,B91,DATA!$M$2:$M$79077) -> 0 | M91: =SUMIF(DATA!$A$2:$A$9077,B91,DATA!$N$2:$N$9077) -> 1 | N91: =SUMIF(DATA!$A$2:$A$9101,B91,DATA!$O$2:$O$9101) -> 1 | O91: =SUMIF(DATA!$A$2:$A$9101,B91,DATA!$P$2:$P$9101) -> 0 | P91: =SUMIF(DATA!$A$2:$A$9101,B91,DATA!$Q$2:$Q$9101) -> 0 | Q91: =SUMIF(DATA!$A$2:$A$9078,B91,DATA!$R$2:$R$9078) -> 0 | R91: 0 | S91: =SUMIF(DATA!$A$2:$A$9078,B91,DATA!$S$2:$S$9078) -> 0 | T91: 0 | U91: =SUMIFS(DATA!J:J,DATA!A:A,Table1[[#This Row],[Name]],DATA!F:F,"Pre") -> 1 | V91: =SUMIFS(DATA!K:K,DATA!A:A,Table1[[#This Row],[Name]],DATA!F:F,"Pre") -> 7 | W91: 0.125 | X91: =SUMIFS(DATA!J:J,DATA!A:A,Table1[[#This Row],[Name]],DATA!F:F,"Semi") -> 0 | Y91: =SUMIFS(DATA!K:K,DATA!A:A,Table1[[#This Row],[Name]],DATA!F:F,"Semi") -> 1 | Z91: 0 | AA91: =SUMIFS(DATA!J:J,DATA!A:A,Table1[[#This Row],[Name]],DATA!F:F,"COnA") -> 0 | AB91: =SUMIFS(DATA!K:K,DATA!A:A,Table1[[#This Row],[Name]],DATA!F:F,"ConA") -> 0 | AD91: =SUMIFS(DATA!J:J,DATA!A:A,Table1[[#This Row],[Name]],DATA!F:F,"ConB") -> 0 | AE91: =SUMIFS(DATA!K:K,DATA!A:A,Table1[[#This Row],[Name]],DATA!F:F,"ConB") -> 0
A92: 91 | B92: Brennan Schwebke | C92: Lighthouse | D92: =COUNTIF(DATA!$A$2:$A$9731,B92) -> 9 | E92: =SUMIF(DATA!$A$2:$A$9077,B92,DATA!$J$2:$J$9077) -> 1 | F92: =SUMIF(DATA!$A$2:$A$9077,B92,DATA!$K$2:$K$9077) -> 4 | G92: 5 | H92: 0.2 | I92: -0.6666666667 | J92: =Table1[[#This Row],[Correct]]/Table1[[#This Row],['#Quizzes]] -> 0.1111111111 | K92: =SUMIF(DATA!$A$2:$A$9077,B92,DATA!$L$2:$L$9077) -> 2 | L92: =SUMIF(DATA!$A$2:$A$9077,B92,DATA!$M$2:$M$79077) -> 0 | M92: =SUMIF(DATA!$A$2:$A$9077,B92,DATA!$N$2:$N$9077) -> 1 | N92: =SUMIF(DATA!$A$2:$A$9101,B92,DATA!$O$2:$O$9101) -> 0 | O92: =SUMIF(DATA!$A$2:$A$9101,B92,DATA!$P$2:$P$9101) -> 0 | P92: =SUMIF(DATA!$A$2:$A$9101,B92,DATA!$Q$2:$Q$9101) -> 0 | Q92: =SUMIF(DATA!$A$2:$A$9078,B92,DATA!$R$2:$R$9078) -> 0 | R92: 0 | S92: =SUMIF(DATA!$A$2:$A$9078,B92,DATA!$S$2:$S$9078) -> 0 | T92: 0 | U92: =SUMIFS(DATA!J:J,DATA!A:A,Table1[[#This Row],[Name]],DATA!F:F,"Pre") -> 1 | V92: =SUMIFS(DATA!K:K,DATA!A:A,Table1[[#This Row],[Name]],DATA!F:F,"Pre") -> 2 | W92: 0.3333333333 | X92: =SUMIFS(DATA!J:J,DATA!A:A,Table1[[#This Row],[Name]],DATA!F:F,"Semi") -> 0 | Y92: =SUMIFS(DATA!K:K,DATA!A:A,Table1[[#This Row],[Name]],DATA!F:F,"Semi") -> 0 | AA92: =SUMIFS(DATA!J:J,DATA!A:A,Table1[[#This Row],[Name]],DATA!F:F,"COnA") -> 0 | AB92: =SUMIFS(DATA!K:K,DATA!A:A,Table1[[#This Row],[Name]],DATA!F:F,"ConA") -> 0 | AD92: =SUMIFS(DATA!J:J,DATA!A:A,Table1[[#This Row],[Name]],DATA!F:F,"ConB") -> 0 | AE92: =SUMIFS(DATA!K:K,DATA!A:A,Table1[[#This Row],[Name]],DATA!F:F,"ConB") -> 2 | AF92: 0

Sheet Reports
B1: Quiz | C1: Correct | D1: Error | E1: Accuracy | H1: QM | I1: Correct | J1: Error | K1: Accuracy | M1: QM | N1: Fouls | S1: Year | T1: Meet | U1: Pre | V1: Semi | W1: ConA | X1: ConB | Y1: SUM | Z1: Quiz Out | AA1: Error Out | AB1: BonCorr | AC1: BonErr | AD1: Foul
B2: E | C2: =SUMIF(DATA!$H$2:$H$9077,B2,DATA!$J$2:$J$9093) -> 69 | D2: =SUMIF(DATA!$H$2:$H$9093,B2,DATA!$K$2:$K$9093) -> 27 | E2: =C2/(C2+D2) -> 0.71875 | H2: Tiffany Bye | I2: =SUMIF(DATA!$I$2:$I$9732,H2,DATA!$J$2:$J$9732) -> 714 | J2: =SUMIF(DATA!$I$2:$I$9732,H2,DATA!$K$2:$K$9732) -> 308 | K2: =I2/(I2+J2) -> 0.698630137 | M2: Scott Peterson | N2: =SUMIF(DATA!$I$2:$I$9732,M2,DATA!$L$2:$L$9732) -> 31 | S2: 2011-2012 | T2: 1 | U2: 54 | V2: 12 | W2: 10 | X2: 10 | Y2: 86 | Z2: 216 | AA2: 8
B3: B | C3: =SUMIF(DATA!$H$2:$H$9077,B3,DATA!$J$2:$J$9093) -> 71 | D3: =SUMIF(DATA!$H$2:$H$9093,B3,DATA!$K$2:$K$9093) -> 32 | E3: 0.6893203883 | H3: Cutty Welt | I3: =SUMIF(DATA!$I$2:$I$9732,H3,DATA!$J$2:$J$9732) -> 1279 | J3: =SUMIF(DATA!$I$2:$I$9732,H3,DATA!$K$2:$K$9732) -> 558 | K3: 0.6962438759 | M3: Jeremy Swingle | N3: =SUMIF(DATA!$I$2:$I$9732,M3,DATA!$L$2:$L$9732) -> 20 | S3: 2011-2012 | T3: 2 | U3: 54 | V3: 12 | W3: 10 | X3: 10 | Y3: 86 | Z3: 192 | AA3: 18
B4: G | C4: =SUMIF(DATA!$H$2:$H$9077,B4,DATA!$J$2:$J$9093) -> 65 | D4: =SUMIF(DATA!$H$2:$H$9093,B4,DATA!$K$2:$K$9093) -> 36 | E4: 0.6435643564 | H4: Abby Ashcraft | I4: =SUMIF(DATA!$I$2:$I$9732,H4,DATA!$J$2:$J$9732) -> 134 | J4: =SUMIF(DATA!$I$2:$I$9732,H4,DATA!$K$2:$K$9732) -> 68 | K4: 0.6633663366 | M4: Tiffany Bye | N4: =SUMIF(DATA!$I$2:$I$9732,M4,DATA!$L$2:$L$9732) -> 15 | S4: 2011-2012 | T4: 3 | U4: 52 | V4: 12 | W4: 10 | X4: 9 | Y4: 83 | Z4: 180 | AA4: 21
B5: C | C5: =SUMIF(DATA!$H$2:$H$9077,B5,DATA!$J$2:$J$9093) -> 64 | D5: =SUMIF(DATA!$H$2:$H$9093,B5,DATA!$K$2:$K$9093) -> 36 | E5: 0.64 | H5: Tony Kong | I5: =SUMIF(DATA!$I$2:$I$9732,H5,DATA!$J$2:$J$9732) -> 287 | J5: =SUMIF(DATA!$I$2:$I$9732,H5,DATA!$K$2:$K$9732) -> 143 | K5: 0.6674418605 | M5: Cutty Welt | N5: =SUMIF(DATA!$I$2:$I$9732,M5,DATA!$L$2:$L$9732) -> 14 | S5: 2011-2012 | T5: 4 | U5: 48 | V5: 12 | W5: 10 | X5: 7 | Y5: 77 | Z5: 178 | AA5: 21
B6: J | C6: =SUMIF(DATA!$H$2:$H$9077,B6,DATA!$J$2:$J$9093) -> 178 | D6: =SUMIF(DATA!$H$2:$H$9093,B6,DATA!$K$2:$K$9093) -> 102 | E6: 0.6357142857 | H6: Scott Peterson | I6: =SUMIF(DATA!$I$2:$I$9732,H6,DATA!$J$2:$J$9732) -> 1481 | J6: =SUMIF(DATA!$I$2:$I$9732,H6,DATA!$K$2:$K$9732) -> 742 | K6: 0.6662168241 | M6: Tony Kong | N6: =SUMIF(DATA!$I$2:$I$9732,M6,DATA!$L$2:$L$9732) -> 2 | S6: 2011-2012 | T6: 5 | U6: 50 | V6: 12 | W6: 10 | X6: 8 | Y6: 80 | Z6: 162 | AA6: 31
B7: D | C7: =SUMIF(DATA!$H$2:$H$9077,B7,DATA!$J$2:$J$9093) -> 65 | D7: =SUMIF(DATA!$H$2:$H$9093,B7,DATA!$K$2:$K$9093) -> 38 | E7: 0.6310679612 | H7: Jeremy Swingle | I7: =SUMIF(DATA!$I$2:$I$9732,H7,DATA!$J$2:$J$9732) -> 1218 | J7: =SUMIF(DATA!$I$2:$I$9732,H7,DATA!$K$2:$K$9732) -> 665 | K7: 0.6468401487 | M7: Abby Ashcraft | N7: =SUMIF(DATA!$I$2:$I$9732,M7,DATA!$L$2:$L$9732) -> 1 | S7: 2011-2012 | T7: DC | U7: 48 | V7: 11 | W7: 10 | X7: 0 | Y7: 69 | Z7: 157 | AA7: 26
B8: I | C8: =SUMIF(DATA!$H$2:$H$9077,B8,DATA!$J$2:$J$9093) -> 65 | D8: =SUMIF(DATA!$H$2:$H$9093,B8,DATA!$K$2:$K$9093) -> 38 | E8: 0.6310679612 | S8: 2012-2013 | T8: 1 | U8: 58 | V8: 12 | W8: 10 | X8: 12 | Y8: 92 | Z8: 203 | AA8: 30
B9: A | C9: =SUMIF(DATA!$H$2:$H$9077,B9,DATA!$J$2:$J$9093) -> 64 | D9: =SUMIF(DATA!$H$2:$H$9093,B9,DATA!$K$2:$K$9093) -> 43 | E9: 0.5981308411 | H9: Church | I9: Correct | J9: Error | K9: Accuracy | L9: Fouls | M9: BonCorr | N9: BonErr | O9: 3rd | P9: 4th | Q9: 5th | S9: 2012-2013 | T9: 2 | U9: 54 | V9: 12 | W9: 10 | X9: 10 | Y9: 86 | Z9: 149 | AA9: 38
B10: H | C10: =SUMIF(DATA!$H$2:$H$9077,B10,DATA!$J$2:$J$9093) -> 59 | D10: =SUMIF(DATA!$H$2:$H$9093,B10,DATA!$K$2:$K$9093) -> 44 | E10: 0.572815534 | H10: Woodinville | I10: =SUMIF(DATA!$C$2:$C$9731,H10,DATA!$J$2:$J$9731) -> 307 | J10: =SUMIF(DATA!$C$2:$C$9732,H10,DATA!$K$2:$K$9732) -> 79 | K10: =I10/(I10+J10) -> 0.7953367876 | L10: =SUMIF(DATA!$C$2:$C$9732,H10,DATA!$L$2:$L$9732) -> 0 | M10: =SUMIF(DATA!$C$2:$C$9732,H10,DATA!$M$2:$M$9732) -> 28 | N10: =SUMIF(DATA!$C$2:$C$9732,H10,DATA!$N$2:$N$9732) -> 4 | O10: =SUMIF(DATA!$C$2:$C$9732,H10,DATA!$O$2:$O$9732) -> 1 | P10: =SUMIF(DATA!$C$2:$C$9732,H10,DATA!$P$2:$P$9732) -> 0 | Q10: =SUMIF(DATA!$C$2:$C$9732,H10,DATA!$Q$2:$Q$9732) -> 0 | S10: 2012-2013 | T10: 3 | U10: 54 | V10: 12 | W10: 10 | X10: 10 | Y10: 86 | Z10: 153 | AA10: 38
B11: F | C11: =SUMIF(DATA!$H$2:$H$9077,B11,DATA!$J$2:$J$9093) -> 59 | D11: =SUMIF(DATA!$H$2:$H$9093,B11,DATA!$K$2:$K$9093) -> 44 | E11: 0.572815534 | H11: Tacoma | I11: =SUMIF(DATA!$C$2:$C$9731,H11,DATA!$J$2:$J$9731) -> 369 | J11: =SUMIF(DATA!$C$2:$C$9732,H11,DATA!$K$2:$K$9732) -> 144 | K11: 0.7192982456 | L11: =SUMIF(DATA!$C$2:$C$9732,H11,DATA!$L$2:$L$9732) -> 8 | M11: =SUMIF(DATA!$C$2:$C$9732,H11,DATA!$M$2:$M$9732) -> 16 | N11: =SUMIF(DATA!$C$2:$C$9732,H11,DATA!$N$2:$N$9732) -> 14 | O11: =SUMIF(DATA!$C$2:$C$9732,H11,DATA!$O$2:$O$9732) -> 13 | P11: =SUMIF(DATA!$C$2:$C$9732,H11,DATA!$P$2:$P$9732) -> 2 | Q11: =SUMIF(DATA!$C$2:$C$9732,H11,DATA!$Q$2:$Q$9732) -> 0 | S11: 2012-2013 | T11: 4 | U11: 54 | V11: 11 | W11: 10 | X11: 10 | Y11: 85 | Z11: 153 | AA11: 42
B12: A-F | C12: =SUMIF(DATA!$H$2:$H$9077,B12,DATA!$J$2:$J$9093) -> 66 | D12: =SUMIF(DATA!$H$2:$H$9093,B12,DATA!$K$2:$K$9093) -> 22 | E12: 0.75 | H12: Grays Harbor | I12: =SUMIF(DATA!$C$2:$C$9731,H12,DATA!$J$2:$J$9731) -> 548 | J12: =SUMIF(DATA!$C$2:$C$9732,H12,DATA!$K$2:$K$9732) -> 249 | K12: 0.6875784191 | L12: =SUMIF(DATA!$C$2:$C$9732,H12,DATA!$L$2:$L$9732) -> 10 | M12: =SUMIF(DATA!$C$2:$C$9732,H12,DATA!$M$2:$M$9732) -> 19 | N12: =SUMIF(DATA!$C$2:$C$9732,H12,DATA!$N$2:$N$9732) -> 7 | O12: =SUMIF(DATA!$C$2:$C$9732,H12,DATA!$O$2:$O$9732) -> 15 | P12: =SUMIF(DATA!$C$2:$C$9732,H12,DATA!$P$2:$P$9732) -> 0 | Q12: =SUMIF(DATA!$C$2:$C$9732,H12,DATA!$Q$2:$Q$9732) -> 0 | S12: 2012-2013 | T12: 5 | U12: 54 | V12: 9 | W12: 10 | X12: 10 | Y12: 83 | Z12: 143 | AA12: 51
B13: A-A | C13: =SUMIF(DATA!$H$2:$H$9077,B13,DATA!$J$2:$J$9093) -> 74 | D13: =SUMIF(DATA!$H$2:$H$9093,B13,DATA!$K$2:$K$9093) -> 25 | E13: 0.7474747475 | H13: Dallas | I13: =SUMIF(DATA!$C$2:$C$9731,H13,DATA!$J$2:$J$9731) -> 976 | J13: =SUMIF(DATA!$C$2:$C$9732,H13,DATA!$K$2:$K$9732) -> 460 | K13: 0.6796657382 | L13: =SUMIF(DATA!$C$2:$C$9732,H13,DATA!$L$2:$L$9732) -> 2 | M13: =SUMIF(DATA!$C$2:$C$9732,H13,DATA!$M$2:$M$9732) -> 56 | N13: =SUMIF(DATA!$C$2:$C$9732,H13,DATA!$N$2:$N$9732) -> 21 | O13: =SUMIF(DATA!$C$2:$C$9732,H13,DATA!$O$2:$O$9732) -> 22 | P13: =SUMIF(DATA!$C$2:$C$9732,H13,DATA!$P$2:$P$9732) -> 2 | Q13: =SUMIF(DATA!$C$2:$C$9732,H13,DATA!$Q$2:$Q$9732) -> 0 | S13: 2012-2013 | T13: DC | U13: 48 | V13: 12 | W13: 9 | X13: 0 | Y13: 69 | Z13: 140 | AA13: 32
B14: A-H | C14: =SUMIF(DATA!$H$2:$H$9077,B14,DATA!$J$2:$J$9093) -> 70 | D14: =SUMIF(DATA!$H$2:$H$9093,B14,DATA!$K$2:$K$9093) -> 31 | E14: 0.6930693069 | H14: ABC | I14: =SUMIF(DATA!$C$2:$C$9731,H14,DATA!$J$2:$J$9731) -> 1174 | J14: =SUMIF(DATA!$C$2:$C$9732,H14,DATA!$K$2:$K$9732) -> 567 | K14: 0.6743251005 | L14: =SUMIF(DATA!$C$2:$C$9732,H14,DATA!$L$2:$L$9732) -> 17 | M14: =SUMIF(DATA!$C$2:$C$9732,H14,DATA!$M$2:$M$9732) -> 76 | N14: =SUMIF(DATA!$C$2:$C$9732,H14,DATA!$N$2:$N$9732) -> 38 | O14: =SUMIF(DATA!$C$2:$C$9732,H14,DATA!$O$2:$O$9732) -> 67 | P14: =SUMIF(DATA!$C$2:$C$9732,H14,DATA!$P$2:$P$9732) -> 0 | Q14: =SUMIF(DATA!$C$2:$C$9732,H14,DATA!$Q$2:$Q$9732) -> 0 | S14: 2013-2014 | T14: 1 | U14: 60 | V14: 12 | W14: 10 | X14: 13 | Y14: 95 | Z14: 229 | AA14: 29
B15: A-C | C15: =SUMIF(DATA!$H$2:$H$9077,B15,DATA!$J$2:$J$9093) -> 62 | D15: =SUMIF(DATA!$H$2:$H$9093,B15,DATA!$K$2:$K$9093) -> 28 | E15: 0.6888888889 | H15: EBC | I15: =SUMIF(DATA!$C$2:$C$9731,H15,DATA!$J$2:$J$9731) -> 374 | J15: =SUMIF(DATA!$C$2:$C$9732,H15,DATA!$K$2:$K$9732) -> 190 | K15: 0.6631205674 | L15: =SUMIF(DATA!$C$2:$C$9732,H15,DATA!$L$2:$L$9732) -> 6 | M15: =SUMIF(DATA!$C$2:$C$9732,H15,DATA!$M$2:$M$9732) -> 20 | N15: =SUMIF(DATA!$C$2:$C$9732,H15,DATA!$N$2:$N$9732) -> 7 | O15: =SUMIF(DATA!$C$2:$C$9732,H15,DATA!$O$2:$O$9732) -> 16 | P15: =SUMIF(DATA!$C$2:$C$9732,H15,DATA!$P$2:$P$9732) -> 0 | Q15: =SUMIF(DATA!$C$2:$C$9732,H15,DATA!$Q$2:$Q$9732) -> 0 | S15: 2013-2014 | T15: 2 | U15: 58 | V15: 12 | W15: 10 | X15: 12 | Y15: 92 | Z15: 193 | AA15: 33
B16: A-I | C16: =SUMIF(DATA!$H$2:$H$9077,B16,DATA!$J$2:$J$9093) -> 61 | D16: =SUMIF(DATA!$H$2:$H$9093,B16,DATA!$K$2:$K$9093) -> 32 | E16: 0.6559139785 | H16: Lighthouse | I16: =SUMIF(DATA!$C$2:$C$9731,H16,DATA!$J$2:$J$9731) -> 739 | J16: =SUMIF(DATA!$C$2:$C$9732,H16,DATA!$K$2:$K$9732) -> 392 | K16: 0.6534040672 | L16: =SUMIF(DATA!$C$2:$C$9732,H16,DATA!$L$2:$L$9732) -> 23 | M16: =SUMIF(DATA!$C$2:$C$9732,H16,DATA!$M$2:$M$9732) -> 53 | N16: =SUMIF(DATA!$C$2:$C$9732,H16,DATA!$N$2:$N$9732) -> 54 | O16: =SUMIF(DATA!$C$2:$C$9732,H16,DATA!$O$2:$O$9732) -> 57 | P16: =SUMIF(DATA!$C$2:$C$9732,H16,DATA!$P$2:$P$9732) -> 11 | Q16: =SUMIF(DATA!$C$2:$C$9732,H16,DATA!$Q$2:$Q$9732) -> 0 | S16: 2013-2014 | T16: 3 | U16: 56 | V16: 12 | W16: 10 | X16: 11 | Y16: 89 | Z16: 144 | AA16: 27
B17: A-G | C17: =SUMIF(DATA!$H$2:$H$9077,B17,DATA!$J$2:$J$9093) -> 67 | D17: =SUMIF(DATA!$H$2:$H$9093,B17,DATA!$K$2:$K$9093) -> 35 | E17: 0.6568627451 | H17: Fox Island | I17: =SUMIF(DATA!$C$2:$C$9731,H17,DATA!$J$2:$J$9731) -> 184 | J17: =SUMIF(DATA!$C$2:$C$9732,H17,DATA!$K$2:$K$9732) -> 118 | K17: 0.6092715232 | L17: =SUMIF(DATA!$C$2:$C$9732,H17,DATA!$L$2:$L$9732) -> 1 | M17: =SUMIF(DATA!$C$2:$C$9732,H17,DATA!$M$2:$M$9732) -> 16 | N17: =SUMIF(DATA!$C$2:$C$9732,H17,DATA!$N$2:$N$9732) -> 11 | O17: =SUMIF(DATA!$C$2:$C$9732,H17,DATA!$O$2:$O$9732) -> 11 | P17: =SUMIF(DATA!$C$2:$C$9732,H17,DATA!$P$2:$P$9732) -> 0 | Q17: =SUMIF(DATA!$C$2:$C$9732,H17,DATA!$Q$2:$Q$9732) -> 0 | S17: 2013-2014 | T17: 4 | U17: 50 | V17: 11 | W17: 10 | X17: 8 | Y17: 79 | Z17: 128 | AA17: 37
B18: A-B | C18: =SUMIF(DATA!$H$2:$H$9077,B18,DATA!$J$2:$J$9093) -> 62 | D18: =SUMIF(DATA!$H$2:$H$9093,B18,DATA!$K$2:$K$9093) -> 34 | E18: 0.6458333333 | H18: NSA | I18: =SUMIF(DATA!$C$2:$C$9731,H18,DATA!$J$2:$J$9731) -> 84 | J18: =SUMIF(DATA!$C$2:$C$9732,H18,DATA!$K$2:$K$9732) -> 55 | K18: 0.6043165468 | L18: =SUMIF(DATA!$C$2:$C$9732,H18,DATA!$L$2:$L$9732) -> 0 | M18: =SUMIF(DATA!$C$2:$C$9732,H18,DATA!$M$2:$M$9732) -> 7 | N18: =SUMIF(DATA!$C$2:$C$9732,H18,DATA!$N$2:$N$9732) -> 16 | O18: =SUMIF(DATA!$C$2:$C$9732,H18,DATA!$O$2:$O$9732) -> 0 | P18: =SUMIF(DATA!$C$2:$C$9732,H18,DATA!$P$2:$P$9732) -> 0 | Q18: =SUMIF(DATA!$C$2:$C$9732,H18,DATA!$Q$2:$Q$9732) -> 0 | S18: 2013-2014 | T18: 5 | U18: 54 | V18: 11 | W18: 10 | X18: 10 | Y18: 85 | Z18: 150 | AA18: 33
B19: A-J | C19: =SUMIF(DATA!$H$2:$H$9077,B19,DATA!$J$2:$J$9093) -> 65 | D19: =SUMIF(DATA!$H$2:$H$9093,B19,DATA!$K$2:$K$9093) -> 38 | E19: 0.6310679612 | H19: Chapel Hill | I19: =SUMIF(DATA!$C$2:$C$9731,H19,DATA!$J$2:$J$9731) -> 358 | J19: =SUMIF(DATA!$C$2:$C$9732,H19,DATA!$K$2:$K$9732) -> 230 | K19: 0.6088435374 | L19: =SUMIF(DATA!$C$2:$C$9732,H19,DATA!$L$2:$L$9732) -> 16 | M19: =SUMIF(DATA!$C$2:$C$9732,H19,DATA!$M$2:$M$9732) -> 18 | N19: =SUMIF(DATA!$C$2:$C$9732,H19,DATA!$N$2:$N$9732) -> 14 | O19: =SUMIF(DATA!$C$2:$C$9732,H19,DATA!$O$2:$O$9732) -> 14 | P19: =SUMIF(DATA!$C$2:$C$9732,H19,DATA!$P$2:$P$9732) -> 2 | Q19: =SUMIF(DATA!$C$2:$C$9732,H19,DATA!$Q$2:$Q$9732) -> 0 | S19: 2013-2014 | T19: DC | U19: 48 | V19: 13 | W19: 10 | X19: 0 | Y19: 71 | Z19: 125 | AA19: 31
B20: A-E | C20: =SUMIF(DATA!$H$2:$H$9077,B20,DATA!$J$2:$J$9093) -> 56 | D20: =SUMIF(DATA!$H$2:$H$9093,B20,DATA!$K$2:$K$9093) -> 36 | E20: 0.6086956522 | S20: 2014-2015 | T20: 1 | U20: 50 | V20: 13 | W20: 10 | X20: 8 | Y20: =SUM(U20:X20) -> 81 | Z20: =SUMIF(DATA!$E$2:$E$2293,T20,DATA!$R$2:$R$2293) -> 100 | AA20: =SUMIF(DATA!$E$2:$E$2293,T20,DATA!$S$2:$S$2293) -> 16 | AB20: =SUMIF(DATA!E:E,1,DATA!M:M) -> 66 | AC20: =SUMIF(DATA!E:E,1,DATA!N:N) -> 29 | AD20: =SUMIF(DATA!E:E,1,DATA!L:L) -> 25
B21: A-D | C21: =SUMIF(DATA!$H$2:$H$9077,B21,DATA!$J$2:$J$9093) -> 54 | D21: =SUMIF(DATA!$H$2:$H$9093,B21,DATA!$K$2:$K$9093) -> 37 | E21: 0.5934065934 | H21: Type | I21: Correct | J21: Error | K21: Accuracy | M21: Church | N21: Quizzes | S21: 2014-2015 | T21: 2 | U21: 50 | V21: 11 | W21: 10 | X21: 8 | Y21: 79 | Z21: =SUMIF(DATA!$E$2:$E$9265,T21,DATA!$R$2:$R$9265) -> 121 | AA21: =SUMIF(DATA!$E$2:$E$9265,T21,DATA!$S$2:$S$9265) -> 43 | AB21: =SUMIF(DATA!E:E,2,DATA!M:M) -> 87 | AC21: =SUMIF(DATA!E:E,2,DATA!N:N) -> 31 | AD21: =SUMIF(DATA!E:E,2,DATA!L:L) -> 30
H22: TieB | I22: =SUMIF(DATA!$F$2:$F$9732,H22,DATA!$J$2:$J$9732) -> 0 | J22: =SUMIF(DATA!$F$2:$F$9732,H22,DATA!$K$2:$K$9732) -> 0 | K22: =I22/(I22+J22) ->  | M22: ABC | N22: 227 | S22: 2014-2015 | T22: 3 | U22: 50 | V22: 11 | W22: 10 | X22: 8 | Y22: 79 | Z22: =SUMIF(DATA!$E$2:$E$9265,T22,DATA!$R$2:$R$9265) -> 110 | AA22: =SUMIF(DATA!$E$2:$E$9265,T22,DATA!$S$2:$S$9265) -> 34 | AB22: =SUMIF(DATA!E:E,3,DATA!M:M) -> 60 | AC22: =SUMIF(DATA!E:E,3,DATA!N:N) -> 39 | AD22: =SUMIF(DATA!E:E,3,DATA!L:L) -> 5
H23: Pre | I23: =SUMIF(DATA!$F$2:$F$9732,H23,DATA!$J$2:$J$9732) -> 3252 | J23: =SUMIF(DATA!$F$2:$F$9732,H23,DATA!$K$2:$K$9732) -> 1495 | K23: =I23/(I23+J23) -> 0.6850642511 | M23: Lighthouse | N23: 224 | S23: 2014-2015 | T23: 4 | U23: 50 | V23: 12 | W23: 10 | X23: 8 | Y23: 80 | Z23: =SUMIF(DATA!$E$2:$E$9265,T23,DATA!$R$2:$R$9265) -> 90 | AA23: =SUMIF(DATA!$E$2:$E$9265,T23,DATA!$S$2:$S$9265) -> 40 | AB23: =SUMIF(DATA!E:E,4,DATA!M:M) -> 56 | AC23: =SUMIF(DATA!E:E,4,DATA!N:N) -> 48 | AD23: =SUMIF(DATA!E:E,4,DATA!L:L) -> 15
H24: ConA | I24: =SUMIF(DATA!$F$2:$F$9732,H24,DATA!$J$2:$J$9732) -> 637 | J24: =SUMIF(DATA!$F$2:$F$9732,H24,DATA!$K$2:$K$9732) -> 318 | K24: =I24/(I24+J24) -> 0.6670157068 | M24: Dallas | N24: 182 | S24: 2014-2015 | T24: 5 | U24: 50 | V24: 11 | W24: 10 | X24: 8 | Y24: 79 | Z24: =SUMIF(DATA!$E$2:$E$9265,T24,DATA!$R$2:$R$9265) -> 114 | AA24: =SUMIF(DATA!$E$2:$E$9265,T24,DATA!$S$2:$S$9265) -> 31 | AB24: =SUMIF(DATA!E:E,5,DATA!M:M) -> 40 | AC24: =SUMIF(DATA!E:E,5,DATA!N:N) -> 39 | AD24: =SUMIF(DATA!E:E,5,DATA!L:L) -> 8
H25: ConB | I25: =SUMIF(DATA!$F$2:$F$9732,H25,DATA!$J$2:$J$9732) -> 465 | J25: =SUMIF(DATA!$F$2:$F$9732,H25,DATA!$K$2:$K$9732) -> 231 | K25: =I25/(I25+J25) -> 0.6681034483 | M25: Grays Harbor | N25: 89 | S25: 2014-2015 | T25: DC | Y25: 0 | Z25: =SUMIF(DATA!$E$2:$E$9265,T25,DATA!$R$2:$R$9265) -> 0 | AA25: =SUMIF(DATA!$E$2:$E$9265,T25,DATA!$S$2:$S$9265) -> 0
H26: Semi | I26: =SUMIF(DATA!$F$2:$F$9732,H26,DATA!$J$2:$J$9732) -> 759 | J26: =SUMIF(DATA!$F$2:$F$9732,H26,DATA!$K$2:$K$9732) -> 440 | K26: =I26/(I26+J26) -> 0.6330275229 | M26: Chapel Hill | N26: 94
M27: Tacoma | N27: 91
M28: EBC | N28: 88
M29: Woodinville | N29: 50
M30: Fox Island | N30: 47
M31: NSA | N31: 45
